Workbook

Sheet Model Instructions
A1: Model Instructions

Sheet Summary
B1: Acquirer | O1: Transaction Summary
B2: ($Millions, except per share data)
B5: Transaction Value | H5: Form of Payment | N5: Sources & Uses
B7: Price Per Share | E7: 82 | H7: % Stock | K7: 0.5 | N7: Excess Cash | Q7: 1000
B8: Target Shares Outstanding | E8: ='Target Assumptions'!H53 -> 174.5 | H8: % Cash | K8: =1-K7 -> 0.5 | N8: Common Shares Issued to Target Shareholders | Q8: =E10*K7 -> 7247.38245
B9: Dilutive Effect: Stock Options/Security Conv | E9: ='Options-Convertibles'!G16+'Options-Convertibles'!G26+'Options-Convertibles'!N12 -> 2.26542561 | N9: New Common Shares Issued to Public | Q9: 4000
B10: Equity Consideration | E10: =E7*(E8+E9) -> 14494.7649 | H10: Target Preannouncement Share Price | K10: 60.75 | N10: Convertible Preferred Equity | O10: 0 | Q10: 0
H11: Implied Purchase Price Premium | K11: =+IF(ISERROR(E7/K10-1),0,E7/K10-1) -> 0.3497942387 | N11: Revolving Credit Facility | O11: =K23+(K25/10000)+(K27/10000) -> 0.044 | Q11: 0
B12: Less: Cash | E12: ='Target BS'!H9 -> 276.3 | I12: Acq. Shares | K12: % | N12: Senior Debt | O12: =K23+(K25/10000)+(K29/10000) -> 0.049 | Q12: =E10+Q17-Q7-Q8-Q9-Q10-Q11-Q13 -> 2882.38245
B13: Less: Equity in Affilates | E13: ='Target BS'!H24 -> 0 | H13: Current Shares Outstanding | I13: ='Acquirer Assumptions'!H53 -> 358.1 | K13: =+IF(ISERROR(I13/$I$18),0,I13/$I$18) -> 0.7105967813 | N13: Subordinated Debt | O13: 0.08 | Q13: 0
B14: Plus: Total Debt | E14: ='Target BS'!H38 -> 2060.9 | H14: Shares Issued to Target Sh. | I14: =IF(Q8>0,(E7/O24)*(E8+E9)*K7,0) -> 93.97539484 | K14: =+IF(ISERROR(I14/$I$18),0,I14/$I$18) -> 0.1864803493 | N14: Total Sources | Q14: =SUM(Q7:Q13) -> 15129.7649
B15: Plus: Noncontrolling Interests | E15: ='Target BS'!H50 -> 0.8 | H15: New Common Shares Issued | I15: =IF(Q9>0,Q9/O24,0) -> 51.86721992 | K15: =+IF(ISERROR(I15/$I$18),0,I15/$I$18) -> 0.1029228694
B16: Less Other Adjustments | E16: 0 | H16: Convertible Preferred Shares | I16: 0 | K16: =+IF(ISERROR(I16/$I$18),0,I16/$I$18) -> 0 | N16: Equity Consideration | Q16: =E10 -> 14494.7649
B17: Enterprise Value | E17: =E10-E12-E13+E14+E15-E16 -> 16280.1649 | H17: New Warrants Issued | I17: 0 | K17: =+IF(ISERROR(I17/$I$18),0,I17/$I$18) -> 0 | N17: Transaction Expenses | O17: 10 | Q17: 635
H18: Total Shares | I18: =SUM(I13:I17) -> 503.9426148 | K18: =SUM(K13:K17) -> 1 | N18: Total Uses | Q18: =Q16+Q17 -> 15129.7649
B21: Goodwill | H21: Debt | N21: Performance Fundamentals-Acquirer
B23: Target Tangible Book Value | E23: ='Target BS'!H51 -> 4653.4 | H23: 5-Year Treasury Rate | K23: 0.013 | O23: Current | Q23: ='Newco BS'!X7 -> 2020
B24: Adjustments | E24: ='Newco BS'!I11+SUM('Newco BS'!I16:I17) -> 0 | N24: Price per Share | O24: 77.12 | Q24: =+IF(ISERROR(Q26/Q25),0,Q26/Q25) -> 110.5975958
B25: Adjusted Book Value | E25: =E23+E24 -> 4653.4 | H25: Swap Rate (Bps) | K25: 60 | N25: Shares Outstanding | O25: =I13 -> 358.1 | Q25: =I18 -> 503.9426148
B26: Equity Consideration | E26: =E10 -> 14494.7649 | N26: Market Capitalization | O26: =O24*O25 -> 27616.672 | Q26: =+IF(ISERROR(Q28-Q27),0,Q28-Q27) -> 55734.84161
B27: Goodwill | E27: =E26-E25 -> 9841.3649 | H27: Revolving Credit Facility (Bps over Treasury) | K27: 250 | N27: Net Debt & Preferred Equity | O27: ='Acquirer BS'!H38+'Acquirer BS'!H46-'Acquirer BS'!H9 -> 6175.9 | Q27: =+IF(ISERROR('Newco BS'!X39+'Newco BS'!X47-'Newco BS'!X9),0,'Newco BS'!X39+'Newco BS'!X47-'Newco BS'!X9) -> 4338.384661
N28: Enterprise Value | O28: =O26+O27 -> 33792.572 | Q28: =+IF(ISERROR(Q30*Q32),0,Q30*Q32) -> 60073.22628
B29: Transaction Exp Amortization | E29: =Q17*E30/O17 -> 19.05 | H29: Senior Debt (Bps over Treasury) | K29: 300
B30: % of Transaction Expenses Amortized | E30: 0.3 | N30: LTM EBITDA | O30: ='Acquirer IS'!H49 -> 1482.1 | Q30: ='Newco IS'!V50 -> 2634.736671
H31: Senor Debt Amortization (Years) | K31: 10
N32: Enterprise Value / LTM EBITDA | O32: =+IF(ISERROR(O28/O30),0,O28/O30) -> 22.80046691 | Q32: =O32 -> 22.80046691
H33: Unsecured Debt Amortization (Years) | K33: 15
B37: SG&A Synergies | H37: Gross Margin Improvement | N37: Incremental Sales Synergy
E38: $'s | I38: % | K38: $'s | O38: Gross Margin | Q38: $'s
B39: 2016 | E39: 3 | H39: 2016 | I39: =+IF(ISERROR(K39/('Newco IS'!M9-Summary!Q39)),0,K39/('Newco IS'!M9-Summary!Q39)) -> 0.0002884066475 | K39: 5 | N39: =H39 -> 2016 | O39: =+IF(ISERROR(1-'Newco Assumptions'!J12),0,1-'Newco Assumptions'!J12) -> 0.4582448426 | Q39: 25
B40: =B39+1 -> 2017 | E40: 5 | H40: =H39+1 -> 2017 | I40: =+IF(ISERROR(K40/('Newco IS'!P9-Summary!Q40)),0,K40/('Newco IS'!P9-Summary!Q40)) -> 0.000547925215 | K40: 10 | N40: =N39+1 -> 2017 | O40: =+IF(ISERROR(1-'Newco Assumptions'!L12),0,1-'Newco Assumptions'!L12) -> 0.4616058236 | Q40: 75
B41: =B40+1 -> 2018 | E41: 8 | H41: =H40+1 -> 2018 | I41: =+IF(ISERROR(K41/('Newco IS'!R9-Summary!Q41)),0,K41/('Newco IS'!R9-Summary!Q41)) -> 0.0007807247112 | K41: 15 | N41: =N40+1 -> 2018 | O41: =+IF(ISERROR(1-'Newco Assumptions'!N12),0,1-'Newco Assumptions'!N12) -> 0.4646513123 | Q41: 150
B42: =B41+1 -> 2019 | E42: =E41 -> 8 | H42: =H41+1 -> 2019 | I42: =+IF(ISERROR(K42/('Newco IS'!T9-Summary!Q42)),0,K42/('Newco IS'!T9-Summary!Q42)) -> 0.0007416220942 | K42: =K41 -> 15 | N42: =N41+1 -> 2019 | O42: =+IF(ISERROR(1-'Newco Assumptions'!P12),0,1-'Newco Assumptions'!P12) -> 0.4646853802 | Q42: =Q41 -> 150
B43: =B42+1 -> 2020 | E43: =E42 -> 8 | H43: =H42+1 -> 2020 | I43: =+IF(ISERROR(K43/('Newco IS'!V9-Summary!Q43)),0,K43/('Newco IS'!V9-Summary!Q43)) -> 0.0007044768836 | K43: =K42 -> 15 | N43: =N42+1 -> 2020 | O43: =++IF(ISERROR(1-'Newco Assumptions'!R12),0,1-'Newco Assumptions'!R12) -> 0.464721513 | Q43: =Q42 -> 150
B46: Earnings per Share | C46: Acquirer | E46: Newco | H46: Cash EPS | I46: Acquirer | K46: Newco | N46: Accretion / (Dilution) | O46: EPS | Q46: Cash EPS
B48: =H39 -> 2016 | C48: =+IF(ISERROR('Acquirer IS'!J42),0,'Acquirer IS'!J42) -> 0.5162520615 | E48: =+IF(ISERROR('Newco IS'!M43),0,'Newco IS'!M43) -> -0.4728376831 | H48: =B48 -> 2016 | I48: =+IF(ISERROR('Acquirer IS'!J53),0,'Acquirer IS'!J53) -> 4.261530603 | K48: =+IF(ISERROR('Newco IS'!M54),0,'Newco IS'!M54) -> 7.076539646 | N48: 2013 | O48: =+IF(ISERROR(E48/C48-1),0,E48/C48-1) -> -1.915904688 | Q48: =+IF(ISERROR(K48/I48-1),0,K48/I48-1) -> 0.6605629068
B49: =H40 -> 2017 | C49: =+IF(ISERROR('Acquirer IS'!L42),0,'Acquirer IS'!L42) -> 0.4303536949 | E49: =+IF(ISERROR('Newco IS'!P43),0,'Newco IS'!P43) -> 0.6761767139 | H49: =B49 -> 2017 | I49: =+IF(ISERROR('Acquirer IS'!L53),0,'Acquirer IS'!L53) -> 3.633991535 | K49: =+IF(ISERROR('Newco IS'!P54),0,'Newco IS'!P54) -> 4.774391107 | N49: =B49 -> 2017 | O49: =+IF(ISERROR(E49/C49-1),0,E49/C49-1) -> 0.5712115914 | Q49: =+IF(ISERROR(K49/I49-1),0,K49/I49-1) -> 0.3138145922
B50: =H41 -> 2018 | C50: =+IF(ISERROR('Acquirer IS'!N42),0,'Acquirer IS'!N42) -> 0.3215319334 | E50: =+IF(ISERROR('Newco IS'!R43),0,'Newco IS'!R43) -> 0.9796428395 | H50: =B50 -> 2018 | I50: =+IF(ISERROR('Acquirer IS'!N53),0,'Acquirer IS'!N53) -> 3.661525046 | K50: =+IF(ISERROR('Newco IS'!R54),0,'Newco IS'!R54) -> 5.228311261 | N50: =B50 -> 2018 | O50: =+IF(ISERROR(E50/C50-1),0,E50/C50-1) -> 2.046797962 | Q50: =+IF(ISERROR(K50/I50-1),0,K50/I50-1) -> 0.427905366
B51: =H42 -> 2019 | C51: =+IF(ISERROR('Acquirer IS'!P42),0,'Acquirer IS'!P42) -> 0.187346796 | E51: =+IF(ISERROR('Newco IS'!T43),0,'Newco IS'!T43) -> 1.025287141 | H51: =B51 -> 2019 | I51: =+IF(ISERROR('Acquirer IS'!P53),0,'Acquirer IS'!P53) -> 3.670785655 | K51: =+IF(ISERROR('Newco IS'!T54),0,'Newco IS'!T54) -> 5.481967235 | N51: =B51 -> 2019 | O51: =IF(ISERROR(E51/C51-1),0,E51/C51-1) -> 4.472669737 | Q51: =+IF(ISERROR(K51/I51-1),0,K51/I51-1) -> 0.4934043417
B52: =H43 -> 2020 | C52: =+IF(ISERROR('Acquirer IS'!R42),0,'Acquirer IS'!R42) -> 0.02513283375 | E52: =+IF(ISERROR('Newco IS'!V43),0,'Newco IS'!V43) -> 1.053790377 | H52: =B52 -> 2020 | I52: =+IF(ISERROR('Acquirer IS'!R53),0,'Acquirer IS'!R53) -> 3.659476618 | K52: =+IF(ISERROR('Newco IS'!V54),0,'Newco IS'!V54) -> 5.67701479 | N52: =B52 -> 2020 | O52: =+IF(ISERROR(E52/C52-1),0,E52/C52-1) -> 40.92883251 | Q52: =+IF(ISERROR(K52/I52-1),0,K52/I52-1) -> 0.5513187764
B55: Valuation | C55: Present Value $'s | H55: Total Debt to Total Capital | N55: Interest Coverage (EBITDA to Interest Expense
H56: Industry Average | K56: Newco | N56: Industry Average | Q56: Newco
B57: Target | E57: =Valuation!D21 -> 16570.9496 | H57: 2016P | I57: 37.8 | K57: =+IF(ISERROR('Newco BS'!P39/('Newco BS'!P52+'Newco BS'!P39)),0,'Newco BS'!P39/('Newco BS'!P52+'Newco BS'!P39)) -> 0.2949095461 | N57: 2016P | O57: 3.8 | Q57: =+IF(ISERROR(('Newco IS'!M21+'Newco IS'!M18+'Newco IS'!M19)/'Newco IS'!M27),0,('Newco IS'!M21+'Newco IS'!M18+'Newco IS'!M19)/'Newco IS'!M27) -> 3.902491817
B58: Acquirer | E58: =+IF(ISERROR(Valuation!L21),0,Valuation!L21) -> 33454.38224 | H58: 2017P | I58: 37.8 | K58: =+IF(ISERROR('Newco BS'!R39/('Newco BS'!R52+'Newco BS'!R39)),0,'Newco BS'!R39/('Newco BS'!R52+'Newco BS'!R39)) -> 0.2713734594 | N58: 2017P | O58: 3.8 | Q58: =+IF(ISERROR(('Newco IS'!P21+'Newco IS'!P18+'Newco IS'!P19)/'Newco IS'!P27),0,('Newco IS'!P21+'Newco IS'!P18+'Newco IS'!P19)/'Newco IS'!P27) -> 4.645722581
B59: Newco | E59: =+IF(ISERROR(Valuation!D55),0,Valuation!D55) -> 57412.84119 | H59: 2018P | I59: 37.8 | K59: =+IF(ISERROR('Newco BS'!T39/('Newco BS'!T52+'Newco BS'!T39)),0,'Newco BS'!T39/('Newco BS'!T52+'Newco BS'!T39)) -> 0.2458847318 | N59: 2018P | O59: 3.8 | Q59: =+IF(ISERROR(('Newco IS'!R21+'Newco IS'!R18+'Newco IS'!R19)/'Newco IS'!R27),0,('Newco IS'!R21+'Newco IS'!R18+'Newco IS'!R19)/'Newco IS'!R27) -> 5.57653271
B60: Synergies | E60: =E59-SUM(E57:E58) -> 7387.509355 | H60: 2019P | I60: 37.8 | K60: =+IF(ISERROR('Newco BS'!V39/('Newco BS'!V52+'Newco BS'!V39)),0,'Newco BS'!V39/('Newco BS'!V52+'Newco BS'!V39)) -> 0.2192744589 | N60: 2019P | O60: 3.8 | Q60: =+IF(ISERROR(('Newco IS'!T21+'Newco IS'!T18+'Newco IS'!T19)/'Newco IS'!T27),0,('Newco IS'!T21+'Newco IS'!T18+'Newco IS'!T19)/'Newco IS'!T27) -> 6.408678318
B61: Net Present Value | E61: =E57+E60-Q18 -> 8828.694055 | H61: 2020P | I61: 37.8 | K61: =+IF(ISERROR('Newco BS'!X39/('Newco BS'!X52+'Newco BS'!X39)),0,'Newco BS'!X39/('Newco BS'!X52+'Newco BS'!X39)) -> 0.1915611121 | N61: 2020P | O61: 3.8 | Q61: =+IF(ISERROR(('Newco IS'!V21+'Newco IS'!V18+'Newco IS'!V19)/'Newco IS'!V27),0,('Newco IS'!V21+'Newco IS'!V18+'Newco IS'!V19)/'Newco IS'!V27) -> 7.478987532
B63: SG&A as a % of Incremental Sales | E63: 0.1

Sheet Target Assumptions
A1: Target | P1: Assumptions
A2: ($Millions, except per share data)
D5: Actual | J5: Projections for the Period Ending December 31,
D6: 2013 | F6: =D6+1 -> 2014 | H6: =F6+1 -> 2015 | J6: =H6+1 -> 2016 | L6: =J6+1 -> 2017 | N6: =L6+1 -> 2018 | P6: =N6+1 -> 2019 | R6: =P6+1 -> 2020
B8: Income Statement
B10: Sales Growth | D10: NA | F10: =+IF(ISERROR('Target IS'!F9/'Target IS'!D9-1),0,'Target IS'!F9/'Target IS'!D9-1) -> 0.05228393857 | H10: =+IF(ISERROR('Target IS'!H9/'Target IS'!F9-1),0,'Target IS'!H9/'Target IS'!F9-1) -> 0.04841486347 | J10: 0.055 | L10: =J10 -> 0.055 | N10: =L10 -> 0.055 | P10: 0.055 | R10: 0.055
B11: COGS as a % of Sales | D11: =+IF(ISERROR('Target IS'!D11/'Target IS'!D9),0,'Target IS'!D11/'Target IS'!D9) -> 0.4130319668 | E11: =+IF(ISERROR('Target IS'!E11/'Target IS'!E9),0,'Target IS'!E11/'Target IS'!E9) -> 0 | F11: =+IF(ISERROR('Target IS'!F11/'Target IS'!F9),0,'Target IS'!F11/'Target IS'!F9) -> 0.441163228 | G11: =+IF(ISERROR('Target IS'!G11/'Target IS'!G9),0,'Target IS'!G11/'Target IS'!G9) -> 0 | H11: =+IF(ISERROR('Target IS'!H11/'Target IS'!H9),0,'Target IS'!H11/'Target IS'!H9) -> 0.42038651 | J11: 0.43 | L11: =J11 -> 0.43 | N11: =L11 -> 0.43 | P11: 0.43 | R11: 0.43
B12: SG&A % annual increase (decrease) | D12: NA | F12: =+IF(ISERROR('Target IS'!F15/'Target IS'!D15-1),0,'Target IS'!F15/'Target IS'!D15-1) -> -0.01387802971 | H12: =+IF(ISERROR('Target IS'!H15/'Target IS'!F15-1),0,'Target IS'!H15/'Target IS'!F15-1) -> 0.04519326065 | J12: 0.04 | L12: 0.04 | N12: 0.04 | P12: 0.04 | R12: 0.04
B13: Other Operating Expense as a % of Sales | D13: =+IF(ISERROR('Target IS'!D16/'Target IS'!D9),0,'Target IS'!D16/'Target IS'!D9) -> 0.1311836348 | E13: =+IF(ISERROR('Target IS'!E16/'Target IS'!E9),0,'Target IS'!E16/'Target IS'!E9) -> 0 | F13: =+IF(ISERROR('Target IS'!F16/'Target IS'!F9),0,'Target IS'!F16/'Target IS'!F9) -> 0.1200307228 | G13: =+IF(ISERROR('Target IS'!G16/'Target IS'!G9),0,'Target IS'!G16/'Target IS'!G9) -> 0 | H13: =+IF(ISERROR('Target IS'!H16/'Target IS'!H9),0,'Target IS'!H16/'Target IS'!H9) -> 0.1047366427 | J13: 0.11 | L13: 0.11 | N13: 0.11 | P13: 0.11 | R13: 0.11
B14: Income from Affiliates Growth | D14: NA | F14: =IF('Target IS'!D23=0,0,'Target IS'!F23/'Target IS'!D23-1) -> 0 | H14: =IF('Target IS'!F23=0,0,'Target IS'!H23/'Target IS'!F23-1) -> 0 | J14: 0 | L14: 0 | N14: =L14 -> 0 | P14: =N14 -> 0 | R14: =P14 -> 0
B15: Noncontrolling Interest - % of Earnings | D15: =+IF(ISERROR('Target IS'!D30/('Target IS'!D28-'Target IS'!D31)),0,'Target IS'!D30/('Target IS'!D28-'Target IS'!D31)) -> 0 | E15: =+IF(ISERROR('Target IS'!E30/('Target IS'!E28-'Target IS'!E31)),0,'Target IS'!E30/('Target IS'!E28-'Target IS'!E31)) -> 0 | F15: =+IF(ISERROR('Target IS'!F30/('Target IS'!F28-'Target IS'!F31)),0,'Target IS'!F30/('Target IS'!F28-'Target IS'!F31)) -> 0 | G15: =+IF(ISERROR('Target IS'!G30/('Target IS'!G28-'Target IS'!G31)),0,'Target IS'!G30/('Target IS'!G28-'Target IS'!G31)) -> 0 | H15: =+IF(ISERROR('Target IS'!H30/('Target IS'!H28-'Target IS'!H31)),0,'Target IS'!H30/('Target IS'!H28-'Target IS'!H31)) -> 0 | J15: 0 | L15: 0 | N15: =L15 -> 0 | P15: =N15 -> 0 | R15: =P15 -> 0
B16: EBITDA Growth | D16: NA | F16: =+IF(ISERROR('Target IS'!F49/'Target IS'!D49-1),0,'Target IS'!F49/'Target IS'!D49-1) -> 0.05815093107 | G16: =+IF(ISERROR('Target IS'!G49/'Target IS'!E49-1),0,'Target IS'!G49/'Target IS'!E49-1) -> 0 | H16: =+IF(ISERROR('Target IS'!H49/'Target IS'!F49-1),0,'Target IS'!H49/'Target IS'!F49-1) -> 0.2738499537 | I16: =+IF(ISERROR('Target IS'!I49/'Target IS'!G49-1),0,'Target IS'!I49/'Target IS'!G49-1) -> 0 | J16: =+IF(ISERROR('Target IS'!J49/'Target IS'!H49-1),0,'Target IS'!J49/'Target IS'!H49-1) -> -0.001119667959 | L16: =+IF(ISERROR('Target IS'!L49/'Target IS'!J49-1),0,'Target IS'!L49/'Target IS'!J49-1) -> 0.07495904163 | N16: =+IF(ISERROR('Target IS'!N49/'Target IS'!L49-1),0,'Target IS'!N49/'Target IS'!L49-1) -> 0.0743099481 | P16: =+IF(ISERROR('Target IS'!P49/'Target IS'!N49-1),0,'Target IS'!P49/'Target IS'!N49-1) -> 0.07369325147 | R16: =+IF(ISERROR('Target IS'!R49/'Target IS'!P49-1),0,'Target IS'!R49/'Target IS'!P49-1) -> 0.07310664406
B17: EBITDA Margin | D17: =+IF(ISERROR('Target IS'!D49/'Target IS'!D9),0,'Target IS'!D49/'Target IS'!D9) -> 0.170619548 | E17: =+IF(ISERROR('Target IS'!E49/'Target IS'!E9),0,'Target IS'!E49/'Target IS'!E9) -> 0 | F17: =+IF(ISERROR('Target IS'!F49/'Target IS'!F9),0,'Target IS'!F49/'Target IS'!F9) -> 0.1715708345 | G17: =+IF(ISERROR('Target IS'!G49/'Target IS'!G9),0,'Target IS'!G49/'Target IS'!G9) -> 0 | H17: =+IF(ISERROR('Target IS'!H49/'Target IS'!H9),0,'Target IS'!H49/'Target IS'!H9) -> 0.2084628016 | I17: =+IF(ISERROR('Target IS'!I49/'Target IS'!I9),0,'Target IS'!I49/'Target IS'!I9) -> 0 | J17: =+IF(ISERROR('Target IS'!J49/'Target IS'!J9),0,'Target IS'!J49/'Target IS'!J9) -> 0.1973738317 | L17: =+IF(ISERROR('Target IS'!L49/'Target IS'!L9),0,'Target IS'!L49/'Target IS'!L9) -> 0.2011078531 | N17: =+IF(ISERROR('Target IS'!N49/'Target IS'!N9),0,'Target IS'!N49/'Target IS'!N9) -> 0.2047887841 | P17: =+IF(ISERROR('Target IS'!P49/'Target IS'!P9),0,'Target IS'!P49/'Target IS'!P9) -> 0.2084173795 | R17: =+IF(ISERROR('Target IS'!R49/'Target IS'!R9),0,'Target IS'!R49/'Target IS'!R9) -> 0.2119943836
B19: Balance Sheet
B21: Receivable Days | D21: =+IF(ISERROR(('Target BS'!D10/'Target IS'!D9)*365),0,('Target BS'!D10/'Target IS'!D9)*365) -> 59.76352387 | E21: =+IF(ISERROR(('Target BS'!E10/'Target IS'!E9)*365),0,('Target BS'!E10/'Target IS'!E9)*365) -> 0 | F21: =+IF(ISERROR(('Target BS'!F10/'Target IS'!F9)*365),0,('Target BS'!F10/'Target IS'!F9)*365) -> 61.5793098 | G21: =+IF(ISERROR(('Target BS'!G10/'Target IS'!G9)*365),0,('Target BS'!G10/'Target IS'!G9)*365) -> 0 | H21: =+IF(ISERROR(('Target BS'!H10/'Target IS'!H9)*365),0,('Target BS'!H10/'Target IS'!H9)*365) -> 64.29569281 | J21: 59 | L21: =J21 -> 59 | N21: =L21 -> 59 | P21: 59 | R21: 59
B22: Inventory Days | D22: =+IF(ISERROR(('Target BS'!D11/'Target IS'!D11)*365),0,('Target BS'!D11/'Target IS'!D11)*365) -> 79.57591093 | E22: =+IF(ISERROR(('Target BS'!E11/'Target IS'!E11)*365),0,('Target BS'!E11/'Target IS'!E11)*365) -> 0 | F22: =+IF(ISERROR(('Target BS'!F11/'Target IS'!F11)*365),0,('Target BS'!F11/'Target IS'!F11)*365) -> 82.80812871 | G22: =+IF(ISERROR(('Target BS'!G11/'Target IS'!G11)*365),0,('Target BS'!G11/'Target IS'!G11)*365) -> 0 | H22: =+IF(ISERROR(('Target BS'!H11/'Target IS'!H11)*365),0,('Target BS'!H11/'Target IS'!H11)*365) -> 88.5027943 | J22: 84 | L22: 84 | N22: 84 | P22: 84 | R22: 84
B23: Other Current Assets % of Sales | D23: =+IF(ISERROR('Target BS'!D12/'Target IS'!D9),0,'Target BS'!D12/'Target IS'!D9) -> 0.07831442825 | E23: =+IF(ISERROR('Target BS'!E12/'Target IS'!E9),0,'Target BS'!E12/'Target IS'!E9) -> 0 | F23: =+IF(ISERROR('Target BS'!F12/'Target IS'!F9),0,'Target BS'!F12/'Target IS'!F9) -> 0.05206981487 | G23: =+IF(ISERROR('Target BS'!G12/'Target IS'!G9),0,'Target BS'!G12/'Target IS'!G9) -> 0 | H23: =+IF(ISERROR('Target BS'!H12/'Target IS'!H9),0,'Target BS'!H12/'Target IS'!H9) -> 0.06267525578 | J23: 0.055 | L23: 0.055 | N23: 0.055 | P23: 0.055 | R23: 0.055
B24: Accounts Payable Days | D24: =+IF(ISERROR(('Target BS'!D29/'Target IS'!D11)*365),0,('Target BS'!D29/'Target IS'!D11)*365) -> 42.95276653 | E24: =+IF(ISERROR(('Target BS'!E29/'Target IS'!E11)*365),0,('Target BS'!E29/'Target IS'!E11)*365) -> 0 | F24: =+IF(ISERROR(('Target BS'!F29/'Target IS'!F11)*365),0,('Target BS'!F29/'Target IS'!F11)*365) -> 39.09227352 | G24: =+IF(ISERROR(('Target BS'!G29/'Target IS'!G11)*365),0,('Target BS'!G29/'Target IS'!G11)*365) -> 0 | H24: =+IF(ISERROR(('Target BS'!H29/'Target IS'!H11)*365),0,('Target BS'!H29/'Target IS'!H11)*365) -> 40.92842978 | J24: 40 | L24: 40 | N24: 40 | P24: 40 | R24: 40
B25: Other Current Liabilities % of COGS | D25: =+IF(ISERROR('Target BS'!D30/'Target IS'!D11),0,'Target BS'!D30/'Target IS'!D11) -> 0.6558704453 | E25: =+IF(ISERROR('Target BS'!E30/'Target IS'!E11),0,'Target BS'!E30/'Target IS'!E11) -> 0 | F25: =+IF(ISERROR('Target BS'!F30/'Target IS'!F11),0,'Target BS'!F30/'Target IS'!F11) -> 0.7911988954 | G25: =+IF(ISERROR('Target BS'!G30/'Target IS'!G11),0,'Target BS'!G30/'Target IS'!G11) -> 0 | H25: =+IF(ISERROR('Target BS'!H30/'Target IS'!H11),0,'Target BS'!H30/'Target IS'!H11) -> 0.6044107926 | J25: 0.68 | L25: 0.68 | N25: 0.68 | P25: 0.68 | R25: 0.68
B26: Change in Other Assets | D26: NA | F26: ='Target BS'!F25-'Target BS'!D25 -> -36.6 | H26: ='Target BS'!H25-'Target BS'!F25 -> -4.4 | J26: 0 | L26: 0 | N26: =L26 -> 0 | P26: =N26 -> 0 | R26: =P26 -> 0
B27: Change in Other LT Liabilities | D27: NA | F27: ='Target BS'!F41-'Target BS'!D41 -> -232 | H27: ='Target BS'!H41-'Target BS'!F41 -> 59.8 | J27: 0 | L27: 0 | N27: =L27 -> 0 | P27: =N27 -> 0 | R27: =P27 -> 0
B28: Working Capital/Sales (Excl Cash & Debt) | D28: =+IF(ISERROR((SUM('Target BS'!D10:D12)-SUM('Target BS'!D29:D30))/'Target IS'!D9),0,(SUM('Target BS'!D10:D12)-SUM('Target BS'!D29:D30))/'Target IS'!D9) -> 0.01259719629 | E28: =+IF(ISERROR((SUM('Target BS'!E10:E12)-SUM('Target BS'!E29:E30))/'Target IS'!E9),0,(SUM('Target BS'!E10:E12)-SUM('Target BS'!E29:E30))/'Target IS'!E9) -> 0 | F28: =+IF(ISERROR((SUM('Target BS'!F10:F12)-SUM('Target BS'!F29:F30))/'Target IS'!F9),0,(SUM('Target BS'!F10:F12)-SUM('Target BS'!F29:F30))/'Target IS'!F9) -> -0.07542972164 | G28: =+IF(ISERROR((SUM('Target BS'!G10:G12)-SUM('Target BS'!G29:G30))/'Target IS'!G9),0,(SUM('Target BS'!G10:G12)-SUM('Target BS'!G29:G30))/'Target IS'!G9) -> 0 | H28: =+IF(ISERROR((SUM('Target BS'!H10:H12)-SUM('Target BS'!H29:H30))/'Target IS'!H9),0,(SUM('Target BS'!H10:H12)-SUM('Target BS'!H29:H30))/'Target IS'!H9) -> 0.03953517747 | I28: =+IF(ISERROR((SUM('Target BS'!I10:I12)-SUM('Target BS'!I29:I30))/'Target IS'!I9),0,(SUM('Target BS'!I10:I12)-SUM('Target BS'!I29:I30))/'Target IS'!I9) -> 0 | J28: =+IF(ISERROR((SUM('Target BS'!J10:J12)-SUM('Target BS'!J29:J30))/'Target IS'!J9),0,(SUM('Target BS'!J10:J12)-SUM('Target BS'!J29:J30))/'Target IS'!J9) -> -0.02392054795 | L28: =+IF(ISERROR((SUM('Target BS'!L10:L12)-SUM('Target BS'!L29:L30))/'Target IS'!L9),0,(SUM('Target BS'!L10:L12)-SUM('Target BS'!L29:L30))/'Target IS'!L9) -> -0.02392054795 | N28: =+IF(ISERROR((SUM('Target BS'!N10:N12)-SUM('Target BS'!N29:N30))/'Target IS'!N9),0,(SUM('Target BS'!N10:N12)-SUM('Target BS'!N29:N30))/'Target IS'!N9) -> -0.02392054795 | P28: =+IF(ISERROR((SUM('Target BS'!P10:P12)-SUM('Target BS'!P29:P30))/'Target IS'!P9),0,(SUM('Target BS'!P10:P12)-SUM('Target BS'!P29:P30))/'Target IS'!P9) -> -0.02392054795 | R28: =+IF(ISERROR((SUM('Target BS'!R10:R12)-SUM('Target BS'!R29:R30))/'Target IS'!R9),0,(SUM('Target BS'!R10:R12)-SUM('Target BS'!R29:R30))/'Target IS'!R9) -> -0.02392054795
B30: Cash Flow
B32: Capital Expenditures | D32: 26.7 | F32: 13.8 | H32: 10.3 | J32: =J33*'Target IS'!J9 -> 16.70487 | L32: =L33*'Target IS'!L9 -> 17.62363785 | N32: =N33*'Target IS'!N9 -> 18.59293793 | P32: =P33*'Target IS'!P9 -> 19.61554952 | R32: =R33*'Target IS'!R9 -> 20.69440474
B33: Capex as a % of Sales | D33: =+IF(ISERROR(D32/'Target IS'!D9),0,D32/'Target IS'!D9) -> 0.007441264179 | E33: =+IF(ISERROR(E32/'Target IS'!E9),0,E32/'Target IS'!E9) -> 0 | F33: =+IF(ISERROR(F32/'Target IS'!F9),0,F32/'Target IS'!F9) -> 0.0036549514 | G33: =+IF(ISERROR(G32/'Target IS'!G9),0,G32/'Target IS'!G9) -> 0 | H33: =+IF(ISERROR(H32/'Target IS'!H9),0,H32/'Target IS'!H9) -> 0.002601995705 | J33: 0.004 | L33: =J33 -> 0.004 | N33: =L33 -> 0.004 | P33: =N33 -> 0.004 | R33: =P33 -> 0.004
B34: Depreciation | D34: 123 | F34: 123.6 | H34: 126 | J34: =J35*'Target IS'!J9 -> 133.63896 | K34: =K35*'Target IS'!K9 -> 0 | L34: =L35*'Target IS'!L9 -> 140.9891028 | N34: =N35*'Target IS'!N9 -> 148.7435035 | P34: =P35*'Target IS'!P9 -> 156.9243961 | R34: =R35*'Target IS'!R9 -> 165.5552379
B35: Depreciation as a % of Sales | D35: =+IF(ISERROR(D34/'Target IS'!D9),0,D34/'Target IS'!D9) -> 0.03427998105 | E35: =+IF(ISERROR(E34/'Target IS'!E9),0,E34/'Target IS'!E9) -> 0 | F35: =+IF(ISERROR(F34/'Target IS'!F9),0,F34/'Target IS'!F9) -> 0.03273565167 | G35: =+IF(ISERROR(G34/'Target IS'!G9),0,G34/'Target IS'!G9) -> 0 | H35: =+IF(ISERROR(H34/'Target IS'!H9),0,H34/'Target IS'!H9) -> 0.03183023873 | J35: 0.032 | L35: =J35 -> 0.032 | N35: =L35 -> 0.032 | P35: =N35 -> 0.032 | R35: =P35 -> 0.032
B36: Goodwill Amortization (Pre-6/2001) | D36: 0 | F36: 0 | H36: 0 | J36: 0 | L36: =J36 -> 0 | N36: =L36 -> 0 | P36: =N36 -> 0 | R36: =P36 -> 0
B37: Amortization of Intangibles | D37: 299.6 | F37: 313.9 | H37: 302.9 | J37: 300 | L37: 300 | N37: 300 | P37: 300 | R37: 300
B38: Retirement of Senior Debt | D38: 2320.2 | F38: 350.4 | H38: 450 | J38: 300 | L38: 300 | N38: 300 | P38: 300 | R38: 300
B39: Retirement of Subordinated Debt | D39: 0 | F39: 0 | H39: 0 | J39: 0 | L39: 0 | N39: 0 | P39: 0 | R39: 0
B40: Chg in Deferred Taxes - Asset | D40: NA | F40: ='Target BS'!F23-'Target BS'!D23 -> 2 | H40: ='Target BS'!H23-'Target BS'!F23 -> -5.8 | J40: 0 | L40: 0 | N40: 0 | P40: 0 | R40: 0
B41: Chg in Deferred Taxes - Liab | D41: NA | F41: ='Target BS'!F40-'Target BS'!D40 -> -147.4 | H41: ='Target BS'!H40-'Target BS'!F40 -> -123.2 | J41: 0 | L41: 0 | N41: 0 | P41: 0 | R41: 0
B42: Dividend from Affiliates | D42: 0 | F42: 0 | H42: 0 | J42: 0 | L42: =L43*-'Target IS'!L23 -> 0 | N42: =N43*-'Target IS'!N23 -> 0 | P42: =P43*-'Target IS'!P23 -> 0 | R42: =R43*-'Target IS'!R23 -> 0
B43: Payout Ratio of Affiliates | D43: =IF('Target IS'!D23=0,0,D42/-'Target IS'!D23) -> 0 | F43: =IF('Target IS'!F23=0,0,F42/-'Target IS'!F23) -> 0 | H43: =IF('Target IS'!H23=0,0,H42/-'Target IS'!H23) -> 0 | J43: 0 | L43: =J43 -> 0 | N43: =L43 -> 0 | P43: =N43 -> 0 | R43: =P43 -> 0
B44: Dividends per Share | D44: 0 | F44: 0 | H44: 0 | J44: 0 | L44: =IF(L45=0,0,L45*'Target IS'!L53) -> 0 | N44: =IF(N45=0,0,N45*'Target IS'!N53) -> 0 | P44: =IF(P45=0,0,P45*'Target IS'!P53) -> 0 | R44: =IF(R45=0,0,R45*'Target IS'!R53) -> 0
B45: Dividend Payout Ratio | D45: 0 | F45: =+IF(ISERROR(F44/'Target IS'!F53),0,F44/'Target IS'!F53) -> 0 | G45: =+IF(ISERROR(G44/'Target IS'!G53),0,G44/'Target IS'!G53) -> 0 | H45: =+IF(ISERROR(H44/'Target IS'!H53),0,H44/'Target IS'!H53) -> 0 | J45: 0 | L45: =J45 -> 0 | N45: =L45 -> 0 | P45: =N45 -> 0 | R45: =P45 -> 0
B46: Dividends Paid | D46: =D44*D52 -> 0 | F46: =F44*F52 -> 0 | H46: =H44*H52 -> 0 | J46: =J44*J52 -> 0 | L46: =L44*L52 -> 0 | N46: =N44*N52 -> 0 | P46: =P44*P52 -> 0 | R46: =R44*R52 -> 0
B47: Effective Tax Rate | D47: =+IF(ISERROR('Target IS'!D31/'Target IS'!D28),0,'Target IS'!D31/'Target IS'!D28) -> 3.388297872 | E47: =+IF(ISERROR('Target IS'!E31/'Target IS'!E28),0,'Target IS'!E31/'Target IS'!E28) -> 0 | F47: =+IF(ISERROR('Target IS'!F31/'Target IS'!F28),0,'Target IS'!F31/'Target IS'!F28) -> 2.449029126 | G47: =+IF(ISERROR('Target IS'!G31/'Target IS'!G28),0,'Target IS'!G31/'Target IS'!G28) -> 0 | H47: =+IF(ISERROR('Target IS'!H31/'Target IS'!H28),0,'Target IS'!H31/'Target IS'!H28) -> 0.385697984 | J47: 0.4 | L47: =J47 -> 0.4 | N47: =L47 -> 0.4 | P47: =N47 -> 0.4 | R47: =P47 -> 0.4
B48: Marginal Tax Rate | D48: 0.38 | F48: =D48 -> 0.38 | H48: =F48 -> 0.38 | J48: 0.4 | L48: =J48 -> 0.4 | N48: =L48 -> 0.4 | P48: =N48 -> 0.4 | R48: =P48 -> 0.4
B50: Other
B52: Shares Outstanding - Basic | D52: 0 | F52: 0 | H52: 170.8 | J52: 170.8 | L52: =J52 -> 170.8 | N52: =L52 -> 170.8 | P52: =N52 -> 170.8 | R52: =P52 -> 170.8
B53: Shares Outstanding - Diluted | D53: 0 | F53: 0 | H53: 174.5 | J53: 174.5 | L53: =J53 -> 174.5 | N53: =L53 -> 174.5 | P53: =N53 -> 174.5 | R53: =P53 -> 174.5
B54: Revolving Credit Facility Rate | D54: 0 | F54: 0 | H54: 0 | J54: 0.02 | L54: =J54 -> 0.02 | N54: =L54 -> 0.02 | P54: =N54 -> 0.02 | R54: =P54 -> 0.02
B55: Senior Debt Rate | D55: 0 | F55: 0 | H55: 0 | J55: 0.05 | L55: =J55 -> 0.05 | N55: =L55 -> 0.05 | P55: =N55 -> 0.05 | R55: =P55 -> 0.05
B56: Subordinated Debt | D56: 0 | F56: 0 | H56: 0 | J56: 0.08 | L56: =J56 -> 0.08 | N56: =L56 -> 0.08 | P56: =N56 -> 0.08 | R56: =P56 -> 0.08
B57: Average Interest Rate | D57: NA | F57: =IF(AVERAGE('Target BS'!D38:F38)=0,0,'Target IS'!F26/AVERAGE('Target BS'!D38:F38)) -> 0.06451356138 | H57: =IF(AVERAGE('Target BS'!F38:H38)=0,0,'Target IS'!H26/AVERAGE('Target BS'!F38:H38)) -> 0.05685311797 | J57: =IF(AVERAGE('Target BS'!H38:J38)=0,0,'Target IS'!J26/AVERAGE('Target BS'!H38:J38)) -> 0.05 | L57: =IF(AVERAGE('Target BS'!J38:L38)=0,0,'Target IS'!L26/AVERAGE('Target BS'!J38:L38)) -> 0.05 | N57: =IF(AVERAGE('Target BS'!L38:N38)=0,0,'Target IS'!N26/AVERAGE('Target BS'!L38:N38)) -> 0.05 | P57: =IF(AVERAGE('Target BS'!N38:P38)=0,0,'Target IS'!P26/AVERAGE('Target BS'!N38:P38)) -> 0.05 | R57: =IF(AVERAGE('Target BS'!P38:R38)=0,0,'Target IS'!R26/AVERAGE('Target BS'!P38:R38)) -> 0.05
B58: Marketable Securities Rate | D58: 0 | F58: 0 | H58: 0 | J58: 0 | L58: =J58 -> 0 | N58: =L58 -> 0 | P58: =N58 -> 0 | R58: =P58 -> 0

Sheet Target IS
A1: ='Target Assumptions'!A1 -> Target | S1: Income Statement
A2: ($Millions, except per share data)
D6: ='Target Assumptions'!D5 -> Actual | J6: ='Target Assumptions'!J5 -> Projections for the Period Ending December 31, | U6: 1 | V6: 0 = circ off
D7: ='Target Assumptions'!D6 -> 2013 | F7: ='Target Assumptions'!F6 -> 2014 | H7: ='Target Assumptions'!H6 -> 2015 | J7: ='Target Assumptions'!J6 -> 2016 | L7: ='Target Assumptions'!L6 -> 2017 | N7: ='Target Assumptions'!N6 -> 2018 | P7: ='Target Assumptions'!P6 -> 2019 | R7: ='Target Assumptions'!R6 -> 2020 | V7: 1 = circ on
B9: Sales | D9: 3588.1 | F9: 3775.7 | H9: 3958.5 | J9: =H9*(1+'Target Assumptions'!J10) -> 4176.2175 | L9: =J9*(1+'Target Assumptions'!L10) -> 4405.909462 | N9: =L9*(1+'Target Assumptions'!N10) -> 4648.234483 | P9: =N9*(1+'Target Assumptions'!P10) -> 4903.887379 | R9: =P9*(1+'Target Assumptions'!R10) -> 5173.601185
B11: Cost of Goods Sold | D11: =1188.2+293.8 -> 1482 | F11: =1357+308.7 -> 1665.7 | H11: =1372.3+291.8 -> 1664.1 | J11: =J9*'Target Assumptions'!J11 -> 1795.773525 | L11: =L9*'Target Assumptions'!L11 -> 1894.541069 | N11: =N9*'Target Assumptions'!N11 -> 1998.740828 | P11: =P9*'Target Assumptions'!P11 -> 2108.671573 | R11: =R9*'Target Assumptions'!R11 -> 2224.64851
B13: Gross Profit | D13: =D9-D11 -> 2106.1 | F13: =F9-F11 -> 2110 | H13: =H9-H11 -> 2294.4 | J13: =J9-J11 -> 2380.443975 | L13: =L9-L11 -> 2511.368394 | N13: =N9-N11 -> 2649.493655 | P13: =P9-P11 -> 2795.215806 | R13: =R9-R11 -> 2948.952676
B15: SG&A | D15: 1023.2 | E15: 1009 | F15: 1009 | H15: 1054.6 | J15: =H15*(1+'Target Assumptions'!J12) -> 1096.784 | L15: =J15*(1+'Target Assumptions'!L12) -> 1140.65536 | N15: =L15*(1+'Target Assumptions'!N12) -> 1186.281574 | P15: =N15*(1+'Target Assumptions'!P12) -> 1233.732837 | R15: =P15*(1+'Target Assumptions'!R12) -> 1283.082151
B16: Other Operating Expense | D16: =375.5+1.7+93.5 -> 470.7 | F16: =377.9+75.3 -> 453.2 | H16: =341.9+72.7 -> 414.6 | J16: =J9*'Target Assumptions'!J13 -> 459.383925 | L16: =L9*'Target Assumptions'!L13 -> 484.6500409 | N16: =N9*'Target Assumptions'!N13 -> 511.3057931 | P16: =P9*'Target Assumptions'!P13 -> 539.4276117 | R16: =R9*'Target Assumptions'!R13 -> 569.0961304
B17: Depreciation | D17: ='Target Assumptions'!D34 -> 123 | E17: ='Target Assumptions'!E34 -> 0 | F17: ='Target Assumptions'!F34 -> 123.6 | H17: ='Target Assumptions'!H34 -> 126 | J17: ='Target Assumptions'!J34 -> 133.63896 | L17: ='Target Assumptions'!L34 -> 140.9891028 | N17: ='Target Assumptions'!N34 -> 148.7435035 | P17: ='Target Assumptions'!P34 -> 156.9243961 | R17: ='Target Assumptions'!R34 -> 165.5552379
B18: Amortization | D18: ='Target Assumptions'!D36+'Target Assumptions'!D37 -> 299.6 | F18: ='Target Assumptions'!F36+'Target Assumptions'!F37 -> 313.9 | H18: ='Target Assumptions'!H36+'Target Assumptions'!H37 -> 302.9 | J18: ='Target Assumptions'!J36+'Target Assumptions'!J37 -> 300 | L18: ='Target Assumptions'!L36+'Target Assumptions'!L37 -> 300 | N18: ='Target Assumptions'!N36+'Target Assumptions'!N37 -> 300 | P18: ='Target Assumptions'!P36+'Target Assumptions'!P37 -> 300 | R18: ='Target Assumptions'!R36+'Target Assumptions'!R37 -> 300
B20: EBIT | D20: =D13-SUM(D15:D18) -> 189.6 | F20: =F13-SUM(F15:F18) -> 210.3 | H20: =H13-SUM(H15:H18) -> 396.3 | J20: =J13-SUM(J15:J18) -> 390.63709 | L20: =L13-SUM(L15:L18) -> 445.07389 | N20: =N13-SUM(N15:N18) -> 503.1627843 | P20: =P13-SUM(P15:P18) -> 565.130961 | R20: =R13-SUM(R15:R18) -> 631.2191565
B22: Unusual (Gain) Loss | D22: -37.2 | F22: 0 | H22: 0 | J22: 0 | L22: 0 | N22: 0 | P22: 0 | R22: 0
B23: (Income) from Affiliates | F23: 0 | H23: 0 | J23: =H23*(1+'Target Assumptions'!J14) -> 0 | L23: =J23*(1+'Target Assumptions'!L14) -> 0 | N23: =L23*(1+'Target Assumptions'!N14) -> 0 | P23: =N23*(1+'Target Assumptions'!P14) -> 0 | R23: =P23*(1+'Target Assumptions'!R14) -> 0
B24: Other Expense (Income) | D24: =5.9+54.1 -> 60 | F24: 10.9 | H24: 11.9 | J24: 0 | L24: 0 | N24: 0 | P24: 0 | R24: 0
B25: Interest (Income) | D25: -4.3 | F25: -3.9 | G25: 2.4 | H25: -2.4 | J25: =IF($U$6=0,0,-'Target Assumptions'!J58*AVERAGE('Target BS'!H9:J9)) -> 0 | L25: =IF($U$6=0,0,-'Target Assumptions'!L58*AVERAGE('Target BS'!J9:L9)) -> 0 | N25: =IF($U$6=0,0,-'Target Assumptions'!N58*AVERAGE('Target BS'!L9:N9)) -> 0 | P25: =IF($U$6=0,0,-'Target Assumptions'!P58*AVERAGE('Target BS'!N9:P9)) -> 0 | R25: =IF($U$6=0,0,-'Target Assumptions'!R58*AVERAGE('Target BS'!P9:R9)) -> 0
B26: Interest Expense | D26: 152.3 | F26: 162.1 | H26: 123.9 | J26: =IF($U$6=0,0,'Target Assumptions'!J54*AVERAGE('Target BS'!H34:J34)+'Target Assumptions'!J55*AVERAGE('Target BS'!H35:J35)+'Target Assumptions'!J56*AVERAGE('Target BS'!H36:J36)) -> 95.545 | L26: =IF($U$6=0,0,'Target Assumptions'!L54*AVERAGE('Target BS'!J34:L34)+'Target Assumptions'!L55*AVERAGE('Target BS'!J35:L35)+'Target Assumptions'!L56*AVERAGE('Target BS'!J36:L36)) -> 80.545 | N26: =IF($U$6=0,0,'Target Assumptions'!N54*AVERAGE('Target BS'!L34:N34)+'Target Assumptions'!N55*AVERAGE('Target BS'!L35:N35)+'Target Assumptions'!N56*AVERAGE('Target BS'!L36:N36)) -> 65.545 | P26: =IF($U$6=0,0,'Target Assumptions'!P54*AVERAGE('Target BS'!N34:P34)+'Target Assumptions'!P55*AVERAGE('Target BS'!N35:P35)+'Target Assumptions'!P56*AVERAGE('Target BS'!N36:P36)) -> 50.545 | R26: =IF($U$6=0,0,'Target Assumptions'!R54*AVERAGE('Target BS'!P34:R34)+'Target Assumptions'!R55*AVERAGE('Target BS'!P35:R35)+'Target Assumptions'!R56*AVERAGE('Target BS'!P36:R36)) -> 35.545
B28: Earnings before Taxes | D28: =D20-SUM(D22:D26) -> 18.8 | F28: =F20-SUM(F22:F26) -> 41.2 | H28: =H20-SUM(H22:H26) -> 262.9 | J28: =J20-SUM(J22:J26) -> 295.09209 | L28: =L20-SUM(L22:L26) -> 364.52889 | N28: =N20-SUM(N22:N26) -> 437.6177843 | P28: =P20-SUM(P22:P26) -> 514.585961 | R28: =R20-SUM(R22:R26) -> 595.6741565
B30: Noncontrolling Interest | D30: 0 | F30: 0 | H30: 0 | J30: ='Target Assumptions'!J15*(J28-J31) -> 0 | L30: ='Target Assumptions'!L15*(L28-L31) -> 0 | N30: ='Target Assumptions'!N15*(N28-N31) -> 0 | P30: ='Target Assumptions'!P15*(P28-P31) -> 0 | R30: ='Target Assumptions'!R15*(R28-R31) -> 0
B31: Taxes | D31: 63.7 | F31: 100.9 | H31: 101.4 | J31: =J28*'Target Assumptions'!J47 -> 118.036836 | L31: =L28*'Target Assumptions'!L47 -> 145.811556 | N31: =N28*'Target Assumptions'!N47 -> 175.0471137 | P31: =P28*'Target Assumptions'!P47 -> 205.8343844 | R31: =R28*'Target Assumptions'!R47 -> 238.2696626
B33: Net Income before Extra Items | D33: =D28-D30-D31 -> -44.9 | F33: =F28-F30-F31 -> -59.7 | H33: =H28-H30-H31 -> 161.5 | J33: =J28-J30-J31 -> 177.055254 | L33: =L28-L30-L31 -> 218.717334 | N33: =N28-N30-N31 -> 262.5706706 | P33: =P28-P30-P31 -> 308.7515766 | R33: =R28-R30-R31 -> 357.4044939
B35: Extraordinary Items | D35: 0.6 | F35: 0.7 | H35: 0.4 | J35: 0 | L35: 0 | N35: 0 | P35: 0 | R35: 0
B36: Discontinued Operations | D36: 0 | F36: 0 | H36: 0 | J36: 0 | L36: 0 | N36: 0 | P36: 0 | R36: 0
B38: Net Income after Extra Items | D38: =D33+D35+D36 -> -44.3 | F38: =F33+F35+F36 -> -59 | H38: =H33+H35+H36 -> 161.9 | J38: =J33+J35+J36 -> 177.055254 | L38: =L33+L35+L36 -> 218.717334 | N38: =N33+N35+N36 -> 262.5706706 | P38: =P33+P35+P36 -> 308.7515766 | R38: =R33+R35+R36 -> 357.4044939
B40: EPS - Basic | D40: =+IF(ISERROR(D33/'Target Assumptions'!D52),0,D33/'Target Assumptions'!D52) -> 0 | E40: =+IF(ISERROR(E33/'Target Assumptions'!E52),0,E33/'Target Assumptions'!E52) -> 0 | F40: =+IF(ISERROR(F33/'Target Assumptions'!F52),0,F33/'Target Assumptions'!F52) -> 0 | G40: =+IF(ISERROR(G33/'Target Assumptions'!G52),0,G33/'Target Assumptions'!G52) -> 0 | H40: =+IF(ISERROR(H33/'Target Assumptions'!H52),0,H33/'Target Assumptions'!H52) -> 0.9455503513 | I40: =+IF(ISERROR(I33/'Target Assumptions'!I52),0,I33/'Target Assumptions'!I52) -> 0 | J40: =+IF(ISERROR(J33/'Target Assumptions'!J52),0,J33/'Target Assumptions'!J52) -> 1.036623267 | K40: =+IF(ISERROR(K33/'Target Assumptions'!K52),0,K33/'Target Assumptions'!K52) -> 0 | L40: =+IF(ISERROR(L33/'Target Assumptions'!L52),0,L33/'Target Assumptions'!L52) -> 1.280546452 | M40: =+IF(ISERROR(M33/'Target Assumptions'!M52),0,M33/'Target Assumptions'!M52) -> 0 | N40: =+IF(ISERROR(N33/'Target Assumptions'!N52),0,N33/'Target Assumptions'!N52) -> 1.537299008 | O40: =+IF(ISERROR(O33/'Target Assumptions'!O52),0,O33/'Target Assumptions'!O52) -> 0 | P40: =+IF(ISERROR(P33/'Target Assumptions'!P52),0,P33/'Target Assumptions'!P52) -> 1.80767902 | Q40: =+IF(ISERROR(Q33/'Target Assumptions'!Q52),0,Q33/'Target Assumptions'!Q52) -> 0 | R40: =+IF(ISERROR(R33/'Target Assumptions'!R52),0,R33/'Target Assumptions'!R52) -> 2.092532166
B42: EPS - Diluted | D42: =+IF(ISERROR(D33/'Target Assumptions'!D53),0,D33/'Target Assumptions'!D53) -> 0 | E42: =+IF(ISERROR(E33/'Target Assumptions'!E53),0,E33/'Target Assumptions'!E53) -> 0 | F42: =+IF(ISERROR(F33/'Target Assumptions'!F53),0,F33/'Target Assumptions'!F53) -> 0 | G42: =+IF(ISERROR(G33/'Target Assumptions'!G53),0,G33/'Target Assumptions'!G53) -> 0 | H42: =+IF(ISERROR(H33/'Target Assumptions'!H53),0,H33/'Target Assumptions'!H53) -> 0.9255014327 | I42: =+IF(ISERROR(I33/'Target Assumptions'!I53),0,I33/'Target Assumptions'!I53) -> 0 | J42: =+IF(ISERROR(J33/'Target Assumptions'!J53),0,J33/'Target Assumptions'!J53) -> 1.014643289 | K42: =+IF(ISERROR(K33/'Target Assumptions'!K53),0,K33/'Target Assumptions'!K53) -> 0 | L42: =+IF(ISERROR(L33/'Target Assumptions'!L53),0,L33/'Target Assumptions'!L53) -> 1.253394464 | M42: =+IF(ISERROR(M33/'Target Assumptions'!M53),0,M33/'Target Assumptions'!M53) -> 0 | N42: =+IF(ISERROR(N33/'Target Assumptions'!N53),0,N33/'Target Assumptions'!N53) -> 1.504702983 | O42: =+IF(ISERROR(O33/'Target Assumptions'!O53),0,O33/'Target Assumptions'!O53) -> 0 | P42: =+IF(ISERROR(P33/'Target Assumptions'!P53),0,P33/'Target Assumptions'!P53) -> 1.769350009 | Q42: =+IF(ISERROR(Q33/'Target Assumptions'!Q53),0,Q33/'Target Assumptions'!Q53) -> 0 | R42: =+IF(ISERROR(R33/'Target Assumptions'!R53),0,R33/'Target Assumptions'!R53) -> 2.048163289
B44: Other Financial Data
B46: Depreciation & Amortization | D46: ='Target Assumptions'!D34+'Target Assumptions'!D36+'Target Assumptions'!D37 -> 422.6 | F46: ='Target Assumptions'!F34+'Target Assumptions'!F36+'Target Assumptions'!F37 -> 437.5 | H46: ='Target Assumptions'!H34+'Target Assumptions'!H36+'Target Assumptions'!H37 -> 428.9 | J46: ='Target Assumptions'!J34+'Target Assumptions'!J36+'Target Assumptions'!J37 -> 433.63896 | L46: ='Target Assumptions'!L34+'Target Assumptions'!L36+'Target Assumptions'!L37 -> 440.9891028 | N46: ='Target Assumptions'!N34+'Target Assumptions'!N36+'Target Assumptions'!N37 -> 448.7435035 | P46: ='Target Assumptions'!P34+'Target Assumptions'!P36+'Target Assumptions'!P37 -> 456.9243961 | R46: ='Target Assumptions'!R34+'Target Assumptions'!R36+'Target Assumptions'!R37 -> 465.5552379
B47: Capital Expenditures | D47: ='Target Assumptions'!D32 -> 26.7 | F47: ='Target Assumptions'!F32 -> 13.8 | H47: ='Target Assumptions'!H32 -> 10.3 | J47: ='Target Assumptions'!J32 -> 16.70487 | L47: ='Target Assumptions'!L32 -> 17.62363785 | N47: ='Target Assumptions'!N32 -> 18.59293793 | P47: ='Target Assumptions'!P32 -> 19.61554952 | R47: ='Target Assumptions'!R32 -> 20.69440474
B49: EBITDA | D49: =D20+D46 -> 612.2 | F49: =F20+F46 -> 647.8 | H49: =H20+H46 -> 825.2 | J49: =J20+J46 -> 824.27605 | L49: =L20+L46 -> 886.0629928 | N49: =N20+N46 -> 951.9062878 | P49: =P20+P46 -> 1022.055357 | R49: =R20+R46 -> 1096.774394
B51: EPS (Excluding Unusual Items) | D51: =+IF(ISERROR((D33+D22*(1-'Target Assumptions'!D48))/'Target Assumptions'!D53),0,(D33+D22*(1-'Target Assumptions'!D48))/'Target Assumptions'!D53) -> 0 | E51: =+IF(ISERROR((E33+E22*(1-'Target Assumptions'!E48))/'Target Assumptions'!E53),0,(E33+E22*(1-'Target Assumptions'!E48))/'Target Assumptions'!E53) -> 0 | F51: =+IF(ISERROR((F33+F22*(1-'Target Assumptions'!F48))/'Target Assumptions'!F53),0,(F33+F22*(1-'Target Assumptions'!F48))/'Target Assumptions'!F53) -> 0 | G51: =+IF(ISERROR((G33+G22*(1-'Target Assumptions'!G48))/'Target Assumptions'!G53),0,(G33+G22*(1-'Target Assumptions'!G48))/'Target Assumptions'!G53) -> 0 | H51: =+IF(ISERROR((H33+H22*(1-'Target Assumptions'!H48))/'Target Assumptions'!H53),0,(H33+H22*(1-'Target Assumptions'!H48))/'Target Assumptions'!H53) -> 0.9255014327 | I51: =+IF(ISERROR((I33+I22*(1-'Target Assumptions'!I48))/'Target Assumptions'!I53),0,(I33+I22*(1-'Target Assumptions'!I48))/'Target Assumptions'!I53) -> 0 | J51: =+IF(ISERROR((J33+J22*(1-'Target Assumptions'!J48))/'Target Assumptions'!J53),0,(J33+J22*(1-'Target Assumptions'!J48))/'Target Assumptions'!J53) -> 1.014643289 | K51: =+IF(ISERROR((K33+K22*(1-'Target Assumptions'!K48))/'Target Assumptions'!K53),0,(K33+K22*(1-'Target Assumptions'!K48))/'Target Assumptions'!K53) -> 0 | L51: =+IF(ISERROR((L33+L22*(1-'Target Assumptions'!L48))/'Target Assumptions'!L53),0,(L33+L22*(1-'Target Assumptions'!L48))/'Target Assumptions'!L53) -> 1.253394464 | M51: =+IF(ISERROR((M33+M22*(1-'Target Assumptions'!M48))/'Target Assumptions'!M53),0,(M33+M22*(1-'Target Assumptions'!M48))/'Target Assumptions'!M53) -> 0 | N51: =+IF(ISERROR((N33+N22*(1-'Target Assumptions'!N48))/'Target Assumptions'!N53),0,(N33+N22*(1-'Target Assumptions'!N48))/'Target Assumptions'!N53) -> 1.504702983 | O51: =+IF(ISERROR((O33+O22*(1-'Target Assumptions'!O48))/'Target Assumptions'!O53),0,(O33+O22*(1-'Target Assumptions'!O48))/'Target Assumptions'!O53) -> 0 | P51: =+IF(ISERROR((P33+P22*(1-'Target Assumptions'!P48))/'Target Assumptions'!P53),0,(P33+P22*(1-'Target Assumptions'!P48))/'Target Assumptions'!P53) -> 1.769350009 | Q51: =+IF(ISERROR((Q33+Q22*(1-'Target Assumptions'!Q48))/'Target Assumptions'!Q53),0,(Q33+Q22*(1-'Target Assumptions'!Q48))/'Target Assumptions'!Q53) -> 0 | R51: =+IF(ISERROR((R33+R22*(1-'Target Assumptions'!R48))/'Target Assumptions'!R53),0,(R33+R22*(1-'Target Assumptions'!R48))/'Target Assumptions'!R53) -> 2.048163289
B53: Cash EPS | F53: =+IF(ISERROR('Target CF'!F27/'Target Assumptions'!F53),0,'Target CF'!F27/'Target Assumptions'!F53) -> 0 | G53: =+IF(ISERROR('Target CF'!G27/'Target Assumptions'!G53),0,'Target CF'!G27/'Target Assumptions'!G53) -> 0 | H53: =+IF(ISERROR('Target CF'!H27/'Target Assumptions'!H53),0,'Target CF'!H27/'Target Assumptions'!H53) -> 0.5564469914 | I53: =+IF(ISERROR('Target CF'!I27/'Target Assumptions'!I53),0,'Target CF'!I27/'Target Assumptions'!I53) -> 0 | J53: =+IF(ISERROR('Target CF'!J27/'Target Assumptions'!J53),0,'Target CF'!J27/'Target Assumptions'!J53) -> 4.969006447 | K53: =+IF(ISERROR('Target CF'!K27/'Target Assumptions'!K53),0,'Target CF'!K27/'Target Assumptions'!K53) -> 0 | L53: =+IF(ISERROR('Target CF'!L27/'Target Assumptions'!L53),0,'Target CF'!L27/'Target Assumptions'!L53) -> 3.812038936 | M53: =+IF(ISERROR('Target CF'!M27/'Target Assumptions'!M53),0,'Target CF'!M27/'Target Assumptions'!M53) -> 0 | N53: =+IF(ISERROR('Target CF'!N27/'Target Assumptions'!N53),0,'Target CF'!N27/'Target Assumptions'!N53) -> 4.109517028 | O53: =+IF(ISERROR('Target CF'!O27/'Target Assumptions'!O53),0,'Target CF'!O27/'Target Assumptions'!O53) -> 0 | P53: =+IF(ISERROR('Target CF'!P27/'Target Assumptions'!P53),0,'Target CF'!P27/'Target Assumptions'!P53) -> 4.422872952 | Q53: =+IF(ISERROR('Target CF'!Q27/'Target Assumptions'!Q53),0,'Target CF'!Q27/'Target Assumptions'!Q53) -> 0 | R53: =+IF(ISERROR('Target CF'!R27/'Target Assumptions'!R53),0,'Target CF'!R27/'Target Assumptions'!R53) -> 4.753074119
B55: Dividends per share | F55: ='Target Assumptions'!F44 -> 0 | H55: ='Target Assumptions'!H44 -> 0 | J55: ='Target Assumptions'!J44 -> 0 | L55: ='Target Assumptions'!L44 -> 0 | N55: ='Target Assumptions'!N44 -> 0 | P55: ='Target Assumptions'!P44 -> 0 | R55: ='Target Assumptions'!R44 -> 0
B57: Dividend-adjusted Cash EPS | F57: =F53-F55 -> 0 | H57: =H53-H55 -> 0.5564469914 | J57: =J53-J55 -> 4.969006447 | L57: =L53-L55 -> 3.812038936 | N57: =N53-N55 -> 4.109517028 | P57: =P53-P55 -> 4.422872952 | R57: =R53-R55 -> 4.753074119

Sheet Target BS
A1: ='Target IS'!A1 -> Target | S1: Balance Sheet
A2: ($Millions, except per share data)
D6: ='Target IS'!D6 -> Actual | J6: ='Target IS'!J6 -> Projections for the Period Ending December 31,
D7: ='Target IS'!D7 -> 2013 | F7: ='Target IS'!F7 -> 2014 | H7: ='Target IS'!H7 -> 2015 | J7: ='Target IS'!J7 -> 2016 | L7: ='Target IS'!L7 -> 2017 | N7: ='Target IS'!N7 -> 2018 | P7: ='Target IS'!P7 -> 2019 | R7: ='Target IS'!R7 -> 2020
B9: Cash | D9: =813.6+23.1+18.2 -> 854.9 | E9: 187.3 | F9: =838.8+26.6+16.7 -> 882.1 | H9: =255.5+5.7+15.1 -> 276.3 | J9: ='Target CF'!J52 -> 826.6867549 | L9: ='Target CF'!L52 -> 1174.263911 | N9: ='Target CF'!N52 -> 1572.781695 | P9: ='Target CF'!P52 -> 2024.957475 | R9: ='Target CF'!R52 -> 2533.674505
B10: Accounts Receivable | D10: 587.5 | F10: 637 | H10: 697.3 | J10: =('Target Assumptions'!J21*'Target IS'!J9)/365 -> 675.0598151 | L10: =('Target Assumptions'!L21*'Target IS'!L9)/365 -> 712.1881049 | N10: =('Target Assumptions'!N21*'Target IS'!N9)/365 -> 751.3584507 | P10: =('Target Assumptions'!P21*'Target IS'!P9)/365 -> 792.6831655 | R10: =('Target Assumptions'!R21*'Target IS'!R9)/365 -> 836.2807396
B11: Inventory | D11: 323.1 | F11: 377.9 | H11: 403.5 | J11: =('Target Assumptions'!J22*'Target IS'!J11)/365 -> 413.2739071 | L11: =('Target Assumptions'!L22*'Target IS'!L11)/365 -> 436.003972 | N11: =('Target Assumptions'!N22*'Target IS'!N11)/365 -> 459.9841905 | P11: =('Target Assumptions'!P22*'Target IS'!P11)/365 -> 485.283321 | R11: =('Target Assumptions'!R22*'Target IS'!R11)/365 -> 511.9739036
B12: Other | D12: =91+190 -> 281 | F12: =40.1+156.5 -> 196.6 | H12: =105.4+142.7 -> 248.1 | J12: ='Target IS'!J9*'Target Assumptions'!J23 -> 229.6919625 | L12: ='Target IS'!L9*'Target Assumptions'!L23 -> 242.3250204 | N12: ='Target IS'!N9*'Target Assumptions'!N23 -> 255.6528966 | P12: ='Target IS'!P9*'Target Assumptions'!P23 -> 269.7138059 | R12: ='Target IS'!R9*'Target Assumptions'!R23 -> 284.5480652
B14: Current Assets | D14: =SUM(D9:D12) -> 2046.5 | F14: =SUM(F9:F12) -> 2093.6 | H14: =SUM(H9:H12) -> 1625.2 | J14: =SUM(J9:J12) -> 2144.71244 | L14: =SUM(L9:L12) -> 2564.781009 | N14: =SUM(N9:N12) -> 3039.777233 | P14: =SUM(P9:P12) -> 3572.637768 | R14: =SUM(R9:R12) -> 4166.477213
B16: Property, Plant, & Equipment | D16: =22.4+848 -> 870.4 | F16: =25+833.7 -> 858.7 | H16: =844.7+26.7 -> 871.4 | J16: =H16+'Target Assumptions'!J32 -> 888.10487 | L16: =J16+'Target Assumptions'!L32 -> 905.7285079 | N16: =L16+'Target Assumptions'!N32 -> 924.3214458 | P16: =N16+'Target Assumptions'!P32 -> 943.9369953 | R16: =P16+'Target Assumptions'!R32 -> 964.6314
B17: Accumulated Depreciation | D17: 0 | F17: 0 | H17: 0 | J17: =H17-'Target Assumptions'!J34 -> -133.63896 | L17: =J17-'Target Assumptions'!L34 -> -274.6280628 | N17: =L17-'Target Assumptions'!N34 -> -423.3715663 | P17: =N17-'Target Assumptions'!P34 -> -580.2959624 | R17: =P17-'Target Assumptions'!R34 -> -745.8512003
B19: Net Property, Plant, & Equipment | D19: =SUM(D16:D17) -> 870.4 | F19: =SUM(F16:F17) -> 858.7 | H19: =SUM(H16:H17) -> 871.4 | J19: =SUM(J16:J17) -> 754.46591 | L19: =SUM(L16:L17) -> 631.1004451 | N19: =SUM(N16:N17) -> 500.9498795 | P19: =SUM(P16:P17) -> 363.6410329 | R19: =SUM(R16:R17) -> 218.7801997
B21: Goodwill | D21: 4372.1 | F21: 4366.7 | H21: 4503.4 | J21: =H21-'Target Assumptions'!J36 -> 4503.4 | L21: =J21-'Target Assumptions'!L36 -> 4503.4 | N21: =L21-'Target Assumptions'!N36 -> 4503.4 | P21: =N21-'Target Assumptions'!P36 -> 4503.4 | R21: =P21-'Target Assumptions'!R36 -> 4503.4
B22: Intangible Assets | D22: 2040.2 | F22: 1746.6 | H22: 1525.8 | J22: =H22-'Target Assumptions'!J37 -> 1225.8 | L22: =J22-'Target Assumptions'!L37 -> 925.8 | N22: =L22-'Target Assumptions'!N37 -> 625.8 | P22: =N22-'Target Assumptions'!P37 -> 325.8 | R22: =P22-'Target Assumptions'!R37 -> 25.8
B23: Deferred Taxes | D23: 26.8 | F23: 28.8 | H23: 23 | J23: =H23+'Target Assumptions'!J40 -> 23 | L23: =J23+'Target Assumptions'!L40 -> 23 | N23: =L23+'Target Assumptions'!N40 -> 23 | P23: =N23+'Target Assumptions'!P40 -> 23 | R23: =P23+'Target Assumptions'!R40 -> 23
B24: Equity in Affiliates | D24: 0 | F24: 0 | H24: 0 | J24: =H24-'Target IS'!J23-'Target Assumptions'!J42 -> 0 | L24: =J24-'Target IS'!L23-'Target Assumptions'!L42 -> 0 | N24: =L24-'Target IS'!N23-'Target Assumptions'!N42 -> 0 | P24: =N24-'Target IS'!P23-'Target Assumptions'!P42 -> 0 | R24: =P24-'Target IS'!R23-'Target Assumptions'!R42 -> 0
B25: Other | D25: 130.2 | F25: 93.6 | H25: 89.2 | J25: =H25+'Target Assumptions'!J26 -> 89.2 | L25: =J25+'Target Assumptions'!L26 -> 89.2 | N25: =L25+'Target Assumptions'!N26 -> 89.2 | P25: =N25+'Target Assumptions'!P26 -> 89.2 | R25: =P25+'Target Assumptions'!R26 -> 89.2
B27: Total Assets | D27: =D14+D19+SUM(D21:D25) -> 9486.2 | F27: =F14+F19+SUM(F21:F25) -> 9188 | H27: =H14+H19+SUM(H21:H25) -> 8638 | J27: =J14+J19+SUM(J21:J25) -> 8740.57835 | L27: =L14+L19+SUM(L21:L25) -> 8737.281454 | N27: =N14+N19+SUM(N21:N25) -> 8782.127112 | P27: =P14+P19+SUM(P21:P25) -> 8877.678801 | R27: =R14+R19+SUM(R21:R25) -> 9026.657413
B29: Accounts Payable | D29: 174.4 | F29: 178.4 | H29: 186.6 | J29: =('Target Assumptions'!J24*'Target IS'!J11)/365 -> 196.7970986 | L29: =('Target Assumptions'!L24*'Target IS'!L11)/365 -> 207.6209391 | N29: =('Target Assumptions'!N24*'Target IS'!N11)/365 -> 219.0400907 | P29: =('Target Assumptions'!P24*'Target IS'!P11)/365 -> 231.0872957 | R29: =('Target Assumptions'!R24*'Target IS'!R11)/365 -> 243.797097
B30: Other | D30: =1146.4-174.4 -> 972 | F30: =1496.3-178.4 -> 1317.9 | H30: =1192.4-186.6 -> 1005.8 | J30: ='Target IS'!J11*'Target Assumptions'!J25 -> 1221.125997 | L30: ='Target IS'!L11*'Target Assumptions'!L25 -> 1288.287927 | N30: ='Target IS'!N11*'Target Assumptions'!N25 -> 1359.143763 | P30: ='Target IS'!P11*'Target Assumptions'!P25 -> 1433.89667 | R30: ='Target IS'!R11*'Target Assumptions'!R25 -> 1512.760987
B32: Current Liabilities | D32: =SUM(D29:D30) -> 1146.4 | F32: =SUM(F29:F30) -> 1496.3 | H32: =SUM(H29:H30) -> 1192.4 | J32: =SUM(J29:J30) -> 1417.923096 | L32: =SUM(L29:L30) -> 1495.908866 | N32: =SUM(N29:N30) -> 1578.183854 | P32: =SUM(P29:P30) -> 1664.983965 | R32: =SUM(R29:R30) -> 1756.558084
B34: Revolving Credit Facility | D34: 0 | F34: 0 | H34: 0 | J34: ='Target CF'!J51 -> 0 | L34: ='Target CF'!L51 -> 0 | N34: ='Target CF'!N51 -> 0 | P34: ='Target CF'!P51 -> 0 | R34: ='Target CF'!R51 -> 0
B35: Senior Debt | D35: 2727.6 | F35: 2297.7 | H35: 2060.9 | J35: =H35-'Target Assumptions'!J38 -> 1760.9 | L35: =J35-'Target Assumptions'!L38 -> 1460.9 | N35: =L35-'Target Assumptions'!N38 -> 1160.9 | P35: =N35-'Target Assumptions'!P38 -> 860.9 | R35: =P35-'Target Assumptions'!R38 -> 560.9
B36: Subordinated Debt | D36: 0 | F36: 0 | H36: 0 | J36: =H36-'Target Assumptions'!J39 -> 0 | L36: =J36-'Target Assumptions'!L39 -> 0 | N36: =L36-'Target Assumptions'!N39 -> 0 | P36: =N36-'Target Assumptions'!P39 -> 0 | R36: =P36-'Target Assumptions'!R39 -> 0
B38: Total | D38: =SUM(D34:D36) -> 2727.6 | F38: =SUM(F34:F36) -> 2297.7 | H38: =SUM(H34:H36) -> 2060.9 | J38: =SUM(J34:J36) -> 1760.9 | L38: =SUM(L34:L36) -> 1460.9 | N38: =SUM(N34:N36) -> 1160.9 | P38: =SUM(P34:P36) -> 860.9 | R38: =SUM(R34:R36) -> 560.9
B40: Deferred Taxes | D40: 558 | F40: 410.6 | H40: 287.4 | J40: =H40+'Target Assumptions'!J41 -> 287.4 | L40: =J40+'Target Assumptions'!L41 -> 287.4 | N40: =L40+'Target Assumptions'!N41 -> 287.4 | P40: =N40+'Target Assumptions'!P41 -> 287.4 | R40: =P40+'Target Assumptions'!R41 -> 287.4
B41: Other | D41: =145.2+114.7+356.2 -> 616.1 | F41: =190.6+102.9+90.6 -> 384.1 | H41: =209.6+106.4+127.9 -> 443.9 | J41: =H41+'Target Assumptions'!J27 -> 443.9 | L41: =J41+'Target Assumptions'!L27 -> 443.9 | N41: =L41+'Target Assumptions'!N27 -> 443.9 | P41: =N41+'Target Assumptions'!P27 -> 443.9 | R41: =P41+'Target Assumptions'!R27 -> 443.9
B43: Total Liabilities | D43: =D32+D38+SUM(D40:D41) -> 5048.1 | F43: =F32+F38+SUM(F40:F41) -> 4588.7 | H43: =H32+H38+SUM(H40:H41) -> 3984.6 | J43: =J32+J38+SUM(J40:J41) -> 3910.123096 | L43: =L32+L38+SUM(L40:L41) -> 3688.108866 | N43: =N32+N38+SUM(N40:N41) -> 3470.383854 | P43: =P32+P38+SUM(P40:P41) -> 3257.183965 | R43: =R32+R38+SUM(R40:R41) -> 3048.758084
B45: Common Stock | D45: =2.1+5222.9 -> 5225 | F45: =2.1+5441.1 -> 5443.2 | H45: =2.1+5731.6 -> 5733.7 | J45: =H45 -> 5733.7 | L45: =J45 -> 5733.7 | N45: =L45 -> 5733.7 | P45: =N45 -> 5733.7 | R45: =P45 -> 5733.7
B46: Preferred Equity | D46: 0 | F46: 0 | H46: 0 | J46: =H46 -> 0 | L46: =J46 -> 0 | N46: =L46 -> 0 | P46: =N46 -> 0 | R46: =P46 -> 0
B47: Retained Earnings | D47: 532.5 | F47: 911 | H47: 1341.8 | J47: =H47+'Target IS'!J38+'Target CF'!J37 -> 1518.855254 | L47: =J47+'Target IS'!L38+'Target CF'!L37 -> 1737.572588 | N47: =L47+'Target IS'!N38+'Target CF'!N37 -> 2000.143259 | P47: =N47+'Target IS'!P38+'Target CF'!P37 -> 2308.894835 | R47: =P47+'Target IS'!R38+'Target CF'!R37 -> 2666.299329
B48: Treasury Stock | D48: -1420 | F48: -1820 | H48: =-2482 -> -2482 | J48: =H48 -> -2482 | L48: =J48 -> -2482 | N48: =L48 -> -2482 | P48: =N48 -> -2482 | R48: =P48 -> -2482
B49: Other Adjustments | D49: 96.6 | F49: 65.1 | H49: 59.1 | J49: =H49 -> 59.1 | L49: =J49 -> 59.1 | N49: =L49 -> 59.1 | P49: =N49 -> 59.1 | R49: =P49 -> 59.1
B50: Noncontrolling Interest | D50: 4 | F50: 0 | H50: 0.8 | J50: =H50+'Target IS'!J30 -> 0.8 | L50: =J50+'Target IS'!L30 -> 0.8 | N50: =L50+'Target IS'!N30 -> 0.8 | P50: =N50+'Target IS'!P30 -> 0.8 | R50: =P50+'Target IS'!R30 -> 0.8
B51: Total Stockholders Equity | D51: =SUM(D45:D50) -> 4438.1 | E51: =SUM(E45:E50) -> 0 | F51: 4599.3 | G51: 0 | H51: 4653.4 | J51: =SUM(J45:J50) -> 4830.455254 | K51: =SUM(K45:K50) -> 0 | L51: 5049.172588 | M51: 0 | N51: 5311.743259 | O51: 0 | P51: 5620.494835 | Q51: 0 | R51: 5977.899329
B53: Total Liabilities and Equity | D53: =D43+D51 -> 9486.2 | F53: =F43+F51 -> 9188 | H53: =H43+H51 -> 8638 | J53: =J43+J51 -> 8740.57835 | L53: =L43+L51 -> 8737.281454 | N53: =N43+N51 -> 8782.127112 | P53: =P43+P51 -> 8877.678801 | R53: =R43+R51 -> 9026.657413
B57: Reconciliation | D57: =D53-D27 -> 0 | F57: =F53-F27 -> 0 | H57: =H53-H27 -> 0 | J57: =J53-J27 -> 0 | L57: =L53-L27 -> 0 | N57: =N53-N27 -> 0 | P57: =P53-P27 -> 0 | R57: =R53-R27 -> 0

Sheet Target CF
A1: ='Target BS'!A1 -> Target | S1: Statement of Cash Flow
A2: ($Millions, except per share data)
F6: ='Target BS'!D6 -> Actual | J6: ='Target BS'!J6 -> Projections for the Period Ending December 31,
F7: ='Target BS'!F7 -> 2014 | H7: ='Target BS'!H7 -> 2015 | J7: ='Target BS'!J7 -> 2016 | L7: ='Target BS'!L7 -> 2017 | N7: ='Target BS'!N7 -> 2018 | P7: ='Target BS'!P7 -> 2019 | R7: ='Target BS'!R7 -> 2020
B9: Net Income | F9: ='Target IS'!F38 -> -59 | H9: ='Target IS'!H38 -> 161.9 | J9: ='Target IS'!J38 -> 177.055254 | L9: ='Target IS'!L38 -> 218.717334 | N9: ='Target IS'!N38 -> 262.5706706 | P9: ='Target IS'!P38 -> 308.7515766 | R9: ='Target IS'!R38 -> 357.4044939
B11: Depreciation & Amortization | F11: ='Target IS'!F46 -> 437.5 | H11: ='Target IS'!H46 -> 428.9 | J11: ='Target IS'!J46 -> 433.63896 | L11: ='Target IS'!L46 -> 440.9891028 | N11: ='Target IS'!N46 -> 448.7435035 | P11: ='Target IS'!P46 -> 456.9243961 | R11: ='Target IS'!R46 -> 465.5552379
B13: Income from Affiliates, Net of Dividends | F13: ='Target IS'!F23-'Target Assumptions'!F42 -> 0 | H13: ='Target IS'!H23-'Target Assumptions'!H42 -> 0 | J13: ='Target IS'!J23+'Target Assumptions'!J42 -> 0 | L13: ='Target IS'!L23+'Target Assumptions'!L42 -> 0 | N13: ='Target IS'!N23+'Target Assumptions'!N42 -> 0 | P13: ='Target IS'!P23+'Target Assumptions'!P42 -> 0 | R13: ='Target IS'!R23+'Target Assumptions'!R42 -> 0
A15: Change in
B17: Accounts Receivable | F17: ='Target BS'!D10-'Target BS'!F10 -> -49.5 | H17: ='Target BS'!F10-'Target BS'!H10 -> -60.3 | J17: ='Target BS'!H10-'Target BS'!J10 -> 22.24018493 | L17: ='Target BS'!J10-'Target BS'!L10 -> -37.12828983 | N17: ='Target BS'!L10-'Target BS'!N10 -> -39.17034577 | P17: ='Target BS'!N10-'Target BS'!P10 -> -41.32471479 | R17: ='Target BS'!P10-'Target BS'!R10 -> -43.5975741
B18: Inventory | F18: ='Target BS'!D11-'Target BS'!F11 -> -54.8 | H18: ='Target BS'!F11-'Target BS'!H11 -> -25.6 | J18: ='Target BS'!H11-'Target BS'!J11 -> -9.773907123 | L18: ='Target BS'!J11-'Target BS'!L11 -> -22.73006489 | N18: ='Target BS'!L11-'Target BS'!N11 -> -23.98021846 | P18: ='Target BS'!N11-'Target BS'!P11 -> -25.29913048 | R18: ='Target BS'!P11-'Target BS'!R11 -> -26.69058265
B19: Other Current Assets | F19: ='Target BS'!D12-'Target BS'!F12 -> 84.4 | H19: ='Target BS'!F12-'Target BS'!H12 -> -51.5 | J19: ='Target BS'!H12-'Target BS'!J12 -> 18.4080375 | L19: ='Target BS'!J12-'Target BS'!L12 -> -12.63305794 | N19: ='Target BS'!L12-'Target BS'!N12 -> -13.32787612 | P19: ='Target BS'!N12-'Target BS'!P12 -> -14.06090931 | R19: ='Target BS'!P12-'Target BS'!R12 -> -14.83425932
B20: Accounts Payable | F20: ='Target BS'!F29-'Target BS'!D29 -> 4 | H20: ='Target BS'!H29-'Target BS'!F29 -> 8.2 | J20: ='Target BS'!J29-'Target BS'!H29 -> 10.19709863 | L20: ='Target BS'!L29-'Target BS'!J29 -> 10.82384042 | N20: ='Target BS'!N29-'Target BS'!L29 -> 11.41915165 | P20: ='Target BS'!P29-'Target BS'!N29 -> 12.04720499 | R20: ='Target BS'!R29-'Target BS'!P29 -> 12.70980126
B21: Other Current Liabilities | F21: ='Target BS'!F30-'Target BS'!D30 -> 345.9 | H21: ='Target BS'!H30-'Target BS'!F30 -> -312.1 | J21: ='Target BS'!J30-'Target BS'!H30 -> 215.325997 | L21: ='Target BS'!L30-'Target BS'!J30 -> 67.16192984 | N21: ='Target BS'!N30-'Target BS'!L30 -> 70.85583598 | P21: ='Target BS'!P30-'Target BS'!N30 -> 74.75290695 | R21: ='Target BS'!R30-'Target BS'!P30 -> 78.86431684
B22: Other Assets | F22: ='Target BS'!D25-'Target BS'!F25 -> 36.6 | H22: ='Target BS'!F25-'Target BS'!H25 -> 4.4 | J22: ='Target BS'!H25-'Target BS'!J25 -> 0 | L22: ='Target BS'!J25-'Target BS'!L25 -> 0 | N22: ='Target BS'!L25-'Target BS'!N25 -> 0 | P22: ='Target BS'!N25-'Target BS'!P25 -> 0 | R22: ='Target BS'!P25-'Target BS'!R25 -> 0
B23: Deferred Taxes | F23: ='Target BS'!F40-'Target BS'!D40+'Target BS'!D23-'Target BS'!F23 -> -149.4 | H23: ='Target BS'!H40-'Target BS'!F40+'Target BS'!F23-'Target BS'!H23 -> -117.4 | J23: ='Target BS'!J40-'Target BS'!H40+'Target BS'!H23-'Target BS'!J23 -> 0 | L23: ='Target BS'!L40-'Target BS'!J40+'Target BS'!J23-'Target BS'!L23 -> 0 | N23: ='Target BS'!N40-'Target BS'!L40+'Target BS'!L23-'Target BS'!N23 -> 0 | P23: ='Target BS'!P40-'Target BS'!N40+'Target BS'!N23-'Target BS'!P23 -> 0 | R23: ='Target BS'!R40-'Target BS'!P40+'Target BS'!P23-'Target BS'!R23 -> 0
B24: Minority Interest | F24: ='Target BS'!F50-'Target BS'!D50 -> -4 | H24: ='Target BS'!H50-'Target BS'!F50 -> 0.8 | J24: ='Target BS'!J50-'Target BS'!H50 -> 0 | L24: ='Target BS'!L50-'Target BS'!J50 -> 0 | N24: ='Target BS'!N50-'Target BS'!L50 -> 0 | P24: ='Target BS'!P50-'Target BS'!N50 -> 0 | R24: ='Target BS'!R50-'Target BS'!P50 -> 0
B25: Other Liabilities | F25: ='Target BS'!F41-'Target BS'!D41 -> -232 | H25: ='Target BS'!H41-'Target BS'!F41 -> 59.8 | J25: ='Target BS'!J41-'Target BS'!H41 -> 0 | L25: ='Target BS'!L41-'Target BS'!J41 -> 0 | N25: ='Target BS'!N41-'Target BS'!L41 -> 0 | P25: ='Target BS'!P41-'Target BS'!N41 -> 0 | R25: ='Target BS'!R41-'Target BS'!P41 -> 0
A27: Cash Flow from Operating Activities | F27: =SUM(F9:F25) -> 359.7 | H27: =SUM(H9:H25) -> 97.1 | J27: =SUM(J9:J25) -> 867.0916249 | L27: =SUM(L9:L25) -> 665.2007944 | N27: =SUM(N9:N25) -> 717.1107213 | P27: =SUM(P9:P25) -> 771.7913301 | R27: =SUM(R9:R25) -> 829.4114338
B29: Capital Expenditures | F29: =-'Target IS'!F47 -> -13.8 | H29: =-'Target IS'!H47 -> -10.3 | J29: =-'Target IS'!J47 -> -16.70487 | L29: =-'Target IS'!L47 -> -17.62363785 | N29: =-'Target IS'!N47 -> -18.59293793 | P29: =-'Target IS'!P47 -> -19.61554952 | R29: =-'Target IS'!R47 -> -20.69440474
B30: Acquisitions | F30: -0.1 | H30: -149 | J30: 0 | K30: 0 | L30: 0 | M30: 0 | N30: 0 | O30: 0 | P30: 0 | Q30: 0 | R30: 0
B31: Sale of Assets | F31: 3.4 | H31: 25.5 | J31: 0 | L31: 0 | N31: 0 | P31: 0 | R31: 0
A33: Cash Flow from Investing Activities | F33: =SUM(F29:F31) -> -10.5 | H33: =SUM(H29:H31) -> -133.8 | J33: =SUM(J29:J31) -> -16.70487 | L33: =SUM(L29:L31) -> -17.62363785 | N33: =SUM(N29:N31) -> -18.59293793 | P33: =SUM(P29:P31) -> -19.61554952 | R33: =SUM(R29:R31) -> -20.69440474
B35: Net Change in Equity | F35: ='Target BS'!F45-'Target BS'!D45+'Target BS'!F46-'Target BS'!D46+'Target BS'!F48-'Target BS'!D48+'Target BS'!F49-'Target BS'!D49 -> -213.3 | H35: ='Target BS'!H45-'Target BS'!F45+'Target BS'!H46-'Target BS'!F46+'Target BS'!H48-'Target BS'!F48+'Target BS'!H49-'Target BS'!F49 -> -377.5 | J35: ='Target BS'!J45-'Target BS'!H45+'Target BS'!J46-'Target BS'!H46+'Target BS'!J48-'Target BS'!H48+'Target BS'!J49-'Target BS'!H49 -> 0 | L35: ='Target BS'!L45-'Target BS'!J45+'Target BS'!L46-'Target BS'!J46+'Target BS'!L48-'Target BS'!J48+'Target BS'!L49-'Target BS'!J49 -> 0 | N35: ='Target BS'!N45-'Target BS'!L45+'Target BS'!N46-'Target BS'!L46+'Target BS'!N48-'Target BS'!L48+'Target BS'!N49-'Target BS'!L49 -> 0 | P35: ='Target BS'!P45-'Target BS'!N45+'Target BS'!P46-'Target BS'!N46+'Target BS'!P48-'Target BS'!N48+'Target BS'!P49-'Target BS'!N49 -> 0 | R35: ='Target BS'!R45-'Target BS'!P45+'Target BS'!R46-'Target BS'!P46+'Target BS'!R48-'Target BS'!P48+'Target BS'!R49-'Target BS'!P49 -> 0
B36: Net Change in Debt | F36: ='Target BS'!F35-'Target BS'!D35+'Target BS'!F36-'Target BS'!D36 -> -429.9 | H36: ='Target BS'!H35-'Target BS'!F35+'Target BS'!H36-'Target BS'!F36 -> -236.8 | J36: ='Target BS'!J35-'Target BS'!H35+'Target BS'!J36-'Target BS'!H36 -> -300 | L36: ='Target BS'!L35-'Target BS'!J35+'Target BS'!L36-'Target BS'!J36 -> -300 | N36: ='Target BS'!N35-'Target BS'!L35+'Target BS'!N36-'Target BS'!L36 -> -300 | P36: ='Target BS'!P35-'Target BS'!N35+'Target BS'!P36-'Target BS'!N36 -> -300 | R36: ='Target BS'!R35-'Target BS'!P35+'Target BS'!R36-'Target BS'!P36 -> -300
B37: Dividends Paid | F37: =-'Target Assumptions'!F46 -> 0 | H37: =-'Target Assumptions'!H46 -> 0 | J37: =-'Target Assumptions'!J46 -> 0 | L37: =-'Target Assumptions'!L46 -> 0 | N37: =-'Target Assumptions'!N46 -> 0 | P37: =-'Target Assumptions'!P46 -> 0 | R37: =-'Target Assumptions'!R46 -> 0
A39: Cash Flow from Financing Activities | F39: =SUM(F35:F37) -> -643.2 | H39: =SUM(H35:H37) -> -614.3 | J39: =SUM(J35:J37) -> -300 | L39: =SUM(L35:L37) -> -300 | N39: =SUM(N35:N37) -> -300 | P39: =SUM(P35:P37) -> -300 | R39: =SUM(R35:R37) -> -300
B41: Net Change in Cash | F41: =F27+F33+F39 -> -294 | H41: =H27+H33+H39 -> -651 | J41: =J27+J33+J39 -> 550.3867549 | L41: =L27+L33+L39 -> 347.5771565 | N41: =N27+N33+N39 -> 398.5177834 | P41: =P27+P33+P39 -> 452.1757806 | R41: =R27+R33+R39 -> 508.7170291
B43: Beginning Cash Balance | F43: ='Target BS'!D9 -> 854.9 | H43: ='Target BS'!F9 -> 882.1 | J43: ='Target BS'!H9 -> 276.3 | L43: ='Target BS'!J9 -> 826.6867549 | N43: ='Target BS'!L9 -> 1174.263911 | P43: ='Target BS'!N9 -> 1572.781695 | R43: ='Target BS'!P9 -> 2024.957475
B45: Cash Available for Revolving Credit | F45: =F41+F43 -> 560.9 | H45: =H41+H43 -> 231.1 | J45: =J41+J43 -> 826.6867549 | L45: =L41+L43 -> 1174.263911 | N45: =N41+N43 -> 1572.781695 | P45: =P41+P43 -> 2024.957475 | R45: =R41+R43 -> 2533.674505
B49: Beginning Revolver | J49: ='Target BS'!H34 -> 0 | L49: ='Target BS'!J34 -> 0 | N49: ='Target BS'!L34 -> 0 | P49: ='Target BS'!N34 -> 0 | R49: ='Target BS'!P34 -> 0
B50: Total Repayment | J50: =IF(J45-J49<$F$54,J45-$F$54,J49) -> 0 | L50: =IF(L45-L49<$F$54,L45-$F$54,L49) -> 0 | N50: =IF(N45-N49<$F$54,N45-$F$54,N49) -> 0 | P50: =IF(P45-P49<$F$54,P45-$F$54,P49) -> 0 | R50: =IF(R45-R49<$F$54,R45-$F$54,R49) -> 0
B51: Ending Revolving Credit Facility | J51: =J49-J50 -> 0 | L51: =L49-L50 -> 0 | N51: =N49-N50 -> 0 | P51: =P49-P50 -> 0 | R51: =R49-R50 -> 0
B52: Ending Cash | J52: =IF(J45-J49<0,$F$54,J45-J50) -> 826.6867549 | L52: =IF(L45-L49<0,$F$54,L45-L50) -> 1174.263911 | N52: =IF(N45-N49<0,$F$54,N45-N50) -> 1572.781695 | P52: =IF(P45-P49<0,$F$54,P45-P50) -> 2024.957475 | R52: =IF(R45-R49<0,$F$54,R45-R50) -> 2533.674505
B54: Minimum Cash Balance | F54: 0

Sheet Acquirer Assumptions
A1: Acquirer | S1: Assumptions
B2: ($Millions, except per share data)
D6: Actual | J6: Projections for the Period Ending December 31,
D7: 2013 | F7: =D7+1 -> 2014 | H7: =F7+1 -> 2015 | J7: =H7+1 -> 2016 | L7: =J7+1 -> 2017 | N7: =L7+1 -> 2018 | P7: =N7+1 -> 2019 | R7: =P7+1 -> 2020
B9: Income Statement
B11: Sales Growth | D11: NA | F11: =+IF(ISERROR('Acquirer IS'!F9/'Acquirer IS'!D9-1),0,'Acquirer IS'!F9/'Acquirer IS'!D9-1) -> 0.1121609529 | G11: =+IF(ISERROR('Acquirer IS'!G9/'Acquirer IS'!E9-1),0,'Acquirer IS'!G9/'Acquirer IS'!E9-1) -> 0 | H11: =+IF(ISERROR('Acquirer IS'!H9/'Acquirer IS'!F9-1),0,'Acquirer IS'!H9/'Acquirer IS'!F9-1) -> 0.08228362806 | J11: 0.052 | L11: =J11 -> 0.052 | M11: =K11 -> 0 | N11: 0.052 | O11: 0 | P11: 0.052 | Q11: 0 | R11: 0.052
B12: COGS as a % of Sales | D12: =+IF(ISERROR('Acquirer IS'!D11/'Acquirer IS'!D9),0,'Acquirer IS'!D11/'Acquirer IS'!D9) -> 0.5899683444 | E12: =+IF(ISERROR('Acquirer IS'!E11/'Acquirer IS'!E9),0,'Acquirer IS'!E11/'Acquirer IS'!E9) -> 0 | F12: =+IF(ISERROR('Acquirer IS'!F11/'Acquirer IS'!F9),0,'Acquirer IS'!F11/'Acquirer IS'!F9) -> 0.5852510641 | G12: =+IF(ISERROR('Acquirer IS'!G11/'Acquirer IS'!G9),0,'Acquirer IS'!G11/'Acquirer IS'!G9) -> 0 | H12: =+IF(ISERROR('Acquirer IS'!H11/'Acquirer IS'!H9),0,'Acquirer IS'!H11/'Acquirer IS'!H9) -> 0.5766952574 | J12: 0.57 | L12: =J12 -> 0.57 | N12: =L12 -> 0.57 | P12: =N12 -> 0.57 | R12: =P12 -> 0.57
B13: SG&A % annual Increase (Decrease) | D13: NA | F13: =+IF(ISERROR('Acquirer IS'!F15/'Acquirer IS'!D15-1),0,'Acquirer IS'!F15/'Acquirer IS'!D15-1) -> 0.138412489 | G13: =+IF(ISERROR('Acquirer IS'!G15/'Acquirer IS'!E15-1),0,'Acquirer IS'!G15/'Acquirer IS'!E15-1) -> 0 | H13: =+IF(ISERROR('Acquirer IS'!H15/'Acquirer IS'!F15-1),0,'Acquirer IS'!H15/'Acquirer IS'!F15-1) -> 0.07996137132 | J13: 0.079 | L13: 0.079 | N13: 0.079 | P13: 0.079 | R13: 0.079
B14: Other Operating Expense as a % of Sales | D14: =+IF(ISERROR('Acquirer IS'!D16/'Acquirer IS'!D9),0,'Acquirer IS'!D16/'Acquirer IS'!D9) -> 0.03315661352 | E14: =+IF(ISERROR('Acquirer IS'!E16/'Acquirer IS'!E9),0,'Acquirer IS'!E16/'Acquirer IS'!E9) -> 0 | F14: =+IF(ISERROR('Acquirer IS'!F16/'Acquirer IS'!F9),0,'Acquirer IS'!F16/'Acquirer IS'!F9) -> 0.03778073848 | G14: =+IF(ISERROR('Acquirer IS'!G16/'Acquirer IS'!G9),0,'Acquirer IS'!G16/'Acquirer IS'!G9) -> 0 | H14: =+IF(ISERROR('Acquirer IS'!H16/'Acquirer IS'!H9),0,'Acquirer IS'!H16/'Acquirer IS'!H9) -> 0.03665097243 | J14: 0.035 | L14: 0.035 | N14: 0.035 | P14: 0.035 | R14: 0.035
B15: Income from Affiliates Growth | D15: NA | F15: =IF('Acquirer IS'!D23=0,0,'Acquirer IS'!F23/'Acquirer IS'!D23-1) -> 0 | H15: =IF('Acquirer IS'!F23=0,0,'Acquirer IS'!H23/'Acquirer IS'!F23-1) -> 0 | J15: 0 | L15: 0 | N15: 0 | P15: 0 | R15: 0
B16: Minority Interest - % of Earnings | D16: ='Acquirer IS'!D30/('Acquirer IS'!D28-'Acquirer IS'!D31) -> 0 | F16: ='Acquirer IS'!F30/('Acquirer IS'!F28-'Acquirer IS'!F31) -> 0 | H16: ='Acquirer IS'!H30/('Acquirer IS'!H28-'Acquirer IS'!H31) -> 0 | J16: 0 | L16: 0 | N16: 0 | P16: 0 | R16: 0
B17: EBITDA Growth | D17: NA | F17: =+IF(ISERROR('Acquirer IS'!F49/'Acquirer IS'!D49-1),0,'Acquirer IS'!F49/'Acquirer IS'!D49-1) -> 0.05277333558 | G17: =+IF(ISERROR('Acquirer IS'!G49/'Acquirer IS'!E49-1),0,'Acquirer IS'!G49/'Acquirer IS'!E49-1) -> 0 | H17: =+IF(ISERROR('Acquirer IS'!H49/'Acquirer IS'!F49-1),0,'Acquirer IS'!H49/'Acquirer IS'!F49-1) -> 0.1849216501 | I17: =+IF(ISERROR('Acquirer IS'!I49/'Acquirer IS'!G49-1),0,'Acquirer IS'!I49/'Acquirer IS'!G49-1) -> 0 | J17: =+IF(ISERROR('Acquirer IS'!J49/'Acquirer IS'!H49-1),0,'Acquirer IS'!J49/'Acquirer IS'!H49-1) -> 0.0649934188 | K17: =+IF(ISERROR('Acquirer IS'!K49/'Acquirer IS'!I49-1),0,'Acquirer IS'!K49/'Acquirer IS'!I49-1) -> 0 | L17: =+IF(ISERROR('Acquirer IS'!L49/'Acquirer IS'!J49-1),0,'Acquirer IS'!L49/'Acquirer IS'!J49-1) -> -0.009921341581 | M17: =+IF(ISERROR('Acquirer IS'!M49/'Acquirer IS'!K49-1),0,'Acquirer IS'!M49/'Acquirer IS'!K49-1) -> 0 | N17: =+IF(ISERROR('Acquirer IS'!N49/'Acquirer IS'!L49-1),0,'Acquirer IS'!N49/'Acquirer IS'!L49-1) -> -0.01548264595 | O17: =+IF(ISERROR('Acquirer IS'!O49/'Acquirer IS'!M49-1),0,'Acquirer IS'!O49/'Acquirer IS'!M49-1) -> 0 | P17: =+IF(ISERROR('Acquirer IS'!P49/'Acquirer IS'!N49-1),0,'Acquirer IS'!P49/'Acquirer IS'!N49-1) -> -0.02195885372 | Q17: =+IF(ISERROR('Acquirer IS'!Q49/'Acquirer IS'!O49-1),0,'Acquirer IS'!Q49/'Acquirer IS'!O49-1) -> 0 | R17: =+IF(ISERROR('Acquirer IS'!R49/'Acquirer IS'!P49-1),0,'Acquirer IS'!R49/'Acquirer IS'!P49-1) -> -0.02959329847
B18: EBITDA Margin | D18: =+IF(ISERROR('Acquirer IS'!D49/'Acquirer IS'!D9),0,'Acquirer IS'!D49/'Acquirer IS'!D9) -> 0.114316229 | E18: =+IF(ISERROR('Acquirer IS'!E49/'Acquirer IS'!E9),0,'Acquirer IS'!E49/'Acquirer IS'!E9) -> 0 | F18: =+IF(ISERROR('Acquirer IS'!F49/'Acquirer IS'!F9),0,'Acquirer IS'!F49/'Acquirer IS'!F9) -> 0.1082119251 | G18: =+IF(ISERROR('Acquirer IS'!G49/'Acquirer IS'!G9),0,'Acquirer IS'!G49/'Acquirer IS'!G9) -> 0 | H18: =+IF(ISERROR('Acquirer IS'!H49/'Acquirer IS'!H9),0,'Acquirer IS'!H49/'Acquirer IS'!H9) -> 0.1184741685 | I18: =+IF(ISERROR('Acquirer IS'!I49/'Acquirer IS'!I9),0,'Acquirer IS'!I49/'Acquirer IS'!I9) -> 0 | J18: =+IF(ISERROR('Acquirer IS'!J49/'Acquirer IS'!J9),0,'Acquirer IS'!J49/'Acquirer IS'!J9) -> 0.1199374617 | K18: =+IF(ISERROR('Acquirer IS'!K49/'Acquirer IS'!K9),0,'Acquirer IS'!K49/'Acquirer IS'!K9) -> 0 | L18: =+IF(ISERROR('Acquirer IS'!L49/'Acquirer IS'!L9),0,'Acquirer IS'!L49/'Acquirer IS'!L9) -> 0.1128778718 | M18: =+IF(ISERROR('Acquirer IS'!M49/'Acquirer IS'!M9),0,'Acquirer IS'!M49/'Acquirer IS'!M9) -> 0 | N18: =+IF(ISERROR('Acquirer IS'!N49/'Acquirer IS'!N9),0,'Acquirer IS'!N49/'Acquirer IS'!N9) -> 0.1056370948 | O18: =+IF(ISERROR('Acquirer IS'!O49/'Acquirer IS'!O9),0,'Acquirer IS'!O49/'Acquirer IS'!O9) -> 0 | P18: =+IF(ISERROR('Acquirer IS'!P49/'Acquirer IS'!P9),0,'Acquirer IS'!P49/'Acquirer IS'!P9) -> 0.0982104803 | Q18: =+IF(ISERROR('Acquirer IS'!Q49/'Acquirer IS'!Q9),0,'Acquirer IS'!Q49/'Acquirer IS'!Q9) -> 0 | R18: =+IF(ISERROR('Acquirer IS'!R49/'Acquirer IS'!R9),0,'Acquirer IS'!R49/'Acquirer IS'!R9) -> 0.09059325878
B20: Balance Sheet
B22: Receivable Days | D22: =+IF(ISERROR(('Acquirer BS'!D10/'Acquirer IS'!D9)*365),0,('Acquirer BS'!D10/'Acquirer IS'!D9)*365) -> 51.76256362 | E22: =+IF(ISERROR(('Acquirer BS'!E10/'Acquirer IS'!E9)*365),0,('Acquirer BS'!E10/'Acquirer IS'!E9)*365) -> 0 | F22: =+IF(ISERROR(('Acquirer BS'!F10/'Acquirer IS'!F9)*365),0,('Acquirer BS'!F10/'Acquirer IS'!F9)*365) -> 55.69354085 | G22: =+IF(ISERROR(('Acquirer BS'!G10/'Acquirer IS'!G9)*365),0,('Acquirer BS'!G10/'Acquirer IS'!G9)*365) -> 0 | H22: =+IF(ISERROR(('Acquirer BS'!H10/'Acquirer IS'!H9)*365),0,('Acquirer BS'!H10/'Acquirer IS'!H9)*365) -> 52.66137219 | J22: 51 | L22: =J22 -> 51 | M22: =K22 -> 0 | N22: 51 | O22: 0 | P22: 51 | Q22: 0 | R22: 51
B23: Inventory Days | D23: =+IF(ISERROR(('Acquirer BS'!D11/'Acquirer IS'!D11)*365),0,('Acquirer BS'!D11/'Acquirer IS'!D11)*365) -> 69.79621958 | E23: =+IF(ISERROR(('Acquirer BS'!E11/'Acquirer IS'!E11)*365),0,('Acquirer BS'!E11/'Acquirer IS'!E11)*365) -> 0 | F23: =+IF(ISERROR(('Acquirer BS'!F11/'Acquirer IS'!F11)*365),0,('Acquirer BS'!F11/'Acquirer IS'!F11)*365) -> 71.76657107 | G23: =+IF(ISERROR(('Acquirer BS'!G11/'Acquirer IS'!G11)*365),0,('Acquirer BS'!G11/'Acquirer IS'!G11)*365) -> 0 | H23: =+IF(ISERROR(('Acquirer BS'!H11/'Acquirer IS'!H11)*365),0,('Acquirer BS'!H11/'Acquirer IS'!H11)*365) -> 73.02124917 | J23: 71 | L23: =J23 -> 71 | N23: =L23 -> 71 | P23: =N23 -> 71 | R23: =P23 -> 71
B24: Oth Cur Assets % of Sales | D24: =+IF(ISERROR('Acquirer BS'!D12/'Acquirer IS'!D9),0,'Acquirer BS'!D12/'Acquirer IS'!D9) -> 0.05418017723 | E24: =+IF(ISERROR('Acquirer BS'!E12/'Acquirer IS'!E9),0,'Acquirer BS'!E12/'Acquirer IS'!E9) -> 0 | F24: =+IF(ISERROR('Acquirer BS'!F12/'Acquirer IS'!F9),0,'Acquirer BS'!F12/'Acquirer IS'!F9) -> 0.061208776 | G24: =+IF(ISERROR('Acquirer BS'!G12/'Acquirer IS'!G9),0,'Acquirer BS'!G12/'Acquirer IS'!G9) -> 0 | H24: =+IF(ISERROR('Acquirer BS'!H12/'Acquirer IS'!H9),0,'Acquirer BS'!H12/'Acquirer IS'!H9) -> 0.0584577015 | J24: 0.052 | L24: 0.052 | N24: 0.052 | P24: 0.052 | R24: 0.052
B25: Days in Accounts Payable | D25: =+IF(ISERROR(('Acquirer BS'!D29/'Acquirer IS'!D11)*365),0,('Acquirer BS'!D29/'Acquirer IS'!D11)*365) -> 32.52593124 | E25: =+IF(ISERROR(('Acquirer BS'!E29/'Acquirer IS'!E11)*365),0,('Acquirer BS'!E29/'Acquirer IS'!E11)*365) -> 0 | F25: =+IF(ISERROR(('Acquirer BS'!F29/'Acquirer IS'!F11)*365),0,('Acquirer BS'!F29/'Acquirer IS'!F11)*365) -> 33.03711861 | G25: =+IF(ISERROR(('Acquirer BS'!G29/'Acquirer IS'!G11)*365),0,('Acquirer BS'!G29/'Acquirer IS'!G11)*365) -> 0 | H25: =+IF(ISERROR(('Acquirer BS'!H29/'Acquirer IS'!H11)*365),0,('Acquirer BS'!H29/'Acquirer IS'!H11)*365) -> 32.45051564 | J25: 33 | L25: 33 | N25: 33 | P25: 33 | R25: 33
B26: Oth Cur Liab % of COGS | D26: =+IF(ISERROR('Acquirer BS'!D30/'Acquirer IS'!D11),0,'Acquirer BS'!D30/'Acquirer IS'!D11) -> 0.1896568595 | E26: =+IF(ISERROR('Acquirer BS'!E30/'Acquirer IS'!E11),0,'Acquirer BS'!E30/'Acquirer IS'!E11) -> 0 | F26: =+IF(ISERROR('Acquirer BS'!F30/'Acquirer IS'!F11),0,'Acquirer BS'!F30/'Acquirer IS'!F11) -> 0.3696783349 | G26: =+IF(ISERROR('Acquirer BS'!G30/'Acquirer IS'!G11),0,'Acquirer BS'!G30/'Acquirer IS'!G11) -> 0 | H26: =+IF(ISERROR('Acquirer BS'!H30/'Acquirer IS'!H11),0,'Acquirer BS'!H30/'Acquirer IS'!H11) -> 0.2012502772 | J26: 0.21 | L26: 0.21 | N26: 0.21 | P26: 0.21 | R26: 0.21
B27: Change in Other Assets | D27: NA | F27: ='Acquirer BS'!F25-'Acquirer BS'!D25 -> -332.7 | H27: ='Acquirer BS'!H25-'Acquirer BS'!F25 -> -6.9 | J27: 0 | L27: 0 | N27: 0 | P27: 0 | R27: 0
B28: Change in Other LT Liabilities | D28: NA | F28: ='Acquirer BS'!F41-'Acquirer BS'!D41 -> 77 | H28: ='Acquirer BS'!H41-'Acquirer BS'!F41 -> 110.2 | J28: 0 | L28: 0 | N28: 0 | P28: 0 | R28: 0
B29: Working Capital/Sales (Excl Cash & Debt) | D29: =+IF(ISERROR((SUM('Acquirer BS'!D10:D12)-SUM('Acquirer BS'!D29:D30))/'Acquirer IS'!D9),0,(SUM('Acquirer BS'!D10:D12)-SUM('Acquirer BS'!D29:D30))/'Acquirer IS'!D9) -> 0.1443457679 | E29: =+IF(ISERROR((SUM('Acquirer BS'!E10:E12)-SUM('Acquirer BS'!E29:E30))/'Acquirer IS'!E9),0,(SUM('Acquirer BS'!E10:E12)-SUM('Acquirer BS'!E29:E30))/'Acquirer IS'!E9) -> 0 | F29: =+IF(ISERROR((SUM('Acquirer BS'!F10:F12)-SUM('Acquirer BS'!F29:F30))/'Acquirer IS'!F9),0,(SUM('Acquirer BS'!F10:F12)-SUM('Acquirer BS'!F29:F30))/'Acquirer IS'!F9) -> 0.0595390525 | G29: =+IF(ISERROR((SUM('Acquirer BS'!G10:G12)-SUM('Acquirer BS'!G29:G30))/'Acquirer IS'!G9),0,(SUM('Acquirer BS'!G10:G12)-SUM('Acquirer BS'!G29:G30))/'Acquirer IS'!G9) -> 0 | H29: =+IF(ISERROR((SUM('Acquirer BS'!H10:H12)-SUM('Acquirer BS'!H29:H30))/'Acquirer IS'!H9),0,(SUM('Acquirer BS'!H10:H12)-SUM('Acquirer BS'!H29:H30))/'Acquirer IS'!H9) -> 0.1507765849 | I29: =+IF(ISERROR((SUM('Acquirer BS'!I10:I12)-SUM('Acquirer BS'!I29:I30))/'Acquirer IS'!I9),0,(SUM('Acquirer BS'!I10:I12)-SUM('Acquirer BS'!I29:I30))/'Acquirer IS'!I9) -> 0 | J29: =+IF(ISERROR((SUM('Acquirer BS'!J10:J12)-SUM('Acquirer BS'!J29:J30))/'Acquirer IS'!J9),0,(SUM('Acquirer BS'!J10:J12)-SUM('Acquirer BS'!J29:J30))/'Acquirer IS'!J9) -> 0.1313684932 | K29: =+IF(ISERROR((SUM('Acquirer BS'!K10:K12)-SUM('Acquirer BS'!K29:K30))/'Acquirer IS'!K9),0,(SUM('Acquirer BS'!K10:K12)-SUM('Acquirer BS'!K29:K30))/'Acquirer IS'!K9) -> 0 | L29: =+IF(ISERROR((SUM('Acquirer BS'!L10:L12)-SUM('Acquirer BS'!L29:L30))/'Acquirer IS'!L9),0,(SUM('Acquirer BS'!L10:L12)-SUM('Acquirer BS'!L29:L30))/'Acquirer IS'!L9) -> 0.1313684932 | M29: =+IF(ISERROR((SUM('Acquirer BS'!M10:M12)-SUM('Acquirer BS'!M29:M30))/'Acquirer IS'!M9),0,(SUM('Acquirer BS'!M10:M12)-SUM('Acquirer BS'!M29:M30))/'Acquirer IS'!M9) -> 0 | N29: =+IF(ISERROR((SUM('Acquirer BS'!N10:N12)-SUM('Acquirer BS'!N29:N30))/'Acquirer IS'!N9),0,(SUM('Acquirer BS'!N10:N12)-SUM('Acquirer BS'!N29:N30))/'Acquirer IS'!N9) -> 0.1313684932 | O29: =+IF(ISERROR((SUM('Acquirer BS'!O10:O12)-SUM('Acquirer BS'!O29:O30))/'Acquirer IS'!O9),0,(SUM('Acquirer BS'!O10:O12)-SUM('Acquirer BS'!O29:O30))/'Acquirer IS'!O9) -> 0 | P29: =+IF(ISERROR((SUM('Acquirer BS'!P10:P12)-SUM('Acquirer BS'!P29:P30))/'Acquirer IS'!P9),0,(SUM('Acquirer BS'!P10:P12)-SUM('Acquirer BS'!P29:P30))/'Acquirer IS'!P9) -> 0.1313684932 | Q29: =+IF(ISERROR((SUM('Acquirer BS'!Q10:Q12)-SUM('Acquirer BS'!Q29:Q30))/'Acquirer IS'!Q9),0,(SUM('Acquirer BS'!Q10:Q12)-SUM('Acquirer BS'!Q29:Q30))/'Acquirer IS'!Q9) -> 0 | R29: =+IF(ISERROR((SUM('Acquirer BS'!R10:R12)-SUM('Acquirer BS'!R29:R30))/'Acquirer IS'!R9),0,(SUM('Acquirer BS'!R10:R12)-SUM('Acquirer BS'!R29:R30))/'Acquirer IS'!R9) -> 0.1313684932
B31: Cash Flow
B33: Capital Expenditures | D33: 245.4 | F33: 260.9 | H33: 1083.4 | J33: =J34*'Acquirer IS'!J9 -> 855.426962 | L33: =L34*'Acquirer IS'!L9 -> 899.909164 | N33: =N34*'Acquirer IS'!N9 -> 946.7044406 | P33: =P34*'Acquirer IS'!P9 -> 995.9330715 | R33: =R34*'Acquirer IS'!R9 -> 1047.721591
B34: Capex as a % of Sales | D34: =+IF(ISERROR(D33/'Acquirer IS'!D9),0,D33/'Acquirer IS'!D9) -> 0.02361181938 | E34: =+IF(ISERROR(E33/'Acquirer IS'!E9),0,E33/'Acquirer IS'!E9) -> 0 | F34: =+IF(ISERROR(F33/'Acquirer IS'!F9),0,F33/'Acquirer IS'!F9) -> 0.02257154722 | G34: =+IF(ISERROR(G33/'Acquirer IS'!G9),0,G33/'Acquirer IS'!G9) -> 0 | H34: =+IF(ISERROR(H33/'Acquirer IS'!H9),0,H33/'Acquirer IS'!H9) -> 0.0866034101 | I34: =+IF(ISERROR(I33/'Acquirer IS'!I9),0,I33/'Acquirer IS'!I9) -> 0 | J34: 0.065 | K34: =+IF(ISERROR(K33/'Acquirer IS'!K9),0,K33/'Acquirer IS'!K9) -> 0 | L34: =J34 -> 0.065 | M34: =+IF(ISERROR(M33/'Acquirer IS'!M9),0,M33/'Acquirer IS'!M9) -> 0 | N34: =L34 -> 0.065 | O34: =+IF(ISERROR(O33/'Acquirer IS'!O9),0,O33/'Acquirer IS'!O9) -> 0 | P34: =N34 -> 0.065 | Q34: =+IF(ISERROR(Q33/'Acquirer IS'!Q9),0,Q33/'Acquirer IS'!Q9) -> 0 | R34: =P34 -> 0.065
B35: Depreciation | D35: 739.7 | F35: 895.6 | H35: 983.7 | J35: =J36*'Acquirer IS'!J9 -> 987.03111 | L35: =L36*'Acquirer IS'!L9 -> 1038.356728 | N35: =N36*'Acquirer IS'!N9 -> 1092.351278 | P35: =P36*'Acquirer IS'!P9 -> 1149.153544 | R35: =R36*'Acquirer IS'!R9 -> 1208.909528
B36: Depreciation as a % of Sales | D36: =+IF(ISERROR(D35/'Acquirer IS'!D9),0,D35/'Acquirer IS'!D9) -> 0.07117222003 | E36: =+IF(ISERROR(E35/'Acquirer IS'!E9),0,E35/'Acquirer IS'!E9) -> 0 | F36: =+IF(ISERROR(F35/'Acquirer IS'!F9),0,F35/'Acquirer IS'!F9) -> 0.07748209157 | G36: =+IF(ISERROR(G35/'Acquirer IS'!G9),0,G35/'Acquirer IS'!G9) -> 0 | H36: =+IF(ISERROR(H35/'Acquirer IS'!H9),0,H35/'Acquirer IS'!H9) -> 0.07863372209 | J36: 0.075 | L36: =J36 -> 0.075 | N36: =L36 -> 0.075 | P36: =N36 -> 0.075 | R36: =P36 -> 0.075
B37: Goodwill Amortization (pre-6/2001) | D37: 0 | F37: 0 | H37: 0 | J37: 0 | L37: =J37 -> 0 | N37: =L37 -> 0 | P37: =N37 -> 0 | R37: =P37 -> 0
B38: Amortization of Intangibles | D38: 0 | F38: 0 | H38: 0 | J38: 0 | L38: 0 | N38: 0 | P38: 0 | R38: 0
B39: Retirement of Senior Debt | D39: 505.4 | F39: 1.4 | H39: 354.5 | J39: 500 | L39: 500 | N39: 500 | P39: 500 | R39: 500
B40: Retirement of Subordinated Debt | D40: 0 | F40: 0 | H40: 0 | J40: 0 | L40: 0 | N40: 0 | P40: 0 | R40: 0
B41: Chg in Deferred Taxes - Asset | D41: NA | F41: ='Acquirer BS'!F23-'Acquirer BS'!D23 -> 0 | H41: ='Acquirer BS'!H23-'Acquirer BS'!F23 -> 0 | J41: =AVERAGE(F41:H41) -> 0 | L41: 0 | N41: 0 | P41: 0 | R41: 0
B42: Chg in Deferred Taxes - Liab | D42: NA | F42: ='Acquirer BS'!F40-'Acquirer BS'!D40 -> 602.7 | H42: ='Acquirer BS'!H40-'Acquirer BS'!F40 -> -182.1 | J42: =AVERAGE(F42:H42) -> 210.3 | L42: 210.3 | N42: 210.3 | P42: 210.3 | R42: 210.3
B43: Dividend from Affiliates | D43: 0 | F43: 0 | H43: 0 | J43: =J44*-'Acquirer IS'!J23 -> 0 | L43: =L44*-'Acquirer IS'!L23 -> 0 | N43: =N44*-'Acquirer IS'!N23 -> 0 | P43: =P44*-'Acquirer IS'!P23 -> 0 | R43: =R44*-'Acquirer IS'!R23 -> 0
B44: Payout Ratio of Affiliates | D44: =IF('Acquirer IS'!D23=0,0,D43/-'Acquirer IS'!D23) -> 0 | F44: =IF('Acquirer IS'!F23=0,0,F43/-'Acquirer IS'!F23) -> 0 | H44: =IF('Acquirer IS'!H23=0,0,H43/-'Acquirer IS'!H23) -> 0 | J44: 0 | L44: =J44 -> 0 | N44: =L44 -> 0 | P44: =N44 -> 0 | R44: =P44 -> 0
B45: Dividends per Share | D45: 0 | F45: 0 | H45: 0 | J45: =IF(J46=0,0,J46*'Acquirer IS'!J53) -> 0 | L45: =IF(L46=0,0,L46*'Acquirer IS'!L53) -> 0 | N45: =IF(N46=0,0,N46*'Acquirer IS'!N53) -> 0 | P45: =IF(P46=0,0,P46*'Acquirer IS'!P53) -> 0 | R45: =IF(R46=0,0,R46*'Acquirer IS'!R53) -> 0
B46: Dividend Payout Ratio | D46: =+IF(ISERROR(D45/'Acquirer IS'!D53),0,D45/'Acquirer IS'!D53) -> 0 | E46: =+IF(ISERROR(E45/'Acquirer IS'!E53),0,E45/'Acquirer IS'!E53) -> 0 | F46: =+IF(ISERROR(F45/'Acquirer IS'!F53),0,F45/'Acquirer IS'!F53) -> 0 | G46: =+IF(ISERROR(G45/'Acquirer IS'!G53),0,G45/'Acquirer IS'!G53) -> 0 | H46: =+IF(ISERROR(H45/'Acquirer IS'!H53),0,H45/'Acquirer IS'!H53) -> 0 | J46: 0 | L46: =J46 -> 0 | N46: =L46 -> 0 | P46: =N46 -> 0 | R46: =P46 -> 0
B47: Dividends Paid | D47: =D45*D53 -> 0 | F47: =F45*F53 -> 0 | H47: =H45*H53 -> 0 | J47: =J45*J53 -> 0 | L47: =L45*L53 -> 0 | N47: =N45*N53 -> 0 | P47: =P45*P53 -> 0 | R47: =R45*R53 -> 0
B48: Effective Tax Rate | D48: =+IF(ISERROR('Acquirer IS'!D31/'Acquirer IS'!D28),0,'Acquirer IS'!D31/'Acquirer IS'!D28) -> 0.3685165034 | E48: =+IF(ISERROR('Acquirer IS'!E31/'Acquirer IS'!E28),0,'Acquirer IS'!E31/'Acquirer IS'!E28) -> 0 | F48: =+IF(ISERROR('Acquirer IS'!F31/'Acquirer IS'!F28),0,'Acquirer IS'!F31/'Acquirer IS'!F28) -> 3.116809117 | G48: =+IF(ISERROR('Acquirer IS'!G31/'Acquirer IS'!G28),0,'Acquirer IS'!G31/'Acquirer IS'!G28) -> 0 | H48: =+IF(ISERROR('Acquirer IS'!H31/'Acquirer IS'!H28),0,'Acquirer IS'!H31/'Acquirer IS'!H28) -> 0.7382550336 | J48: 0.26 | L48: =J48 -> 0.26 | N48: =L48 -> 0.26 | P48: =N48 -> 0.26 | R48: =P48 -> 0.26
B49: Marginal Tax Rate | D49: 0.4 | E49: 0.4 | F49: 0.4 | G49: 0.4 | H49: 0.4 | J49: 0.4 | K49: 0.4 | L49: 0.4 | M49: 0.4 | N49: 0.4 | O49: 0.4 | P49: 0.4 | Q49: 0.4 | R49: 0.4
B51: Other
B53: Shares Outstanding - Basic | D53: 0 | F53: 0 | H53: 358.1 | J53: 358.1 | L53: =J53 -> 358.1 | N53: =L53 -> 358.1 | P53: =N53 -> 358.1 | R53: =P53 -> 358.1
B54: Shares Outstanding - Diluted | D54: 0 | F54: 0 | H54: 361.7 | J54: 361.7 | L54: =J54 -> 361.7 | N54: =L54 -> 361.7 | P54: =N54 -> 361.7 | R54: =P54 -> 361.7
B55: Revolving Credit Facility Rate | D55: 0 | F55: 0 | H55: 0 | J55: =Summary!O11 -> 0.044 | K55: 0 | L55: =J55 -> 0.044 | M55: 0 | N55: =L55 -> 0.044 | O55: 0 | P55: =N55 -> 0.044 | Q55: 0 | R55: =P55 -> 0.044
B56: Senior Debt Rate | D56: 0 | F56: 0 | H56: 0 | J56: 0.05 | L56: =J56 -> 0.05 | N56: =L56 -> 0.05 | P56: =N56 -> 0.05 | R56: =P56 -> 0.05
B57: Subordinated Debt | D57: 0 | F57: 0 | H57: 0 | J57: 0.08 | L57: =J57 -> 0.08 | N57: =L57 -> 0.08 | P57: =N57 -> 0.08 | R57: =P57 -> 0.08
B58: Average Interest Rate | D58: NA | F58: =IF(AVERAGE('Acquirer BS'!D38:F38)=0,0,'Acquirer IS'!F26/AVERAGE('Acquirer BS'!D38:F38)) -> 0.04502491396 | H58: =IF(AVERAGE('Acquirer BS'!F38:H38)=0,0,'Acquirer IS'!H26/AVERAGE('Acquirer BS'!F38:H38)) -> 0.03779015204 | J58: =IF(AVERAGE('Acquirer BS'!H38:J38)=0,0,'Acquirer IS'!J26/AVERAGE('Acquirer BS'!H38:J38)) -> 0.05 | K58: =IF(AVERAGE('Acquirer BS'!I38:K38)=0,0,'Acquirer IS'!K26/AVERAGE('Acquirer BS'!I38:K38)) -> 0 | L58: =IF(AVERAGE('Acquirer BS'!J38:L38)=0,0,'Acquirer IS'!L26/AVERAGE('Acquirer BS'!J38:L38)) -> 0.05 | N58: =IF(AVERAGE('Acquirer BS'!L38:N38)=0,0,'Acquirer IS'!N26/AVERAGE('Acquirer BS'!L38:N38)) -> 0.05 | P58: =IF(AVERAGE('Acquirer BS'!N38:P38)=0,0,'Acquirer IS'!P26/AVERAGE('Acquirer BS'!N38:P38)) -> 0.05 | R58: =IF(AVERAGE('Acquirer BS'!P38:R38)=0,0,'Acquirer IS'!R26/AVERAGE('Acquirer BS'!P38:R38)) -> 0.05
B59: Marketable Securities Rate | D59: 0 | F59: 0 | H59: 0 | J59: 0 | L59: =J59 -> 0 | N59: =L59 -> 0 | P59: =N59 -> 0 | R59: =P59 -> 0

Sheet Acquirer IS
A1: ='Acquirer Assumptions'!A1 -> Acquirer | S1: Income Statement
A2: ($Millions except per share data)
D6: ='Acquirer Assumptions'!D6 -> Actual | J6: ='Acquirer Assumptions'!J6 -> Projections for the Period Ending December 31, | U6: 1 | V6: 0 = circ off
D7: ='Acquirer Assumptions'!D7 -> 2013 | F7: ='Acquirer Assumptions'!F7 -> 2014 | H7: ='Acquirer Assumptions'!H7 -> 2015 | J7: ='Acquirer Assumptions'!J7 -> 2016 | L7: ='Acquirer Assumptions'!L7 -> 2017 | N7: ='Acquirer Assumptions'!N7 -> 2018 | P7: ='Acquirer Assumptions'!P7 -> 2019 | R7: ='Acquirer Assumptions'!R7 -> 2020 | V7: 1 = circ on
B9: Sales | D9: 10393.1 | F9: 11558.8 | H9: 12509.9 | J9: =H9*(1+'Acquirer Assumptions'!J11) -> 13160.4148 | L9: =J9*(1+'Acquirer Assumptions'!L11) -> 13844.75637 | N9: =L9*(1+'Acquirer Assumptions'!N11) -> 14564.6837 | P9: =N9*(1+'Acquirer Assumptions'!P11) -> 15322.04725 | R9: =P9*(1+'Acquirer Assumptions'!R11) -> 16118.79371
B11: Cost of Goods Sold | D11: =5264.7+866.9 -> 6131.6 | F11: =5733.4+1031.4 -> 6764.8 | H11: =6101.3+1113.1 -> 7214.4 | J11: =J9*'Acquirer Assumptions'!J12 -> 7501.436436 | L11: =L9*'Acquirer Assumptions'!L12 -> 7891.511131 | N11: =N9*'Acquirer Assumptions'!N12 -> 8301.869709 | P11: =P9*'Acquirer Assumptions'!P12 -> 8733.566934 | R11: =R9*'Acquirer Assumptions'!R12 -> 9187.712415
B13: Gross Profit | D13: =D9-D11 -> 4261.5 | F13: =F9-F11 -> 4794 | H13: =H9-H11 -> 5295.5 | J13: =J9-J11 -> 5658.978364 | L13: =L9-L11 -> 5953.245239 | N13: =N9-N11 -> 6262.813991 | P13: =P9-P11 -> 6588.480319 | R13: =R9-R11 -> 6931.081295
B15: SG&A | D15: 2728.8 | F15: 3106.5 | H15: 3354.9 | J15: =H15*(1+'Acquirer Assumptions'!J13) -> 3619.9371 | L15: =J15*(1+'Acquirer Assumptions'!L13) -> 3905.912131 | N15: =L15*(1+'Acquirer Assumptions'!N13) -> 4214.479189 | P15: =N15*(1+'Acquirer Assumptions'!P13) -> 4547.423045 | R15: =P15*(1+'Acquirer Assumptions'!R13) -> 4906.669466
B16: Other Operating Expense | D16: =284.4+60.2 -> 344.6 | F16: =340.2+96.5 -> 436.7 | H16: =376.4+82.1 -> 458.5 | J16: =J9*'Acquirer Assumptions'!J14 -> 460.614518 | L16: =L9*'Acquirer Assumptions'!L14 -> 484.5664729 | N16: =N9*'Acquirer Assumptions'!N14 -> 509.7639295 | P16: =P9*'Acquirer Assumptions'!P14 -> 536.2716539 | R16: =R9*'Acquirer Assumptions'!R14 -> 564.1577799
B17: Depreciation | D17: ='Acquirer Assumptions'!D35 -> 739.7 | F17: ='Acquirer Assumptions'!F35 -> 895.6 | H17: ='Acquirer Assumptions'!H35 -> 983.7 | J17: ='Acquirer Assumptions'!J35 -> 987.03111 | L17: ='Acquirer Assumptions'!L35 -> 1038.356728 | N17: ='Acquirer Assumptions'!N35 -> 1092.351278 | P17: ='Acquirer Assumptions'!P35 -> 1149.153544 | R17: ='Acquirer Assumptions'!R35 -> 1208.909528
B18: Amortization | D18: ='Acquirer Assumptions'!D37+'Acquirer Assumptions'!D38 -> 0 | F18: ='Acquirer Assumptions'!F37+'Acquirer Assumptions'!F38 -> 0 | H18: ='Acquirer Assumptions'!H37+'Acquirer Assumptions'!H38 -> 0 | J18: ='Acquirer Assumptions'!J37+'Acquirer Assumptions'!J38 -> 0 | L18: ='Acquirer Assumptions'!L37+'Acquirer Assumptions'!L38 -> 0 | N18: ='Acquirer Assumptions'!N37+'Acquirer Assumptions'!N38 -> 0 | P18: ='Acquirer Assumptions'!P37+'Acquirer Assumptions'!P38 -> 0 | R18: ='Acquirer Assumptions'!R37+'Acquirer Assumptions'!R38 -> 0
B20: EBIT | D20: =D13-SUM(D15:D18) -> 448.4 | F20: =F13-SUM(F15:F18) -> 355.2 | H20: =H13-SUM(H15:H18) -> 498.4 | J20: =J13-SUM(J15:J18) -> 591.395636 | L20: =L13-SUM(L15:L18) -> 524.4099074 | N20: =N13-SUM(N15:N18) -> 446.219595 | P20: =P13-SUM(P15:P18) -> 355.6320759 | R20: =R13-SUM(R15:R18) -> 251.3445216
B22: Unusual (Gain) Loss | D22: 0 | F22: 0 | H22: 0 | J22: 0 | L22: 0 | N22: 0 | P22: 0 | R22: 0
B23: (Income) from Affiliates | D23: 0 | F23: 0 | H23: 0 | J23: =H23*(1+'Acquirer Assumptions'!J15) -> 0 | L23: =J23*(1+'Acquirer Assumptions'!L15) -> 0 | N23: =L23*(1+'Acquirer Assumptions'!N15) -> 0 | P23: =N23*(1+'Acquirer Assumptions'!P15) -> 0 | R23: =P23*(1+'Acquirer Assumptions'!R15) -> 0
B24: Other Expense (Income) | D24: 100.4 | F24: 118 | H24: 212.7 | J24: 0 | L24: =J24 -> 0 | N24: =L24 -> 0 | P24: 0 | R24: 0
B25: Interest (Income) | D25: -12.4 | F25: 26.8 | H25: 29.2 | J25: =IF($U$6=0,0,-'Acquirer Assumptions'!J59*AVERAGE('Acquirer BS'!H9:J9)) -> 0 | K25: =IF($U$6=0,0,-'Acquirer Assumptions'!K59*AVERAGE('Acquirer BS'!I9:K9)) -> 0 | L25: =IF($U$6=0,0,-'Acquirer Assumptions'!L59*AVERAGE('Acquirer BS'!J9:L9)) -> 0 | M25: =IF($U$6=0,0,-'Acquirer Assumptions'!M59*AVERAGE('Acquirer BS'!K9:M9)) -> 0 | N25: =IF($U$6=0,0,-'Acquirer Assumptions'!N59*AVERAGE('Acquirer BS'!L9:N9)) -> 0 | O25: =IF($U$6=0,0,-'Acquirer Assumptions'!O59*AVERAGE('Acquirer BS'!M9:O9)) -> 0 | P25: =IF($U$6=0,0,-'Acquirer Assumptions'!P59*AVERAGE('Acquirer BS'!N9:P9)) -> 0 | Q25: =IF($U$6=0,0,-'Acquirer Assumptions'!Q59*AVERAGE('Acquirer BS'!O9:Q9)) -> 0 | R25: =IF($U$6=0,0,-'Acquirer Assumptions'!R59*AVERAGE('Acquirer BS'!P9:R9)) -> 0
B26: Interest Expense | D26: 84.7 | F26: 175.3 | H26: 241.6 | J26: =IF($U$6=0,0,'Acquirer Assumptions'!J55*AVERAGE('Acquirer BS'!H34:J34)+'Acquirer Assumptions'!J56*AVERAGE('Acquirer BS'!H35:J35)+'Acquirer Assumptions'!J57*'Acquirer BS'!H36:J36) -> 339.06 | K26: =IF($U$6=0,0,'Acquirer Assumptions'!K55*AVERAGE('Acquirer BS'!I34:K34)+'Acquirer Assumptions'!K56*AVERAGE('Acquirer BS'!I35:K35)+'Acquirer Assumptions'!K57*'Acquirer BS'!I36:K36) -> 0 | L26: =IF($U$6=0,0,'Acquirer Assumptions'!L55*AVERAGE('Acquirer BS'!J34:L34)+'Acquirer Assumptions'!L56*AVERAGE('Acquirer BS'!J35:L35)+'Acquirer Assumptions'!L57*'Acquirer BS'!J36:L36) -> 314.06 | M26: =IF($U$6=0,0,'Acquirer Assumptions'!M55*AVERAGE('Acquirer BS'!K34:M34)+'Acquirer Assumptions'!M56*AVERAGE('Acquirer BS'!K35:M35)+'Acquirer Assumptions'!M57*'Acquirer BS'!K36:M36) -> 0 | N26: =IF($U$6=0,0,'Acquirer Assumptions'!N55*AVERAGE('Acquirer BS'!L34:N34)+'Acquirer Assumptions'!N56*AVERAGE('Acquirer BS'!L35:N35)+'Acquirer Assumptions'!N57*'Acquirer BS'!L36:N36) -> 289.06 | O26: =IF($U$6=0,0,'Acquirer Assumptions'!O55*AVERAGE('Acquirer BS'!M34:O34)+'Acquirer Assumptions'!O56*AVERAGE('Acquirer BS'!M35:O35)+'Acquirer Assumptions'!O57*'Acquirer BS'!M36:O36) -> 0 | P26: =IF($U$6=0,0,'Acquirer Assumptions'!P55*AVERAGE('Acquirer BS'!N34:P34)+'Acquirer Assumptions'!P56*AVERAGE('Acquirer BS'!N35:P35)+'Acquirer Assumptions'!P57*'Acquirer BS'!N36:P36) -> 264.06 | Q26: =IF($U$6=0,0,'Acquirer Assumptions'!Q55*AVERAGE('Acquirer BS'!O34:Q34)+'Acquirer Assumptions'!Q56*AVERAGE('Acquirer BS'!O35:Q35)+'Acquirer Assumptions'!Q57*'Acquirer BS'!O36:Q36) -> 0 | R26: =IF($U$6=0,0,'Acquirer Assumptions'!R55*AVERAGE('Acquirer BS'!P34:R34)+'Acquirer Assumptions'!R56*AVERAGE('Acquirer BS'!P35:R35)+'Acquirer Assumptions'!R57*'Acquirer BS'!P36:R36) -> 239.06
B28: Earnings before Taxes | D28: =D20-SUM(D22:D26) -> 275.7 | F28: =F20-SUM(F22:F26) -> 35.1 | H28: =H20-SUM(H22:H26) -> 14.9 | J28: =J20-SUM(J22:J26) -> 252.335636 | L28: =L20-SUM(L22:L26) -> 210.3499074 | N28: =N20-SUM(N22:N26) -> 157.159595 | P28: =P20-SUM(P22:P26) -> 91.57207585 | R28: =R20-SUM(R22:R26) -> 12.28452158
B30: Noncontrolling Interest | D30: 0 | F30: 0 | H30: 0 | J30: ='Acquirer Assumptions'!J16*(J28-J31) -> 0 | L30: ='Acquirer Assumptions'!L16*(L28-L31) -> 0 | N30: ='Acquirer Assumptions'!N16*(N28-N31) -> 0 | P30: ='Acquirer Assumptions'!P16*(P28-P31) -> 0 | R30: ='Acquirer Assumptions'!R16*(R28-R31) -> 0
B31: Taxes | D31: 101.6 | F31: 109.4 | H31: 11 | J31: =J28*'Acquirer Assumptions'!J48 -> 65.60726536 | L31: =L28*'Acquirer Assumptions'!L48 -> 54.69097592 | N31: =N28*'Acquirer Assumptions'!N48 -> 40.86149471 | P31: =P28*'Acquirer Assumptions'!P48 -> 23.80873972 | R31: =R28*'Acquirer Assumptions'!R48 -> 3.19397561
B33: Net Income before Extra Items | D33: =D28-D30-D31 -> 174.1 | F33: =F28-F30-F31 -> -74.3 | H33: =H28-H30-H31 -> 3.9 | J33: =J28-J30-J31 -> 186.7283706 | L33: =L28-L30-L31 -> 155.6589315 | N33: =N28-N30-N31 -> 116.2981003 | P33: =P28-P30-P31 -> 67.76333613 | R33: =R28-R30-R31 -> 9.090545967
B35: Extraordinary Items | D35: 47 | F35: 1.7 | H35: -19.2 | J35: 0 | L35: 0 | N35: 0 | P35: 0 | R35: 0
B36: Discontinued Operations | D36: 2.5 | E36: 0 | F36: 304.8 | G36: 0 | H36: -61.3 | J36: 0 | K36: 0 | L36: 0 | M36: 0 | N36: 0 | O36: 0 | P36: 0 | Q36: 0 | R36: 0
B38: Net Income after Extra Items | D38: =D33+D35+D36 -> 223.6 | F38: =F33+F35+F36 -> 232.2 | H38: =H33+H35+H36 -> -76.6 | J38: =J33+J35+J36 -> 186.7283706 | L38: =L33+L35+L36 -> 155.6589315 | N38: =N33+N35+N36 -> 116.2981003 | P38: =P33+P35+P36 -> 67.76333613 | R38: =R33+R35+R36 -> 9.090545967
B40: EPS - Basic | D40: =+IF(ISERROR(D33/'Acquirer Assumptions'!D53),0,D33/'Acquirer Assumptions'!D53) -> 0 | E40: =+IF(ISERROR(E33/'Acquirer Assumptions'!E53),0,E33/'Acquirer Assumptions'!E53) -> 0 | F40: =+IF(ISERROR(F33/'Acquirer Assumptions'!F53),0,F33/'Acquirer Assumptions'!F53) -> 0 | G40: =+IF(ISERROR(G33/'Acquirer Assumptions'!G53),0,G33/'Acquirer Assumptions'!G53) -> 0 | H40: =+IF(ISERROR(H33/'Acquirer Assumptions'!H53),0,H33/'Acquirer Assumptions'!H53) -> 0.01089081262 | I40: =+IF(ISERROR(I33/'Acquirer Assumptions'!I53),0,I33/'Acquirer Assumptions'!I53) -> 0 | J40: =+IF(ISERROR(J33/'Acquirer Assumptions'!J53),0,J33/'Acquirer Assumptions'!J53) -> 0.5214419733 | K40: =+IF(ISERROR(K33/'Acquirer Assumptions'!K53),0,K33/'Acquirer Assumptions'!K53) -> 0 | L40: =+IF(ISERROR(L33/'Acquirer Assumptions'!L53),0,L33/'Acquirer Assumptions'!L53) -> 0.4346800655 | M40: =+IF(ISERROR(M33/'Acquirer Assumptions'!M53),0,M33/'Acquirer Assumptions'!M53) -> 0 | N40: =+IF(ISERROR(N33/'Acquirer Assumptions'!N53),0,N33/'Acquirer Assumptions'!N53) -> 0.3247643125 | O40: =+IF(ISERROR(O33/'Acquirer Assumptions'!O53),0,O33/'Acquirer Assumptions'!O53) -> 0 | P40: =+IF(ISERROR(P33/'Acquirer Assumptions'!P53),0,P33/'Acquirer Assumptions'!P53) -> 0.1892302042 | Q40: =+IF(ISERROR(Q33/'Acquirer Assumptions'!Q53),0,Q33/'Acquirer Assumptions'!Q53) -> 0 | R40: =+IF(ISERROR(R33/'Acquirer Assumptions'!R53),0,R33/'Acquirer Assumptions'!R53) -> 0.02538549558
B42: EPS - Diluted | D42: =+IF(ISERROR(D33/'Acquirer Assumptions'!D54),0,D33/'Acquirer Assumptions'!D54) -> 0 | E42: =+IF(ISERROR(E33/'Acquirer Assumptions'!E54),0,E33/'Acquirer Assumptions'!E54) -> 0 | F42: =+IF(ISERROR(F33/'Acquirer Assumptions'!F54),0,F33/'Acquirer Assumptions'!F54) -> 0 | G42: =+IF(ISERROR(G33/'Acquirer Assumptions'!G54),0,G33/'Acquirer Assumptions'!G54) -> 0 | H42: =+IF(ISERROR(H33/'Acquirer Assumptions'!H54),0,H33/'Acquirer Assumptions'!H54) -> 0.01078241637 | I42: =+IF(ISERROR(I33/'Acquirer Assumptions'!I54),0,I33/'Acquirer Assumptions'!I54) -> 0 | J42: =+IF(ISERROR(J33/'Acquirer Assumptions'!J54),0,J33/'Acquirer Assumptions'!J54) -> 0.5162520615 | K42: =+IF(ISERROR(K33/'Acquirer Assumptions'!K54),0,K33/'Acquirer Assumptions'!K54) -> 0 | L42: =+IF(ISERROR(L33/'Acquirer Assumptions'!L54),0,L33/'Acquirer Assumptions'!L54) -> 0.4303536949 | M42: =+IF(ISERROR(M33/'Acquirer Assumptions'!M54),0,M33/'Acquirer Assumptions'!M54) -> 0 | N42: =+IF(ISERROR(N33/'Acquirer Assumptions'!N54),0,N33/'Acquirer Assumptions'!N54) -> 0.3215319334 | O42: =+IF(ISERROR(O33/'Acquirer Assumptions'!O54),0,O33/'Acquirer Assumptions'!O54) -> 0 | P42: =+IF(ISERROR(P33/'Acquirer Assumptions'!P54),0,P33/'Acquirer Assumptions'!P54) -> 0.187346796 | Q42: =+IF(ISERROR(Q33/'Acquirer Assumptions'!Q54),0,Q33/'Acquirer Assumptions'!Q54) -> 0 | R42: =+IF(ISERROR(R33/'Acquirer Assumptions'!R54),0,R33/'Acquirer Assumptions'!R54) -> 0.02513283375
B44: Other Financial Data
B46: Depreciation & Amortization | D46: ='Acquirer Assumptions'!D35+'Acquirer Assumptions'!D37+'Acquirer Assumptions'!D38 -> 739.7 | F46: ='Acquirer Assumptions'!F35+'Acquirer Assumptions'!F37+'Acquirer Assumptions'!F38 -> 895.6 | H46: ='Acquirer Assumptions'!H35+'Acquirer Assumptions'!H37+'Acquirer Assumptions'!H38 -> 983.7 | J46: ='Acquirer Assumptions'!J35+'Acquirer Assumptions'!J37+'Acquirer Assumptions'!J38 -> 987.03111 | L46: ='Acquirer Assumptions'!L35+'Acquirer Assumptions'!L37+'Acquirer Assumptions'!L38 -> 1038.356728 | N46: ='Acquirer Assumptions'!N35+'Acquirer Assumptions'!N37+'Acquirer Assumptions'!N38 -> 1092.351278 | P46: ='Acquirer Assumptions'!P35+'Acquirer Assumptions'!P37+'Acquirer Assumptions'!P38 -> 1149.153544 | R46: ='Acquirer Assumptions'!R35+'Acquirer Assumptions'!R37+'Acquirer Assumptions'!R38 -> 1208.909528
B47: Capital Expenditures | D47: ='Acquirer Assumptions'!D33 -> 245.4 | F47: ='Acquirer Assumptions'!F33 -> 260.9 | H47: ='Acquirer Assumptions'!H33 -> 1083.4 | J47: ='Acquirer Assumptions'!J33 -> 855.426962 | L47: ='Acquirer Assumptions'!L33 -> 899.909164 | N47: ='Acquirer Assumptions'!N33 -> 946.7044406 | P47: ='Acquirer Assumptions'!P33 -> 995.9330715 | R47: ='Acquirer Assumptions'!R33 -> 1047.721591
B49: EBITDA | D49: =D20+D46 -> 1188.1 | F49: =F20+F46 -> 1250.8 | H49: =H20+H46 -> 1482.1 | J49: =J20+J46 -> 1578.426746 | L49: =L20+L46 -> 1562.766635 | N49: =N20+N46 -> 1538.570873 | P49: =P20+P46 -> 1504.78562 | R49: =R20+R46 -> 1460.25405
B51: EPS (Excluding Unusual Items) | D51: =IF(ISERROR((D33+D22*(1-'Acquirer Assumptions'!D48))/'Acquirer Assumptions'!D54),0,(D33+D22*(1-'Acquirer Assumptions'!D48))/'Acquirer Assumptions'!D54) -> 0 | E51: =IF(ISERROR((E33+E22*(1-'Acquirer Assumptions'!E48))/'Acquirer Assumptions'!E54),0,(E33+E22*(1-'Acquirer Assumptions'!E48))/'Acquirer Assumptions'!E54) -> 0 | F51: =IF(ISERROR((F33+F22*(1-'Acquirer Assumptions'!F48))/'Acquirer Assumptions'!F54),0,(F33+F22*(1-'Acquirer Assumptions'!F48))/'Acquirer Assumptions'!F54) -> 0 | G51: =IF(ISERROR((G33+G22*(1-'Acquirer Assumptions'!G48))/'Acquirer Assumptions'!G54),0,(G33+G22*(1-'Acquirer Assumptions'!G48))/'Acquirer Assumptions'!G54) -> 0 | H51: =IF(ISERROR((H33+H22*(1-'Acquirer Assumptions'!H48))/'Acquirer Assumptions'!H54),0,(H33+H22*(1-'Acquirer Assumptions'!H48))/'Acquirer Assumptions'!H54) -> 0.01078241637 | I51: =IF(ISERROR((I33+I22*(1-'Acquirer Assumptions'!I48))/'Acquirer Assumptions'!I54),0,(I33+I22*(1-'Acquirer Assumptions'!I48))/'Acquirer Assumptions'!I54) -> 0 | J51: =IF(ISERROR((J33+J22*(1-'Acquirer Assumptions'!J48))/'Acquirer Assumptions'!J54),0,(J33+J22*(1-'Acquirer Assumptions'!J48))/'Acquirer Assumptions'!J54) -> 0.5162520615 | K51: =IF(ISERROR((K33+K22*(1-'Acquirer Assumptions'!K48))/'Acquirer Assumptions'!K54),0,(K33+K22*(1-'Acquirer Assumptions'!K48))/'Acquirer Assumptions'!K54) -> 0 | L51: =IF(ISERROR((L33+L22*(1-'Acquirer Assumptions'!L48))/'Acquirer Assumptions'!L54),0,(L33+L22*(1-'Acquirer Assumptions'!L48))/'Acquirer Assumptions'!L54) -> 0.4303536949 | M51: =IF(ISERROR((M33+M22*(1-'Acquirer Assumptions'!M48))/'Acquirer Assumptions'!M54),0,(M33+M22*(1-'Acquirer Assumptions'!M48))/'Acquirer Assumptions'!M54) -> 0 | N51: =IF(ISERROR((N33+N22*(1-'Acquirer Assumptions'!N48))/'Acquirer Assumptions'!N54),0,(N33+N22*(1-'Acquirer Assumptions'!N48))/'Acquirer Assumptions'!N54) -> 0.3215319334 | O51: =IF(ISERROR((O33+O22*(1-'Acquirer Assumptions'!O48))/'Acquirer Assumptions'!O54),0,(O33+O22*(1-'Acquirer Assumptions'!O48))/'Acquirer Assumptions'!O54) -> 0 | P51: =IF(ISERROR((P33+P22*(1-'Acquirer Assumptions'!P48))/'Acquirer Assumptions'!P54),0,(P33+P22*(1-'Acquirer Assumptions'!P48))/'Acquirer Assumptions'!P54) -> 0.187346796 | Q51: =IF(ISERROR((Q33+Q22*(1-'Acquirer Assumptions'!Q48))/'Acquirer Assumptions'!Q54),0,(Q33+Q22*(1-'Acquirer Assumptions'!Q48))/'Acquirer Assumptions'!Q54) -> 0 | R51: =IF(ISERROR((R33+R22*(1-'Acquirer Assumptions'!R48))/'Acquirer Assumptions'!R54),0,(R33+R22*(1-'Acquirer Assumptions'!R48))/'Acquirer Assumptions'!R54) -> 0.02513283375
B53: Cash EPS | F53: =+IF(ISERROR('Acquirer CF'!F25/'Acquirer Assumptions'!F54),0,'Acquirer CF'!F25/'Acquirer Assumptions'!F54) -> 0 | G53: =+IF(ISERROR('Acquirer CF'!G25/'Acquirer Assumptions'!G54),0,'Acquirer CF'!G25/'Acquirer Assumptions'!G54) -> 0 | H53: =+IF(ISERROR('Acquirer CF'!H25/'Acquirer Assumptions'!H54),0,'Acquirer CF'!H25/'Acquirer Assumptions'!H54) -> -0.9839646116 | I53: =+IF(ISERROR('Acquirer CF'!I25/'Acquirer Assumptions'!I54),0,'Acquirer CF'!I25/'Acquirer Assumptions'!I54) -> 0 | J53: =+IF(ISERROR('Acquirer CF'!J25/'Acquirer Assumptions'!J54),0,'Acquirer CF'!J25/'Acquirer Assumptions'!J54) -> 4.261530603 | K53: =+IF(ISERROR('Acquirer CF'!K25/'Acquirer Assumptions'!K54),0,'Acquirer CF'!K25/'Acquirer Assumptions'!K54) -> 0 | L53: =+IF(ISERROR('Acquirer CF'!L25/'Acquirer Assumptions'!L54),0,'Acquirer CF'!L25/'Acquirer Assumptions'!L54) -> 3.633991535 | M53: =+IF(ISERROR('Acquirer CF'!M25/'Acquirer Assumptions'!M54),0,'Acquirer CF'!M25/'Acquirer Assumptions'!M54) -> 0 | N53: =+IF(ISERROR('Acquirer CF'!N25/'Acquirer Assumptions'!N54),0,'Acquirer CF'!N25/'Acquirer Assumptions'!N54) -> 3.661525046 | O53: =+IF(ISERROR('Acquirer CF'!O25/'Acquirer Assumptions'!O54),0,'Acquirer CF'!O25/'Acquirer Assumptions'!O54) -> 0 | P53: =+IF(ISERROR('Acquirer CF'!P25/'Acquirer Assumptions'!P54),0,'Acquirer CF'!P25/'Acquirer Assumptions'!P54) -> 3.670785655 | Q53: =+IF(ISERROR('Acquirer CF'!Q25/'Acquirer Assumptions'!Q54),0,'Acquirer CF'!Q25/'Acquirer Assumptions'!Q54) -> 0 | R53: =+IF(ISERROR('Acquirer CF'!R25/'Acquirer Assumptions'!R54),0,'Acquirer CF'!R25/'Acquirer Assumptions'!R54) -> 3.659476618
B55: Dividends per share | F55: ='Acquirer Assumptions'!F45 -> 0 | H55: ='Acquirer Assumptions'!H45 -> 0 | J55: ='Acquirer Assumptions'!J45 -> 0 | L55: ='Acquirer Assumptions'!L45 -> 0 | N55: ='Acquirer Assumptions'!N45 -> 0 | P55: ='Acquirer Assumptions'!P45 -> 0 | R55: ='Acquirer Assumptions'!R45 -> 0
B57: Dividend-adjusted Cash EPS | F57: =F53-F55 -> 0 | H57: =H53-H55 -> -0.9839646116 | J57: =J53-J55 -> 4.261530603 | L57: =L53-L55 -> 3.633991535 | N57: =N53-N55 -> 3.661525046 | P57: =P53-P55 -> 3.670785655 | R57: =R53-R55 -> 3.659476618

Sheet Acquirer BS
A1: ='Acquirer Assumptions'!A1 -> Acquirer | S1: Balance Sheet
A2: ($Millions, except per share data)
D6: ='Acquirer IS'!D6 -> Actual | J6: ='Acquirer IS'!J6 -> Projections for the Period Ending December 31,
D7: ='Acquirer IS'!D7 -> 2013 | F7: ='Acquirer IS'!F7 -> 2014 | H7: ='Acquirer IS'!H7 -> 2015 | J7: ='Acquirer IS'!J7 -> 2016 | L7: ='Acquirer IS'!L7 -> 2017 | N7: ='Acquirer IS'!N7 -> 2018 | P7: ='Acquirer IS'!P7 -> 2019 | R7: ='Acquirer IS'!R7 -> 2020
B9: Cash and ST Investments | D9: =917.8+8.7 -> 926.5 | F9: =1016.3+4.3 -> 1020.6 | H9: =851+4.3 -> 855.3 | J9: ='Acquirer CF'!J50 -> 1041.268657 | L9: ='Acquirer CF'!L50 -> 955.7742315 | N9: ='Acquirer CF'!N50 -> 833.4434001 | P9: ='Acquirer CF'!P50 -> 665.2335001 | R9: ='Acquirer CF'!R50 -> 441.1446017
B10: Accounts Receivable | D10: 1473.9 | F10: 1763.7 | H10: 1804.9 | J10: =('Acquirer Assumptions'!J22*'Acquirer IS'!J9)/365 -> 1838.852479 | L10: =('Acquirer Assumptions'!L22*'Acquirer IS'!L9)/365 -> 1934.472808 | N10: =('Acquirer Assumptions'!N22*'Acquirer IS'!N9)/365 -> 2035.065394 | P10: =('Acquirer Assumptions'!P22*'Acquirer IS'!P9)/365 -> 2140.888794 | R10: =('Acquirer Assumptions'!R22*'Acquirer IS'!R9)/365 -> 2252.215012
B11: Inventory | D11: 1172.5 | F11: 1330.1 | H11: 1443.3 | J11: =('Acquirer Assumptions'!J23*'Acquirer IS'!J11)/365 -> 1459.183526 | L11: =('Acquirer Assumptions'!L23*'Acquirer IS'!L11)/365 -> 1535.061069 | N11: =('Acquirer Assumptions'!N23*'Acquirer IS'!N11)/365 -> 1614.884245 | P11: =('Acquirer Assumptions'!P23*'Acquirer IS'!P11)/365 -> 1698.858226 | R11: =('Acquirer Assumptions'!R23*'Acquirer IS'!R11)/365 -> 1787.198853
B12: Other | D12: =181.6+381.5 -> 563.1 | F12: =157.8+549.7 -> 707.5 | H12: =182+549.3 -> 731.3 | J12: ='Acquirer IS'!J9*'Acquirer Assumptions'!J24 -> 684.3415696 | L12: ='Acquirer IS'!L9*'Acquirer Assumptions'!L24 -> 719.9273312 | N12: ='Acquirer IS'!N9*'Acquirer Assumptions'!N24 -> 757.3635524 | P12: ='Acquirer IS'!P9*'Acquirer Assumptions'!P24 -> 796.7464572 | R12: ='Acquirer IS'!R9*'Acquirer Assumptions'!R24 -> 838.1772729
B14: Current Assets | D14: =SUM(D9:D12) -> 4136 | F14: =SUM(F9:F12) -> 4821.9 | H14: =SUM(H9:H12) -> 4834.8 | J14: =SUM(J9:J12) -> 5023.646232 | L14: =SUM(L9:L12) -> 5145.23544 | N14: =SUM(N9:N12) -> 5240.756591 | P14: =SUM(P9:P12) -> 5301.726977 | R14: =SUM(R9:R12) -> 5318.73574
B16: Property, Plant, & Equipment | D16: 1360.7 | F16: 1611.3 | H16: 1726.4 | J16: =H16+'Acquirer Assumptions'!J33 -> 2581.826962 | L16: =J16+'Acquirer Assumptions'!L33 -> 3481.736126 | N16: =L16+'Acquirer Assumptions'!N33 -> 4428.440567 | P16: =N16+'Acquirer Assumptions'!P33 -> 5424.373638 | R16: =P16+'Acquirer Assumptions'!R33 -> 6472.095229
B17: Accumulated Depreciation | D17: 0 | F17: 0 | H17: 0 | J17: =H17-'Acquirer Assumptions'!J35 -> -987.03111 | L17: =J17-'Acquirer Assumptions'!L35 -> -2025.387838 | N17: =L17-'Acquirer Assumptions'!N35 -> -3117.739115 | P17: =N17-'Acquirer Assumptions'!P35 -> -4266.892659 | R17: =P17-'Acquirer Assumptions'!R35 -> -5475.802188
B19: Net Property, Plant, & Equipment | D19: =SUM(D16:D17) -> 1360.7 | F19: =SUM(F16:F17) -> 1611.3 | H19: =SUM(H16:H17) -> 1726.4 | J19: =SUM(J16:J17) -> 1594.795852 | L19: =SUM(L16:L17) -> 1456.348288 | N19: =SUM(N16:N17) -> 1310.701451 | P19: =SUM(P16:P17) -> 1157.480979 | R19: =SUM(R16:R17) -> 996.2930417
B21: Goodwill | D21: 8995.2 | F21: 11973.3 | H21: 12474.5 | J21: =H21-'Acquirer Assumptions'!J37 -> 12474.5 | L21: =J21-'Acquirer Assumptions'!L37 -> 12474.5 | N21: =L21-'Acquirer Assumptions'!N37 -> 12474.5 | P21: =N21-'Acquirer Assumptions'!P37 -> 12474.5 | R21: =P21-'Acquirer Assumptions'!R37 -> 12474.5
B22: Intangible Assets | D22: 5913.2 | F22: 7815.9 | H22: 7804.5 | J22: =H22-'Acquirer Assumptions'!J38 -> 7804.5 | L22: =J22-'Acquirer Assumptions'!L38 -> 7804.5 | N22: =L22-'Acquirer Assumptions'!N38 -> 7804.5 | P22: =N22-'Acquirer Assumptions'!P38 -> 7804.5 | R22: =P22-'Acquirer Assumptions'!R38 -> 7804.5
B23: Deferred Taxes | D23: 0 | F23: 0 | H23: 0 | J23: =H23+'Acquirer Assumptions'!J41 -> 0 | L23: =J23+'Acquirer Assumptions'!L41 -> 0 | N23: =L23+'Acquirer Assumptions'!N41 -> 0 | P23: =N23+'Acquirer Assumptions'!P41 -> 0 | R23: =P23+'Acquirer Assumptions'!R41 -> 0
B24: Equity in Affiliates | D24: 0 | F24: 0 | H24: 0 | J24: =H24-'Acquirer IS'!J23-'Acquirer Assumptions'!J43 -> 0 | L24: =J24-'Acquirer IS'!L23-'Acquirer Assumptions'!L43 -> 0 | N24: =L24-'Acquirer IS'!N23-'Acquirer Assumptions'!N43 -> 0 | P24: =N24-'Acquirer IS'!P23-'Acquirer Assumptions'!P43 -> 0 | R24: =P24-'Acquirer IS'!R23-'Acquirer Assumptions'!R43 -> 0
B25: Other | D25: 944 | F25: 611.3 | H25: 604.4 | J25: =H25+'Acquirer Assumptions'!J27 -> 604.4 | L25: =J25+'Acquirer Assumptions'!L27 -> 604.4 | N25: =L25+'Acquirer Assumptions'!N27 -> 604.4 | P25: =N25+'Acquirer Assumptions'!P27 -> 604.4 | R25: =P25+'Acquirer Assumptions'!R27 -> 604.4
B27: Total Assets | D27: =D14+D19+SUM(D21:D25) -> 21349.1 | F27: =F14+F19+SUM(F21:F25) -> 26833.7 | H27: =H14+H19+SUM(H21:H25) -> 27444.6 | J27: =J14+J19+SUM(J21:J25) -> 27501.84208 | L27: =L14+L19+SUM(L21:L25) -> 27484.98373 | N27: =N14+N19+SUM(N21:N25) -> 27434.85804 | P27: =P14+P19+SUM(P21:P25) -> 27342.60796 | R27: =R14+R19+SUM(R21:R25) -> 27198.42878
B29: Accounts Payable | D29: 546.4 | F29: 612.3 | H29: 641.4 | J29: =('Acquirer Assumptions'!J25*'Acquirer IS'!J11)/365 -> 678.2120613 | L29: =('Acquirer Assumptions'!L25*'Acquirer IS'!L11)/365 -> 713.4790885 | N29: =('Acquirer Assumptions'!N25*'Acquirer IS'!N11)/365 -> 750.5800011 | P29: =('Acquirer Assumptions'!P25*'Acquirer IS'!P11)/365 -> 789.6101612 | R29: =('Acquirer Assumptions'!R25*'Acquirer IS'!R11)/365 -> 830.6698896
B30: Other | D30: =105.9+304.5+158.1+594.4 -> 1162.9 | F30: =3113.1-612.3 -> 2500.8 | H30: =2093.3-641.4 -> 1451.9 | J30: ='Acquirer IS'!J11*'Acquirer Assumptions'!J26 -> 1575.301652 | L30: ='Acquirer IS'!L11*'Acquirer Assumptions'!L26 -> 1657.217337 | N30: ='Acquirer IS'!N11*'Acquirer Assumptions'!N26 -> 1743.392639 | P30: ='Acquirer IS'!P11*'Acquirer Assumptions'!P26 -> 1834.049056 | R30: ='Acquirer IS'!R11*'Acquirer Assumptions'!R26 -> 1929.419607
B32: Current Liabilities | D32: =SUM(D29:D30) -> 1709.3 | F32: =SUM(F29:F30) -> 3113.1 | H32: =SUM(H29:H30) -> 2093.3 | J32: =SUM(J29:J30) -> 2253.513713 | L32: =SUM(L29:L30) -> 2370.696426 | N32: =SUM(N29:N30) -> 2493.97264 | P32: =SUM(P29:P30) -> 2623.659217 | R32: =SUM(R29:R30) -> 2760.089497
B34: Revolving Credit Facility | D34: 0 | F34: 0 | H34: 0 | J34: ='Acquirer CF'!J49 -> 0 | L34: ='Acquirer CF'!L49 -> 0 | N34: ='Acquirer CF'!N49 -> 0 | P34: ='Acquirer CF'!P49 -> 0 | R34: ='Acquirer CF'!R49 -> 0
B35: Senor Debt | D35: 2031.6 | F35: 5755.2 | H35: 7031.2 | J35: =H35-'Acquirer Assumptions'!J39 -> 6531.2 | L35: =J35-'Acquirer Assumptions'!L39 -> 6031.2 | N35: =L35-'Acquirer Assumptions'!N39 -> 5531.2 | P35: =N35-'Acquirer Assumptions'!P39 -> 5031.2 | R35: =P35-'Acquirer Assumptions'!R39 -> 4531.2
B36: Subordinated Debt | D36: 0 | F36: 0 | H36: 0 | J36: =H36-'Acquirer Assumptions'!J40 -> 0 | L36: =J36-'Acquirer Assumptions'!L40 -> 0 | N36: =L36-'Acquirer Assumptions'!N40 -> 0 | P36: =N36-'Acquirer Assumptions'!P40 -> 0 | R36: =P36-'Acquirer Assumptions'!R40 -> 0
B38: Total | D38: =SUM(D34:D36) -> 2031.6 | F38: =SUM(F34:F36) -> 5755.2 | H38: =SUM(H34:H36) -> 7031.2 | J38: =SUM(J34:J36) -> 6531.2 | L38: =SUM(L34:L36) -> 6031.2 | N38: =SUM(N34:N36) -> 5531.2 | P38: =SUM(P34:P36) -> 5031.2 | R38: =SUM(R34:R36) -> 4531.2
B40: Deferred Taxes | D40: 1626.6 | F40: 2229.3 | H40: 2047.2 | J40: =H40+'Acquirer Assumptions'!J42 -> 2257.5 | L40: =J40+'Acquirer Assumptions'!L42 -> 2467.8 | N40: =L40+'Acquirer Assumptions'!N42 -> 2678.1 | P40: =N40+'Acquirer Assumptions'!P42 -> 2888.4 | R40: =P40+'Acquirer Assumptions'!R42 -> 3098.7
B41: Other | D41: 621 | F41: 698 | H41: 808.2 | J41: =H41+'Acquirer Assumptions'!J28 -> 808.2 | L41: =J41+'Acquirer Assumptions'!L28 -> 808.2 | N41: =L41+'Acquirer Assumptions'!N28 -> 808.2 | P41: =N41+'Acquirer Assumptions'!P28 -> 808.2 | R41: =P41+'Acquirer Assumptions'!R28 -> 808.2
B43: Total Liabilities | D43: =D32+D38+SUM(D40:D41) -> 5988.5 | F43: =F32+F38+SUM(F40:F41) -> 11795.6 | H43: =H32+H38+SUM(H40:H41) -> 11979.9 | J43: =J32+J38+SUM(J40:J41) -> 11850.41371 | L43: =L32+L38+SUM(L40:L41) -> 11677.89643 | N43: =N32+N38+SUM(N40:N41) -> 11511.47264 | P43: =P32+P38+SUM(P40:P41) -> 11351.45922 | R43: =R32+R38+SUM(R40:R41) -> 11198.1895
B45: Common Stock | D45: 401.3 | F45: 406.4 | H45: 413.5 | J45: =H45 -> 413.5 | L45: =J45 -> 413.5 | N45: =L45 -> 413.5 | P45: =N45 -> 413.5 | R45: =P45 -> 413.5
B46: Preferred Equity | D46: 0 | F46: 0 | H46: 0 | J46: =H46 -> 0 | L46: =J46 -> 0 | N46: =L46 -> 0 | P46: =N46 -> 0 | R46: =P46 -> 0
B47: Retained Earnings | D47: 5386.8 | F47: 6716.3 | H47: 7697.3 | J47: =H47+'Acquirer IS'!J38+'Acquirer CF'!J35 -> 7884.028371 | L47: =J47+'Acquirer IS'!L38+'Acquirer CF'!L35 -> 8039.687302 | N47: =L47+'Acquirer IS'!N38+'Acquirer CF'!N35 -> 8155.985402 | P47: =N47+'Acquirer IS'!P38+'Acquirer CF'!P35 -> 8223.748739 | R47: =P47+'Acquirer IS'!R38+'Acquirer CF'!R35 -> 8232.839285
B48: Treasury Stock | D48: -490.8 | F48: -1837.1 | H48: -2996.8 | J48: =H48 -> -2996.8 | L48: =J48 -> -2996.8 | N48: =L48 -> -2996.8 | P48: =N48 -> -2996.8 | R48: =P48 -> -2996.8
B49: Other Adjustments | D49: =10019.7+43.6 -> 10063.3 | F49: =10152-399.5 -> 9752.5 | H49: =10501.1-150.4 -> 10350.7 | J49: =H49 -> 10350.7 | L49: =J49 -> 10350.7 | N49: =L49 -> 10350.7 | P49: =N49 -> 10350.7 | R49: =P49 -> 10350.7
B50: Noncontrolling Interest | D50: 0 | F50: 0 | H50: 0 | J50: =H50+'Acquirer IS'!J30 -> 0 | L50: =J50+'Acquirer IS'!L30 -> 0 | N50: =L50+'Acquirer IS'!N30 -> 0 | P50: =N50+'Acquirer IS'!P30 -> 0 | R50: =P50+'Acquirer IS'!R30 -> 0
B51: Total Stockholders Equity | D51: =SUM(D45:D50) -> 15360.6 | E51: =SUM(E45:E50) -> 0 | F51: 15038.1 | G51: 0 | H51: 15464.7 | J51: =SUM(J45:J50) -> 15651.42837 | K51: =SUM(K45:K50) -> 0 | L51: 15807.0873 | M51: 0 | N51: 15923.3854 | O51: 0 | P51: 15991.14874 | Q51: 0 | R51: 16000.23928
B53: Total Liabilities and Equity | D53: =D43+D51 -> 21349.1 | F53: =F43+F51 -> 26833.7 | H53: =H43+H51 -> 27444.6 | J53: =J43+J51 -> 27501.84208 | L53: =L43+L51 -> 27484.98373 | N53: =N43+N51 -> 27434.85804 | P53: =P43+P51 -> 27342.60796 | R53: =R43+R51 -> 27198.42878
B57: Reconciliation | D57: =D53-D27 -> 0 | F57: =F53-F27 -> 0 | H57: =H53-H27 -> 0 | J57: =J53-J27 -> 0 | L57: =L53-L27 -> 0 | N57: =N53-N27 -> 0 | P57: =P53-P27 -> 0 | R57: =R53-R27 -> 0

Sheet Acquirer CF
A1: ='Acquirer Assumptions'!A1 -> Acquirer | S1: Statement of Cash Flow
A2: ($Millions, except per share data)
F4: ='Acquirer BS'!D6 -> Actual | J4: ='Acquirer BS'!J6 -> Projections for the Period Ending December 31,
F5: ='Acquirer BS'!F7 -> 2014 | H5: ='Acquirer BS'!H7 -> 2015 | J5: ='Acquirer BS'!J7 -> 2016 | L5: ='Acquirer BS'!L7 -> 2017 | N5: ='Acquirer BS'!N7 -> 2018 | P5: ='Acquirer BS'!P7 -> 2019 | R5: ='Acquirer BS'!R7 -> 2020
B7: Net Income | F7: ='Acquirer IS'!F38 -> 232.2 | H7: ='Acquirer IS'!H38 -> -76.6 | J7: ='Acquirer IS'!J38 -> 186.7283706 | L7: ='Acquirer IS'!L38 -> 155.6589315 | N7: ='Acquirer IS'!N38 -> 116.2981003 | P7: ='Acquirer IS'!P38 -> 67.76333613 | R7: ='Acquirer IS'!R38 -> 9.090545967
B9: Depreciation & Amortization | F9: ='Acquirer IS'!F46 -> 895.6 | H9: ='Acquirer IS'!H46 -> 983.7 | J9: ='Acquirer IS'!J46 -> 987.03111 | L9: ='Acquirer IS'!L46 -> 1038.356728 | N9: ='Acquirer IS'!N46 -> 1092.351278 | P9: ='Acquirer IS'!P46 -> 1149.153544 | R9: ='Acquirer IS'!R46 -> 1208.909528
B11: Income from Affiliates, Net of Dividends | F11: ='Acquirer IS'!F23+'Acquirer Assumptions'!F43 -> 0 | H11: ='Acquirer IS'!H23+'Acquirer Assumptions'!H43 -> 0 | J11: ='Acquirer IS'!J23+'Acquirer Assumptions'!J43 -> 0 | L11: ='Acquirer IS'!L23+'Acquirer Assumptions'!L43 -> 0 | N11: ='Acquirer IS'!N23+'Acquirer Assumptions'!N43 -> 0 | P11: ='Acquirer IS'!P23+'Acquirer Assumptions'!P43 -> 0 | R11: ='Acquirer IS'!R23+'Acquirer Assumptions'!R43 -> 0
A13: Change in
B15: Accounts Receivable | F15: ='Acquirer BS'!D10-'Acquirer BS'!F10 -> -289.8 | H15: ='Acquirer BS'!F10-'Acquirer BS'!H10 -> -41.2 | J15: ='Acquirer BS'!H10-'Acquirer BS'!J10 -> -33.9524789 | L15: ='Acquirer BS'!J10-'Acquirer BS'!L10 -> -95.6203289 | N15: ='Acquirer BS'!L10-'Acquirer BS'!N10 -> -100.592586 | P15: ='Acquirer BS'!N10-'Acquirer BS'!P10 -> -105.8234005 | R15: ='Acquirer BS'!P10-'Acquirer BS'!R10 -> -111.3262173
B16: Inventory | F16: ='Acquirer BS'!D11-'Acquirer BS'!F11 -> -157.6 | H16: ='Acquirer BS'!F11-'Acquirer BS'!H11 -> -113.2 | J16: ='Acquirer BS'!H11-'Acquirer BS'!J11 -> -15.88352591 | L16: ='Acquirer BS'!J11-'Acquirer BS'!L11 -> -75.87754335 | N16: ='Acquirer BS'!L11-'Acquirer BS'!N11 -> -79.8231756 | P16: ='Acquirer BS'!N11-'Acquirer BS'!P11 -> -83.97398073 | R16: ='Acquirer BS'!P11-'Acquirer BS'!R11 -> -88.34062773
B17: Other Current Assets | F17: ='Acquirer BS'!D12-'Acquirer BS'!F12 -> -144.4 | H17: ='Acquirer BS'!F12-'Acquirer BS'!H12 -> -23.8 | J17: ='Acquirer BS'!H12-'Acquirer BS'!J12 -> 46.9584304 | L17: ='Acquirer BS'!J12-'Acquirer BS'!L12 -> -35.58576162 | N17: ='Acquirer BS'!L12-'Acquirer BS'!N12 -> -37.43622122 | P17: ='Acquirer BS'!N12-'Acquirer BS'!P12 -> -39.38290473 | R17: ='Acquirer BS'!P12-'Acquirer BS'!R12 -> -41.43081577
B18: Accounts Payable | F18: ='Acquirer BS'!F29-'Acquirer BS'!D29 -> 65.9 | H18: ='Acquirer BS'!H29-'Acquirer BS'!F29 -> 29.1 | J18: ='Acquirer BS'!J29-'Acquirer BS'!H29 -> 36.81206134 | L18: ='Acquirer BS'!L29-'Acquirer BS'!J29 -> 35.26702719 | N18: ='Acquirer BS'!N29-'Acquirer BS'!L29 -> 37.1009126 | P18: ='Acquirer BS'!P29-'Acquirer BS'!N29 -> 39.03016006 | R18: ='Acquirer BS'!R29-'Acquirer BS'!P29 -> 41.05972838
B19: Other Current Liabilities | F19: ='Acquirer BS'!F30-'Acquirer BS'!D30 -> 1337.9 | H19: ='Acquirer BS'!H30-'Acquirer BS'!F30 -> -1048.9 | J19: ='Acquirer BS'!J30-'Acquirer BS'!H30 -> 123.4016516 | L19: ='Acquirer BS'!L30-'Acquirer BS'!J30 -> 81.91568588 | N19: ='Acquirer BS'!N30-'Acquirer BS'!L30 -> 86.17530155 | P19: ='Acquirer BS'!P30-'Acquirer BS'!N30 -> 90.65641723 | R19: ='Acquirer BS'!R30-'Acquirer BS'!P30 -> 95.37055092
B20: Other Assets | F20: ='Acquirer BS'!D25-'Acquirer BS'!F25 -> 332.7 | H20: ='Acquirer BS'!F25-'Acquirer BS'!H25 -> 6.9 | J20: ='Acquirer BS'!H25-'Acquirer BS'!J25 -> 0 | L20: ='Acquirer BS'!J25-'Acquirer BS'!L25 -> 0 | N20: ='Acquirer BS'!L25-'Acquirer BS'!N25 -> 0 | P20: ='Acquirer BS'!N25-'Acquirer BS'!P25 -> 0 | R20: ='Acquirer BS'!P25-'Acquirer BS'!R25 -> 0
B21: Deferred Taxes | F21: ='Acquirer BS'!F40-'Acquirer BS'!D40+'Acquirer BS'!D23-'Acquirer BS'!F23 -> 602.7 | H21: ='Acquirer BS'!H40-'Acquirer BS'!F40+'Acquirer BS'!F23-'Acquirer BS'!H23 -> -182.1 | J21: ='Acquirer BS'!J40-'Acquirer BS'!H40+'Acquirer BS'!H23-'Acquirer BS'!J23 -> 210.3 | L21: ='Acquirer BS'!L40-'Acquirer BS'!J40+'Acquirer BS'!J23-'Acquirer BS'!L23 -> 210.3 | N21: ='Acquirer BS'!N40-'Acquirer BS'!L40+'Acquirer BS'!L23-'Acquirer BS'!N23 -> 210.3 | P21: ='Acquirer BS'!P40-'Acquirer BS'!N40+'Acquirer BS'!N23-'Acquirer BS'!P23 -> 210.3 | R21: ='Acquirer BS'!R40-'Acquirer BS'!P40+'Acquirer BS'!P23-'Acquirer BS'!R23 -> 210.3
B22: Minority Interest | F22: ='Acquirer BS'!F50-'Acquirer BS'!D50 -> 0 | H22: ='Acquirer BS'!H50-'Acquirer BS'!F50 -> 0 | J22: ='Acquirer BS'!J50-'Acquirer BS'!H50 -> 0 | L22: ='Acquirer BS'!L50-'Acquirer BS'!J50 -> 0 | N22: ='Acquirer BS'!N50-'Acquirer BS'!L50 -> 0 | P22: ='Acquirer BS'!P50-'Acquirer BS'!N50 -> 0 | R22: ='Acquirer BS'!R50-'Acquirer BS'!P50 -> 0
B23: Other Liabilities | F23: ='Acquirer BS'!F41-'Acquirer BS'!D41 -> 77 | H23: ='Acquirer BS'!H41-'Acquirer BS'!F41 -> 110.2 | J23: ='Acquirer BS'!J41-'Acquirer BS'!H41 -> 0 | L23: ='Acquirer BS'!L41-'Acquirer BS'!J41 -> 0 | N23: ='Acquirer BS'!N41-'Acquirer BS'!L41 -> 0 | P23: ='Acquirer BS'!P41-'Acquirer BS'!N41 -> 0 | R23: ='Acquirer BS'!R41-'Acquirer BS'!P41 -> 0
A25: Cash Flow from Operating Activities | F25: =SUM(F7:F23) -> 2952.2 | H25: =SUM(H7:H23) -> -355.9 | J25: =SUM(J7:J23) -> 1541.395619 | L25: =SUM(L7:L23) -> 1314.414738 | N25: =SUM(N7:N23) -> 1324.373609 | P25: =SUM(P7:P23) -> 1327.723171 | R25: =SUM(R7:R23) -> 1323.632693
B27: Capital Expenditures | F27: =-'Acquirer IS'!F47 -> -260.9 | H27: =-'Acquirer IS'!H47 -> -1083.4 | J27: =-'Acquirer IS'!J47 -> -855.426962 | L27: =-'Acquirer IS'!L47 -> -899.909164 | N27: =-'Acquirer IS'!N47 -> -946.7044406 | P27: =-'Acquirer IS'!P47 -> -995.9330715 | R27: =-'Acquirer IS'!R47 -> -1047.721591
B28: Acquisitions | F28: 0 | H28: 0 | J28: 0 | L28: 0 | N28: 0 | P28: 0 | R28: 0
B29: Sale of Assets | F29: 0 | H29: 0 | J29: 0 | L29: 0 | N29: 0 | P29: 0 | R29: 0
A31: Cash Flow from Investing Activities | F31: =SUM(F27:F29) -> -260.9 | H31: =SUM(H27:H29) -> -1083.4 | J31: =SUM(J27:J29) -> -855.426962 | L31: =SUM(L27:L29) -> -899.909164 | N31: =SUM(N27:N29) -> -946.7044406 | P31: =SUM(P27:P29) -> -995.9330715 | R31: =SUM(R27:R29) -> -1047.721591
B33: Net Change in Equity | F33: ='Acquirer BS'!F45-'Acquirer BS'!D45+'Acquirer BS'!F46-'Acquirer BS'!D46+'Acquirer BS'!F48-'Acquirer BS'!D48+'Acquirer BS'!F49-'Acquirer BS'!D49 -> -1652 | H33: ='Acquirer BS'!H45-'Acquirer BS'!F45+'Acquirer BS'!H46-'Acquirer BS'!F46+'Acquirer BS'!H48-'Acquirer BS'!F48+'Acquirer BS'!H49-'Acquirer BS'!F49 -> -554.4 | J33: ='Acquirer BS'!J45-'Acquirer BS'!H45+'Acquirer BS'!J46-'Acquirer BS'!H46+'Acquirer BS'!J48-'Acquirer BS'!H48+'Acquirer BS'!J49-'Acquirer BS'!H49 -> 0 | L33: ='Acquirer BS'!L45-'Acquirer BS'!J45+'Acquirer BS'!L46-'Acquirer BS'!J46+'Acquirer BS'!L48-'Acquirer BS'!J48+'Acquirer BS'!L49-'Acquirer BS'!J49 -> 0 | N33: ='Acquirer BS'!N45-'Acquirer BS'!L45+'Acquirer BS'!N46-'Acquirer BS'!L46+'Acquirer BS'!N48-'Acquirer BS'!L48+'Acquirer BS'!N49-'Acquirer BS'!L49 -> 0 | P33: ='Acquirer BS'!P45-'Acquirer BS'!N45+'Acquirer BS'!P46-'Acquirer BS'!N46+'Acquirer BS'!P48-'Acquirer BS'!N48+'Acquirer BS'!P49-'Acquirer BS'!N49 -> 0 | R33: ='Acquirer BS'!R45-'Acquirer BS'!P45+'Acquirer BS'!R46-'Acquirer BS'!P46+'Acquirer BS'!R48-'Acquirer BS'!P48+'Acquirer BS'!R49-'Acquirer BS'!P49 -> 0
B34: Net Change in Debt | F34: ='Acquirer BS'!F35-'Acquirer BS'!D35+'Acquirer BS'!F36-'Acquirer BS'!D36 -> 3723.6 | H34: ='Acquirer BS'!H35-'Acquirer BS'!F35+'Acquirer BS'!H36-'Acquirer BS'!F36 -> 1276 | J34: ='Acquirer BS'!J35-'Acquirer BS'!H35+'Acquirer BS'!J36-'Acquirer BS'!H36 -> -500 | L34: ='Acquirer BS'!L35-'Acquirer BS'!J35+'Acquirer BS'!L36-'Acquirer BS'!J36 -> -500 | N34: ='Acquirer BS'!N35-'Acquirer BS'!L35+'Acquirer BS'!N36-'Acquirer BS'!L36 -> -500 | P34: ='Acquirer BS'!P35-'Acquirer BS'!N35+'Acquirer BS'!P36-'Acquirer BS'!N36 -> -500 | R34: ='Acquirer BS'!R35-'Acquirer BS'!P35+'Acquirer BS'!R36-'Acquirer BS'!P36 -> -500
B35: Dividends Paid | F35: =-'Acquirer Assumptions'!F47 -> 0 | H35: =-'Acquirer Assumptions'!H47 -> 0 | J35: =-'Acquirer Assumptions'!J47 -> 0 | L35: =-'Acquirer Assumptions'!L47 -> 0 | N35: =-'Acquirer Assumptions'!N47 -> 0 | P35: =-'Acquirer Assumptions'!P47 -> 0 | R35: =-'Acquirer Assumptions'!R47 -> 0
A37: Cash Flow from Financing Activities | F37: =SUM(F33:F35) -> 2071.6 | H37: =SUM(H33:H35) -> 721.6 | J37: =SUM(J33:J35) -> -500 | L37: =SUM(L33:L35) -> -500 | N37: =SUM(N33:N35) -> -500 | P37: =SUM(P33:P35) -> -500 | R37: =SUM(R33:R35) -> -500
B39: Net Change in Cash | F39: =F25+F31+F37 -> 4762.9 | H39: =H25+H31+H37 -> -717.7 | J39: =J25+J31+J37 -> 185.9686571 | L39: =L25+L31+L37 -> -85.49442565 | N39: =N25+N31+N37 -> -122.3308314 | P39: =P25+P31+P37 -> -168.2099 | R39: =R25+R31+R37 -> -224.0888984
B41: Beginning Cash Balance | F41: ='Acquirer BS'!D9 -> 926.5 | H41: ='Acquirer BS'!F9 -> 1020.6 | J41: ='Acquirer BS'!H9 -> 855.3 | L41: ='Acquirer BS'!J9 -> 1041.268657 | N41: ='Acquirer BS'!L9 -> 955.7742315 | P41: ='Acquirer BS'!N9 -> 833.4434001 | R41: ='Acquirer BS'!P9 -> 665.2335001
B43: Cash Available for Revolving Credit | F43: =F39+F41 -> 5689.4 | H43: =H39+H41 -> 302.9 | J43: =J39+J41 -> 1041.268657 | L43: =L39+L41 -> 955.7742315 | N43: =N39+N41 -> 833.4434001 | P43: =P39+P41 -> 665.2335001 | R43: =R39+R41 -> 441.1446017
B47: Beginning Revolver | J47: ='Acquirer BS'!H34 -> 0 | L47: ='Acquirer BS'!J34 -> 0 | N47: ='Acquirer BS'!L34 -> 0 | P47: ='Acquirer BS'!N34 -> 0 | R47: ='Acquirer BS'!P34 -> 0
B48: Total Repayment | J48: =IF(J43-J47<$F$52,J43-$F$52,J47) -> 0 | L48: =IF(L43-L47<$F$52,L43-$F$52,L47) -> 0 | N48: =IF(N43-N47<$F$52,N43-$F$52,N47) -> 0 | P48: =IF(P43-P47<$F$52,P43-$F$52,P47) -> 0 | R48: =IF(R43-R47<$F$52,R43-$F$52,R47) -> 0
B49: Ending Revolving Credit Facility | J49: =J47-J48 -> 0 | L49: =L47-L48 -> 0 | N49: =N47-N48 -> 0 | P49: =P47-P48 -> 0 | R49: =R47-R48 -> 0
B50: Ending Cash | J50: =IF(J43-J47<0,$F$52,J43-J48) -> 1041.268657 | L50: =IF(L43-L47<0,$F$52,L43-L48) -> 955.7742315 | N50: =IF(N43-N47<0,$F$52,N43-N48) -> 833.4434001 | P50: =IF(P43-P47<0,$F$52,P43-P48) -> 665.2335001 | R50: =IF(R43-R47<0,$F$52,R43-R48) -> 441.1446017
B52: Minimum Cash Balance | F52: 0

Sheet Newco Assumptions
A1: Newco | S1: Assumptions
A2: ($Millions except per share data)
D6: Actual | J6: Projections
D7: 2013 | F7: =D7+1 -> 2014 | H7: =F7+1 -> 2015 | J7: =H7+1 -> 2016 | L7: =J7+1 -> 2017 | N7: =L7+1 -> 2018 | P7: =N7+1 -> 2019 | R7: =P7+1 -> 2020
B9: Income Statement
B11: Sales Growth | D11: ='Acquirer Assumptions'!D11 -> NA | F11: =+IF(ISERROR('Acquirer Assumptions'!F11),0,'Acquirer Assumptions'!F11) -> 0.1121609529 | H11: ='Acquirer Assumptions'!H11 -> 0.08228362806 | J11: =+IF(ISERROR('Newco IS'!M9/'Newco IS'!G9-1),0,'Newco IS'!M9/'Newco IS'!G9-1) -> 0.3192313893 | K11: =+IF(ISERROR('Newco IS'!N9/'Newco IS'!H9-1),0,'Newco IS'!N9/'Newco IS'!H9-1) -> 0 | L11: =+('Newco IS'!P9/'Newco IS'!M9)-1 -> 0.05552666451 | M11: =+('Newco IS'!Q9/'Newco IS'!N9)-1 ->  | N11: ='Newco IS'!R9/'Newco IS'!P9-1 -> 0.05660107312 | O11: =+('Newco IS'!S9/'Newco IS'!P9)-1 -> -1 | P11: ='Newco IS'!T9/'Newco IS'!R9-1 -> 0.05231734387 | Q11: =+('Newco IS'!U9/'Newco IS'!R9)-1 -> -1 | R11: ='Newco IS'!V9/'Newco IS'!T9-1 -> 0.05233920712
B12: COGS as a % of Sales | D12: ='Acquirer Assumptions'!D12 -> 0.5899683444 | F12: ='Acquirer Assumptions'!F12 -> 0.5852510641 | H12: ='Acquirer Assumptions'!H12 -> 0.5766952574 | J12: =+IF(ISERROR('Newco IS'!M12/'Newco IS'!M9),0,'Newco IS'!M12/'Newco IS'!M9) -> 0.5417551574 | K12: =+IF(ISERROR('Newco IS'!N12/'Newco IS'!N9),0,'Newco IS'!N12/'Newco IS'!N9) -> 0 | L12: ='Newco IS'!P12/'Newco IS'!P9 -> 0.5383941764 | M12: ='Newco IS'!Q12/'Newco IS'!Q9 ->  | N12: ='Newco IS'!R12/'Newco IS'!R9 -> 0.5353486877 | O12: ='Newco IS'!S12/'Newco IS'!S9 ->  | P12: ='Newco IS'!T12/'Newco IS'!T9 -> 0.5353146198 | Q12: ='Newco IS'!U12/'Newco IS'!U9 ->  | R12: ='Newco IS'!V12/'Newco IS'!V9 -> 0.535278487
B13: Integration Related Expenses ($M) | J13: 100 | L13: 50 | N13: 0
B14: SG&A % annual increase | D14: ='Acquirer Assumptions'!D13 -> NA | F14: ='Acquirer Assumptions'!F13 -> 0.138412489 | H14: ='Acquirer Assumptions'!H13 -> 0.07996137132 | J14: =+IF(ISERROR('Newco IS'!M16/'Newco IS'!G16-1),0,'Newco IS'!M16/'Newco IS'!G16-1) -> 0.3028461461 | K14: =+IF(ISERROR('Newco IS'!N16/'Newco IS'!H16-1),0,'Newco IS'!N16/'Newco IS'!H16-1) -> 0 | L14: ='Newco IS'!P16/'Newco IS'!M16-1 -> 0.07057480636 | M14: =+'Target IS'!M15/'Target IS'!K15-1 ->  | N14: =+'Newco IS'!R16/'Newco IS'!P16-1 -> 0.07104148902 | O14: =+'Target IS'!O15/'Target IS'!M15-1 ->  | P14: =+'Newco IS'!T16/'Newco IS'!R16-1 -> 0.07034244589 | Q14: =+'Target IS'!Q15/'Target IS'!O15-1 ->  | R14: ='Newco IS'!V16/'Newco IS'!T16-1 -> 0.07059169489
B15: Other Operating Expense as a % of Sales | D15: ='Acquirer Assumptions'!D14 -> 0.03315661352 | F15: ='Acquirer Assumptions'!F14 -> 0.03778073848 | H15: ='Acquirer Assumptions'!H14 -> 0.03665097243 | J15: =+IF(ISERROR('Newco IS'!M17/'Newco IS'!M9),0,'Newco IS'!M17/'Newco IS'!M9) -> 0.05299031952 | K15: =+IF(ISERROR('Newco IS'!N17/'Newco IS'!N9),0,'Newco IS'!N17/'Newco IS'!N9) -> 0 | L15: =+'Newco IS'!P17/'Newco IS'!P9 -> 0.0528884747 | M15: =+IF(ISERROR('Newco IS'!P17/'Newco IS'!P9),0,'Newco IS'!P17/'Newco IS'!P9) -> 0.0528884747 | N15: =+'Newco IS'!R17/'Newco IS'!R9 -> 0.05273325606 | O15: =+IF(ISERROR('Newco IS'!R17/'Newco IS'!R9),0,'Newco IS'!R17/'Newco IS'!R9) -> 0.05273325606 | P15: =+'Newco IS'!T17/'Newco IS'!T9 -> 0.0527926343 | Q15: =+IF(ISERROR('Newco IS'!T17/'Newco IS'!T9),0,'Newco IS'!T17/'Newco IS'!T9) -> 0.0527926343 | R15: =+'Newco IS'!V17/'Newco IS'!V9 -> 0.0528510885
B16: Income from Affiliates Growth | D16: ='Acquirer Assumptions'!D15 -> NA | F16: ='Acquirer Assumptions'!F15 -> 0 | H16: ='Acquirer Assumptions'!H15 -> 0 | J16: =IF('Newco IS'!M24=0,0,'Newco IS'!P24/'Newco IS'!M24-1) -> 0 | L16: =IF('Newco IS'!M24=0,0,'Newco IS'!P24/'Newco IS'!M24-1) -> 0 | N16: =IF('Newco IS'!O24=0,0,'Newco IS'!R24/'Newco IS'!O24-1) -> 0 | P16: =IF('Newco IS'!Q24=0,0,'Newco IS'!T24/'Newco IS'!Q24-1) -> 0 | R16: =IF('Newco IS'!S24=0,0,'Newco IS'!V24/'Newco IS'!S24-1) -> 0
B17: Minority Interest - % of Earnings | D17: ='Acquirer Assumptions'!D16 -> 0 | F17: ='Acquirer Assumptions'!F16 -> 0 | H17: ='Acquirer Assumptions'!H16 -> 0 | J17: ='Newco IS'!M31/('Newco IS'!M29-'Newco IS'!M32) -> 0 | L17: ='Newco IS'!P31/('Newco IS'!P29-'Newco IS'!P32) -> 0 | N17: ='Newco IS'!R31/('Newco IS'!R29-'Newco IS'!R32) -> 0 | P17: ='Newco IS'!T31/('Newco IS'!T29-'Newco IS'!T32) -> 0 | R17: ='Newco IS'!V31/('Newco IS'!V29-'Newco IS'!V32) -> 0
B18: EBITDA Growth | D18: ='Acquirer Assumptions'!D17 -> NA | F18: ='Acquirer Assumptions'!F17 -> 0.05277333558 | H18: ='Acquirer Assumptions'!H17 -> 0.1849216501 | J18: =+IF(ISERROR('Newco IS'!M50/'Newco IS'!G50-1),0,'Newco IS'!M50/'Newco IS'!G50-1) -> 0.4062476594 | K18: =+IF(ISERROR('Newco IS'!N50/'Newco IS'!H50-1),0,'Newco IS'!N50/'Newco IS'!H50-1) -> 0 | L18: ='Newco IS'!P50/'Newco IS'!M50-1 -> 0.07717003105 | M18: =+IF(ISERROR('Newco IS'!P50/'Newco IS'!J50-1),0,'Newco IS'!P50/'Newco IS'!J50-1) -> 0 | N18: ='Newco IS'!R50/'Newco IS'!P50-1 -> 0.07412316768 | O18: =+IF(ISERROR('Newco IS'!R50/'Newco IS'!L50-1),0,'Newco IS'!R50/'Newco IS'!L50-1) -> 0 | P18: ='Newco IS'!T50/'Newco IS'!R50-1 -> 0.01416139045 | Q18: =+IF(ISERROR('Newco IS'!T50/'Newco IS'!N50-1),0,'Newco IS'!T50/'Newco IS'!N50-1) -> 0 | R18: ='Newco IS'!V50/'Newco IS'!T50-1 -> 0.01159238993
B19: EBITDA Margin | D19: ='Acquirer Assumptions'!D18 -> 0.114316229 | F19: ='Acquirer Assumptions'!F18 -> 0.1082119251 | H19: ='Acquirer Assumptions'!H18 -> 0.1184741685 | J19: =+IF(ISERROR('Newco IS'!M50/'Newco IS'!M9),0,'Newco IS'!M50/'Newco IS'!M9) -> 0.1278485155 | K19: =+IF(ISERROR('Newco IS'!N50/'Newco IS'!N9),0,'Newco IS'!N50/'Newco IS'!N9) -> 0 | L19: ='Newco IS'!P50/'Newco IS'!P9 -> 0.1304700242 | M19: =+IF(ISERROR('Newco IS'!P50/'Newco IS'!P9),0,'Newco IS'!P50/'Newco IS'!P9) -> 0.1304700242 | N19: ='Newco IS'!R50/'Newco IS'!R9 -> 0.1326336678 | O19: =+IF(ISERROR('Newco IS'!R50/'Newco IS'!R9),0,'Newco IS'!R50/'Newco IS'!R9) -> 0.1326336678 | P19: ='Newco IS'!T50/'Newco IS'!T9 -> 0.1278245063 | Q19: =+IF(ISERROR('Newco IS'!T50/'Newco IS'!T9),0,'Newco IS'!T50/'Newco IS'!T9) -> 0.1278245063 | R19: ='Newco IS'!V50/'Newco IS'!V9 -> 0.1228751119
B21: Balance Sheet
B23: Receivable Days | D23: ='Acquirer Assumptions'!D22 -> 51.76256362 | F23: ='Acquirer Assumptions'!F22 -> 55.69354085 | H23: ='Acquirer Assumptions'!H22 -> 52.66137219 | J23: =+IF(ISERROR(('Target Assumptions'!J21*'Target IS'!J9+'Acquirer Assumptions'!J22*'Acquirer IS'!J9)/('Target IS'!J9+'Acquirer IS'!J9)),0,('Target Assumptions'!J21*'Target IS'!J9+'Acquirer Assumptions'!J22*'Acquirer IS'!J9)/('Target IS'!J9+'Acquirer IS'!J9)) -> 52.92711822 | K23: =+IF(ISERROR(('Target Assumptions'!K21*'Target IS'!K9+'Acquirer Assumptions'!K22*'Acquirer IS'!K9)/('Target IS'!K9+'Acquirer IS'!K9)),0,('Target Assumptions'!K21*'Target IS'!K9+'Acquirer Assumptions'!K22*'Acquirer IS'!K9)/('Target IS'!K9+'Acquirer IS'!K9)) -> 0 | L23: =+IF(ISERROR(('Target Assumptions'!L21*'Target IS'!L9+'Acquirer Assumptions'!L22*'Acquirer IS'!L9)/('Target IS'!L9+'Acquirer IS'!L9)),0,('Target Assumptions'!L21*'Target IS'!L9+'Acquirer Assumptions'!L22*'Acquirer IS'!L9)/('Target IS'!L9+'Acquirer IS'!L9)) -> 52.93128711 | M23: =+IF(ISERROR(('Target Assumptions'!M21*'Target IS'!M9+'Acquirer Assumptions'!M22*'Acquirer IS'!M9)/('Target IS'!M9+'Acquirer IS'!M9)),0,('Target Assumptions'!M21*'Target IS'!M9+'Acquirer Assumptions'!M22*'Acquirer IS'!M9)/('Target IS'!M9+'Acquirer IS'!M9)) -> 0 | N23: =+IF(ISERROR(('Target Assumptions'!N21*'Target IS'!N9+'Acquirer Assumptions'!N22*'Acquirer IS'!N9)/('Target IS'!N9+'Acquirer IS'!N9)),0,('Target Assumptions'!N21*'Target IS'!N9+'Acquirer Assumptions'!N22*'Acquirer IS'!N9)/('Target IS'!N9+'Acquirer IS'!N9)) -> 52.93546215 | O23: =+IF(ISERROR(('Target Assumptions'!O21*'Target IS'!O9+'Acquirer Assumptions'!O22*'Acquirer IS'!O9)/('Target IS'!O9+'Acquirer IS'!O9)),0,('Target Assumptions'!O21*'Target IS'!O9+'Acquirer Assumptions'!O22*'Acquirer IS'!O9)/('Target IS'!O9+'Acquirer IS'!O9)) -> 0 | P23: =+IF(ISERROR(('Target Assumptions'!P21*'Target IS'!P9+'Acquirer Assumptions'!P22*'Acquirer IS'!P9)/('Target IS'!P9+'Acquirer IS'!P9)),0,('Target Assumptions'!P21*'Target IS'!P9+'Acquirer Assumptions'!P22*'Acquirer IS'!P9)/('Target IS'!P9+'Acquirer IS'!P9)) -> 52.93964332 | Q23: =+IF(ISERROR(('Target Assumptions'!Q21*'Target IS'!Q9+'Acquirer Assumptions'!Q22*'Acquirer IS'!Q9)/('Target IS'!Q9+'Acquirer IS'!Q9)),0,('Target Assumptions'!Q21*'Target IS'!Q9+'Acquirer Assumptions'!Q22*'Acquirer IS'!Q9)/('Target IS'!Q9+'Acquirer IS'!Q9)) -> 0 | R23: =+IF(ISERROR(('Target Assumptions'!R21*'Target IS'!R9+'Acquirer Assumptions'!R22*'Acquirer IS'!R9)/('Target IS'!R9+'Acquirer IS'!R9)),0,('Target Assumptions'!R21*'Target IS'!R9+'Acquirer Assumptions'!R22*'Acquirer IS'!R9)/('Target IS'!R9+'Acquirer IS'!R9)) -> 52.94383063
B24: Inventory Days | D24: ='Acquirer Assumptions'!D23 -> 69.79621958 | F24: ='Acquirer Assumptions'!F23 -> 71.76657107 | H24: ='Acquirer Assumptions'!H23 -> 73.02124917 | J24: =+IF(ISERROR(('Target Assumptions'!J22*'Target BS'!J11+'Acquirer Assumptions'!J23*'Acquirer BS'!J11)/('Target BS'!J11+'Acquirer BS'!J11)),0,('Target Assumptions'!J22*'Target BS'!J11+'Acquirer Assumptions'!J23*'Acquirer BS'!J11)/('Target BS'!J11+'Acquirer BS'!J11)) -> 73.86925657 | K24: =+IF(ISERROR(('Target Assumptions'!K22*'Target BS'!K11+'Acquirer Assumptions'!K23*'Acquirer BS'!K11)/('Target BS'!K11+'Acquirer BS'!K11)),0,('Target Assumptions'!K22*'Target BS'!K11+'Acquirer Assumptions'!K23*'Acquirer BS'!K11)/('Target BS'!K11+'Acquirer BS'!K11)) -> 0 | L24: =+IF(ISERROR(('Target Assumptions'!L22*'Target BS'!L11+'Acquirer Assumptions'!L23*'Acquirer BS'!L11)/('Target BS'!L11+'Acquirer BS'!L11)),0,('Target Assumptions'!L22*'Target BS'!L11+'Acquirer Assumptions'!L23*'Acquirer BS'!L11)/('Target BS'!L11+'Acquirer BS'!L11)) -> 73.87562892 | M24: =+IF(ISERROR(('Target Assumptions'!M22*'Target BS'!M11+'Acquirer Assumptions'!M23*'Acquirer BS'!M11)/('Target BS'!M11+'Acquirer BS'!M11)),0,('Target Assumptions'!M22*'Target BS'!M11+'Acquirer Assumptions'!M23*'Acquirer BS'!M11)/('Target BS'!M11+'Acquirer BS'!M11)) -> 0 | N24: =+IF(ISERROR(('Target Assumptions'!N22*'Target BS'!N11+'Acquirer Assumptions'!N23*'Acquirer BS'!N11)/('Target BS'!N11+'Acquirer BS'!N11)),0,('Target Assumptions'!N22*'Target BS'!N11+'Acquirer Assumptions'!N23*'Acquirer BS'!N11)/('Target BS'!N11+'Acquirer BS'!N11)) -> 73.8820114 | O24: =+IF(ISERROR(('Target Assumptions'!O22*'Target BS'!O11+'Acquirer Assumptions'!O23*'Acquirer BS'!O11)/('Target BS'!O11+'Acquirer BS'!O11)),0,('Target Assumptions'!O22*'Target BS'!O11+'Acquirer Assumptions'!O23*'Acquirer BS'!O11)/('Target BS'!O11+'Acquirer BS'!O11)) -> 0 | P24: =+IF(ISERROR(('Target Assumptions'!P22*'Target BS'!P11+'Acquirer Assumptions'!P23*'Acquirer BS'!P11)/('Target BS'!P11+'Acquirer BS'!P11)),0,('Target Assumptions'!P22*'Target BS'!P11+'Acquirer Assumptions'!P23*'Acquirer BS'!P11)/('Target BS'!P11+'Acquirer BS'!P11)) -> 73.888404 | Q24: =+IF(ISERROR(('Target Assumptions'!Q22*'Target BS'!Q11+'Acquirer Assumptions'!Q23*'Acquirer BS'!Q11)/('Target BS'!Q11+'Acquirer BS'!Q11)),0,('Target Assumptions'!Q22*'Target BS'!Q11+'Acquirer Assumptions'!Q23*'Acquirer BS'!Q11)/('Target BS'!Q11+'Acquirer BS'!Q11)) -> 0 | R24: =+IF(ISERROR(('Target Assumptions'!R22*'Target BS'!R11+'Acquirer Assumptions'!R23*'Acquirer BS'!R11)/('Target BS'!R11+'Acquirer BS'!R11)),0,('Target Assumptions'!R22*'Target BS'!R11+'Acquirer Assumptions'!R23*'Acquirer BS'!R11)/('Target BS'!R11+'Acquirer BS'!R11)) -> 73.89480672
B25: Oth Current Assets % of Sales | D25: ='Acquirer Assumptions'!D24 -> 0.05418017723 | F25: ='Acquirer Assumptions'!F24 -> 0.061208776 | H25: ='Acquirer Assumptions'!H24 -> 0.0584577015 | J25: =+IF(ISERROR(('Target BS'!J12+'Acquirer BS'!J12)/('Target IS'!J9+'Acquirer IS'!J9)),0,('Target BS'!J12+'Acquirer BS'!J12)/('Target IS'!J9+'Acquirer IS'!J9)) -> 0.05272266933 | K25: =+IF(ISERROR(('Target BS'!K12+'Acquirer BS'!K12)/('Target IS'!K9+'Acquirer IS'!K9)),0,('Target BS'!K12+'Acquirer BS'!K12)/('Target IS'!K9+'Acquirer IS'!K9)) -> 0 | L25: =+IF(ISERROR(('Target BS'!L12+'Acquirer BS'!L12)/('Target IS'!L9+'Acquirer IS'!L9)),0,('Target BS'!L12+'Acquirer BS'!L12)/('Target IS'!L9+'Acquirer IS'!L9)) -> 0.05272423267 | M25: =+IF(ISERROR(('Target BS'!M12+'Acquirer BS'!M12)/('Target IS'!M9+'Acquirer IS'!M9)),0,('Target BS'!M12+'Acquirer BS'!M12)/('Target IS'!M9+'Acquirer IS'!M9)) -> 0 | N25: =+IF(ISERROR(('Target BS'!N12+'Acquirer BS'!N12)/('Target IS'!N9+'Acquirer IS'!N9)),0,('Target BS'!N12+'Acquirer BS'!N12)/('Target IS'!N9+'Acquirer IS'!N9)) -> 0.0527257983 | O25: =+IF(ISERROR(('Target BS'!O12+'Acquirer BS'!O12)/('Target IS'!O9+'Acquirer IS'!O9)),0,('Target BS'!O12+'Acquirer BS'!O12)/('Target IS'!O9+'Acquirer IS'!O9)) -> 0 | P25: =+IF(ISERROR(('Target BS'!P12+'Acquirer BS'!P12)/('Target IS'!P9+'Acquirer IS'!P9)),0,('Target BS'!P12+'Acquirer BS'!P12)/('Target IS'!P9+'Acquirer IS'!P9)) -> 0.05272736625 | Q25: =+IF(ISERROR(('Target BS'!Q12+'Acquirer BS'!Q12)/('Target IS'!Q9+'Acquirer IS'!Q9)),0,('Target BS'!Q12+'Acquirer BS'!Q12)/('Target IS'!Q9+'Acquirer IS'!Q9)) -> 0 | R25: =+IF(ISERROR(('Target BS'!R12+'Acquirer BS'!R12)/('Target IS'!R9+'Acquirer IS'!R9)),0,('Target BS'!R12+'Acquirer BS'!R12)/('Target IS'!R9+'Acquirer IS'!R9)) -> 0.05272893649
B26: Days in Accounts Payable | D26: ='Acquirer Assumptions'!D25 -> 32.52593124 | F26: ='Acquirer Assumptions'!F25 -> 33.03711861 | H26: ='Acquirer Assumptions'!H25 -> 32.45051564 | J26: =+IF(ISERROR(('Target Assumptions'!J24*'Target IS'!J11+'Acquirer Assumptions'!J25*'Acquirer IS'!J11)/('Target IS'!J11+'Acquirer IS'!J11)),0,('Target Assumptions'!J24*'Target IS'!J11+'Acquirer Assumptions'!J25*'Acquirer IS'!J11)/('Target IS'!J11+'Acquirer IS'!J11)) -> 34.35206312 | K26: =+IF(ISERROR(('Target Assumptions'!K24*'Target IS'!K11+'Acquirer Assumptions'!K25*'Acquirer IS'!K11)/('Target IS'!K11+'Acquirer IS'!K11)),0,('Target Assumptions'!K24*'Target IS'!K11+'Acquirer Assumptions'!K25*'Acquirer IS'!K11)/('Target IS'!K11+'Acquirer IS'!K11)) -> 0 | L26: =+IF(ISERROR(('Target Assumptions'!L24*'Target IS'!L11+'Acquirer Assumptions'!L25*'Acquirer IS'!L11)/('Target IS'!L11+'Acquirer IS'!L11)),0,('Target Assumptions'!L24*'Target IS'!L11+'Acquirer Assumptions'!L25*'Acquirer IS'!L11)/('Target IS'!L11+'Acquirer IS'!L11)) -> 34.35517236 | M26: =+IF(ISERROR(('Target Assumptions'!M24*'Target IS'!M11+'Acquirer Assumptions'!M25*'Acquirer IS'!M11)/('Target IS'!M11+'Acquirer IS'!M11)),0,('Target Assumptions'!M24*'Target IS'!M11+'Acquirer Assumptions'!M25*'Acquirer IS'!M11)/('Target IS'!M11+'Acquirer IS'!M11)) -> 0 | N26: =+IF(ISERROR(('Target Assumptions'!N24*'Target IS'!N11+'Acquirer Assumptions'!N25*'Acquirer IS'!N11)/('Target IS'!N11+'Acquirer IS'!N11)),0,('Target Assumptions'!N24*'Target IS'!N11+'Acquirer Assumptions'!N25*'Acquirer IS'!N11)/('Target IS'!N11+'Acquirer IS'!N11)) -> 34.35828704 | O26: =+IF(ISERROR(('Target Assumptions'!O24*'Target IS'!O11+'Acquirer Assumptions'!O25*'Acquirer IS'!O11)/('Target IS'!O11+'Acquirer IS'!O11)),0,('Target Assumptions'!O24*'Target IS'!O11+'Acquirer Assumptions'!O25*'Acquirer IS'!O11)/('Target IS'!O11+'Acquirer IS'!O11)) -> 0 | P26: =+IF(ISERROR(('Target Assumptions'!P24*'Target IS'!P11+'Acquirer Assumptions'!P25*'Acquirer IS'!P11)/('Target IS'!P11+'Acquirer IS'!P11)),0,('Target Assumptions'!P24*'Target IS'!P11+'Acquirer Assumptions'!P25*'Acquirer IS'!P11)/('Target IS'!P11+'Acquirer IS'!P11)) -> 34.36140715 | Q26: =+IF(ISERROR(('Target Assumptions'!Q24*'Target IS'!Q11+'Acquirer Assumptions'!Q25*'Acquirer IS'!Q11)/('Target IS'!Q11+'Acquirer IS'!Q11)),0,('Target Assumptions'!Q24*'Target IS'!Q11+'Acquirer Assumptions'!Q25*'Acquirer IS'!Q11)/('Target IS'!Q11+'Acquirer IS'!Q11)) -> 0 | R26: =+IF(ISERROR(('Target Assumptions'!R24*'Target IS'!R11+'Acquirer Assumptions'!R25*'Acquirer IS'!R11)/('Target IS'!R11+'Acquirer IS'!R11)),0,('Target Assumptions'!R24*'Target IS'!R11+'Acquirer Assumptions'!R25*'Acquirer IS'!R11)/('Target IS'!R11+'Acquirer IS'!R11)) -> 34.36453269
B27: Oth Current Liabilities % of COGS | D27: ='Acquirer Assumptions'!D26 -> 0.1896568595 | F27: ='Acquirer Assumptions'!F26 -> 0.3696783349 | H27: ='Acquirer Assumptions'!H26 -> 0.2012502772 | J27: =+IF(ISERROR(('Target BS'!J30+'Acquirer BS'!J30)/('Target IS'!J11+'Acquirer IS'!J11)),0,('Target BS'!J30+'Acquirer BS'!J30)/('Target IS'!J11+'Acquirer IS'!J11)) -> 0.3007813807 | K27: =+IF(ISERROR(('Target BS'!K30+'Acquirer BS'!K30)/('Target IS'!K11+'Acquirer IS'!K11)),0,('Target BS'!K30+'Acquirer BS'!K30)/('Target IS'!K11+'Acquirer IS'!K11)) -> 0 | L27: =+IF(ISERROR(('Target BS'!L30+'Acquirer BS'!L30)/('Target IS'!L11+'Acquirer IS'!L11)),0,('Target BS'!L30+'Acquirer BS'!L30)/('Target IS'!L11+'Acquirer IS'!L11)) -> 0.3009901444 | M27: =+IF(ISERROR(('Target BS'!M30+'Acquirer BS'!M30)/('Target IS'!M11+'Acquirer IS'!M11)),0,('Target BS'!M30+'Acquirer BS'!M30)/('Target IS'!M11+'Acquirer IS'!M11)) -> 0 | N27: =+IF(ISERROR(('Target BS'!N30+'Acquirer BS'!N30)/('Target IS'!N11+'Acquirer IS'!N11)),0,('Target BS'!N30+'Acquirer BS'!N30)/('Target IS'!N11+'Acquirer IS'!N11)) -> 0.3011992727 | O27: =+IF(ISERROR(('Target BS'!O30+'Acquirer BS'!O30)/('Target IS'!O11+'Acquirer IS'!O11)),0,('Target BS'!O30+'Acquirer BS'!O30)/('Target IS'!O11+'Acquirer IS'!O11)) -> 0 | P27: =+IF(ISERROR(('Target BS'!P30+'Acquirer BS'!P30)/('Target IS'!P11+'Acquirer IS'!P11)),0,('Target BS'!P30+'Acquirer BS'!P30)/('Target IS'!P11+'Acquirer IS'!P11)) -> 0.3014087657 | Q27: =+IF(ISERROR(('Target BS'!Q30+'Acquirer BS'!Q30)/('Target IS'!Q11+'Acquirer IS'!Q11)),0,('Target BS'!Q30+'Acquirer BS'!Q30)/('Target IS'!Q11+'Acquirer IS'!Q11)) -> 0 | R27: =+IF(ISERROR(('Target BS'!R30+'Acquirer BS'!R30)/('Target IS'!R11+'Acquirer IS'!R11)),0,('Target BS'!R30+'Acquirer BS'!R30)/('Target IS'!R11+'Acquirer IS'!R11)) -> 0.3016186236
B28: Change in Other Assets | D28: ='Acquirer Assumptions'!D27 -> NA | F28: ='Acquirer Assumptions'!F27 -> -332.7 | H28: ='Acquirer Assumptions'!H27 -> -6.9 | J28: ='Target Assumptions'!J26+'Acquirer Assumptions'!J27 -> 0 | L28: ='Target Assumptions'!L26+'Acquirer Assumptions'!L27 -> 0 | N28: ='Target Assumptions'!N26+'Acquirer Assumptions'!N27 -> 0 | P28: ='Target Assumptions'!P26+'Acquirer Assumptions'!P27 -> 0 | R28: ='Target Assumptions'!R26+'Acquirer Assumptions'!R27 -> 0
B29: Change in Other LT Liabilities | D29: ='Acquirer Assumptions'!D28 -> NA | F29: ='Acquirer Assumptions'!F28 -> 77 | H29: ='Acquirer Assumptions'!H28 -> 110.2 | J29: ='Target Assumptions'!J27+'Acquirer Assumptions'!J28 -> 0 | L29: ='Target Assumptions'!L27+'Acquirer Assumptions'!L28 -> 0 | N29: ='Target Assumptions'!N27+'Acquirer Assumptions'!N28 -> 0 | P29: ='Target Assumptions'!P27+'Acquirer Assumptions'!P28 -> 0 | R29: ='Target Assumptions'!R27+'Acquirer Assumptions'!R28 -> 0
B30: Working Capital/Sales (Excl Cash & Debt) | D30: =+IF(ISERROR((SUM('Target BS'!D10:D12)-SUM('Target BS'!D29:D30)+SUM('Acquirer BS'!D10:D12)-SUM('Acquirer BS'!D29:D30))/('Target IS'!D9+'Acquirer IS'!D9)),0,(SUM('Target BS'!D10:D12)-SUM('Target BS'!D29:D30)+SUM('Acquirer BS'!D10:D12)-SUM('Acquirer BS'!D29:D30))/('Target IS'!D9+'Acquirer IS'!D9)) -> 0.1105341459 | E30: =+IF(ISERROR((SUM('Target BS'!E10:E12)-SUM('Target BS'!E29:E30)+SUM('Acquirer BS'!E10:E12)-SUM('Acquirer BS'!E29:E30))/('Target IS'!E9+'Acquirer IS'!E9)),0,(SUM('Target BS'!E10:E12)-SUM('Target BS'!E29:E30)+SUM('Acquirer BS'!E10:E12)-SUM('Acquirer BS'!E29:E30))/('Target IS'!E9+'Acquirer IS'!E9)) -> 0 | F30: =+IF(ISERROR((SUM('Target BS'!F10:F12)-SUM('Target BS'!F29:F30)+SUM('Acquirer BS'!F10:F12)-SUM('Acquirer BS'!F29:F30))/('Target IS'!F9+'Acquirer IS'!F9)),0,(SUM('Target BS'!F10:F12)-SUM('Target BS'!F29:F30)+SUM('Acquirer BS'!F10:F12)-SUM('Acquirer BS'!F29:F30))/('Target IS'!F9+'Acquirer IS'!F9)) -> 0.02630669406 | G30: =+IF(ISERROR((SUM('Target BS'!G10:G12)-SUM('Target BS'!G29:G30)+SUM('Acquirer BS'!G10:G12)-SUM('Acquirer BS'!G29:G30))/('Target IS'!G9+'Acquirer IS'!G9)),0,(SUM('Target BS'!G10:G12)-SUM('Target BS'!G29:G30)+SUM('Acquirer BS'!G10:G12)-SUM('Acquirer BS'!G29:G30))/('Target IS'!G9+'Acquirer IS'!G9)) -> 0 | H30: =+IF(ISERROR((SUM('Target BS'!H10:H12)-SUM('Target BS'!H29:H30)+SUM('Acquirer BS'!H10:H12)-SUM('Acquirer BS'!H29:H30))/('Target IS'!H9+'Acquirer IS'!H9)),0,(SUM('Target BS'!H10:H12)-SUM('Target BS'!H29:H30)+SUM('Acquirer BS'!H10:H12)-SUM('Acquirer BS'!H29:H30))/('Target IS'!H9+'Acquirer IS'!H9)) -> 0.1240375507 | I30: =+IF(ISERROR((SUM('Target BS'!I10:I12)-SUM('Target BS'!I29:I30)+SUM('Acquirer BS'!I10:I12)-SUM('Acquirer BS'!I29:I30))/('Target IS'!I9+'Acquirer IS'!I9)),0,(SUM('Target BS'!I10:I12)-SUM('Target BS'!I29:I30)+SUM('Acquirer BS'!I10:I12)-SUM('Acquirer BS'!I29:I30))/('Target IS'!I9+'Acquirer IS'!I9)) -> 0 | J30: =+IF(ISERROR((SUM('Target BS'!J10:J12)-SUM('Target BS'!J29:J30)+SUM('Acquirer BS'!J10:J12)-SUM('Acquirer BS'!J29:J30))/('Target IS'!J9+'Acquirer IS'!J9)),0,(SUM('Target BS'!J10:J12)-SUM('Target BS'!J29:J30)+SUM('Acquirer BS'!J10:J12)-SUM('Acquirer BS'!J29:J30))/('Target IS'!J9+'Acquirer IS'!J9)) -> 0.09396095057 | K30: =+IF(ISERROR((SUM('Target BS'!K10:K12)-SUM('Target BS'!K29:K30)+SUM('Acquirer BS'!K10:K12)-SUM('Acquirer BS'!K29:K30))/('Target IS'!K9+'Acquirer IS'!K9)),0,(SUM('Target BS'!K10:K12)-SUM('Target BS'!K29:K30)+SUM('Acquirer BS'!K10:K12)-SUM('Acquirer BS'!K29:K30))/('Target IS'!K9+'Acquirer IS'!K9)) -> 0 | L30: =+IF(ISERROR((SUM('Target BS'!L10:L12)-SUM('Target BS'!L29:L30)+SUM('Acquirer BS'!L10:L12)-SUM('Acquirer BS'!L29:L30))/('Target IS'!L9+'Acquirer IS'!L9)),0,(SUM('Target BS'!L10:L12)-SUM('Target BS'!L29:L30)+SUM('Acquirer BS'!L10:L12)-SUM('Acquirer BS'!L29:L30))/('Target IS'!L9+'Acquirer IS'!L9)) -> 0.0938800277 | M30: =+IF(ISERROR((SUM('Target BS'!M10:M12)-SUM('Target BS'!M29:M30)+SUM('Acquirer BS'!M10:M12)-SUM('Acquirer BS'!M29:M30))/('Target IS'!M9+'Acquirer IS'!M9)),0,(SUM('Target BS'!M10:M12)-SUM('Target BS'!M29:M30)+SUM('Acquirer BS'!M10:M12)-SUM('Acquirer BS'!M29:M30))/('Target IS'!M9+'Acquirer IS'!M9)) -> 0 | N30: =+IF(ISERROR((SUM('Target BS'!N10:N12)-SUM('Target BS'!N29:N30)+SUM('Acquirer BS'!N10:N12)-SUM('Acquirer BS'!N29:N30))/('Target IS'!N9+'Acquirer IS'!N9)),0,(SUM('Target BS'!N10:N12)-SUM('Target BS'!N29:N30)+SUM('Acquirer BS'!N10:N12)-SUM('Acquirer BS'!N29:N30))/('Target IS'!N9+'Acquirer IS'!N9)) -> 0.09379898555 | O30: =+IF(ISERROR((SUM('Target BS'!O10:O12)-SUM('Target BS'!O29:O30)+SUM('Acquirer BS'!O10:O12)-SUM('Acquirer BS'!O29:O30))/('Target IS'!O9+'Acquirer IS'!O9)),0,(SUM('Target BS'!O10:O12)-SUM('Target BS'!O29:O30)+SUM('Acquirer BS'!O10:O12)-SUM('Acquirer BS'!O29:O30))/('Target IS'!O9+'Acquirer IS'!O9)) -> 0 | P30: =+IF(ISERROR((SUM('Target BS'!P10:P12)-SUM('Target BS'!P29:P30)+SUM('Acquirer BS'!P10:P12)-SUM('Acquirer BS'!P29:P30))/('Target IS'!P9+'Acquirer IS'!P9)),0,(SUM('Target BS'!P10:P12)-SUM('Target BS'!P29:P30)+SUM('Acquirer BS'!P10:P12)-SUM('Acquirer BS'!P29:P30))/('Target IS'!P9+'Acquirer IS'!P9)) -> 0.09371782421 | Q30: =+IF(ISERROR((SUM('Target BS'!Q10:Q12)-SUM('Target BS'!Q29:Q30)+SUM('Acquirer BS'!Q10:Q12)-SUM('Acquirer BS'!Q29:Q30))/('Target IS'!Q9+'Acquirer IS'!Q9)),0,(SUM('Target BS'!Q10:Q12)-SUM('Target BS'!Q29:Q30)+SUM('Acquirer BS'!Q10:Q12)-SUM('Acquirer BS'!Q29:Q30))/('Target IS'!Q9+'Acquirer IS'!Q9)) -> 0 | R30: =+IF(ISERROR((SUM('Target BS'!R10:R12)-SUM('Target BS'!R29:R30)+SUM('Acquirer BS'!R10:R12)-SUM('Acquirer BS'!R29:R30))/('Target IS'!R9+'Acquirer IS'!R9)),0,(SUM('Target BS'!R10:R12)-SUM('Target BS'!R29:R30)+SUM('Acquirer BS'!R10:R12)-SUM('Acquirer BS'!R29:R30))/('Target IS'!R9+'Acquirer IS'!R9)) -> 0.09363654374
B32: Cash Flow
B34: Capital Expenditures | D34: ='Acquirer Assumptions'!D33 -> 245.4 | F34: ='Acquirer Assumptions'!F33 -> 260.9 | H34: ='Acquirer Assumptions'!H33 -> 1083.4 | J34: ='Target Assumptions'!J32+'Acquirer Assumptions'!J33 -> 872.131832 | L34: ='Target Assumptions'!L32+'Acquirer Assumptions'!L33 -> 917.5328019 | N34: ='Target Assumptions'!N32+'Acquirer Assumptions'!N33 -> 965.2973785 | P34: ='Target Assumptions'!P32+'Acquirer Assumptions'!P33 -> 1015.548621 | R34: ='Target Assumptions'!R32+'Acquirer Assumptions'!R33 -> 1068.415996
B35: Capex as a % of Sales | D35: ='Acquirer Assumptions'!D34 -> 0.02361181938 | F35: ='Acquirer Assumptions'!F34 -> 0.02257154722 | H35: ='Acquirer Assumptions'!H34 -> 0.0866034101 | J35: =+IF(ISERROR(J34/'Newco IS'!M9),0,J34/'Newco IS'!M9) -> 0.0502332855 | K35: =+IF(ISERROR(K34/'Newco IS'!N9),0,K34/'Newco IS'!N9) -> 0 | L35: =+IF(ISERROR(L34/'Newco IS'!O9),0,L34/'Newco IS'!O9) -> 0 | M35: =+IF(ISERROR(M34/'Newco IS'!P9),0,M34/'Newco IS'!P9) -> 0 | N35: =+IF(ISERROR(N34/'Newco IS'!Q9),0,N34/'Newco IS'!Q9) -> 0 | O35: =+IF(ISERROR(O34/'Newco IS'!R9),0,O34/'Newco IS'!R9) -> 0 | P35: =+IF(ISERROR(P34/'Newco IS'!S9),0,P34/'Newco IS'!S9) -> 0 | Q35: =+IF(ISERROR(Q34/'Newco IS'!T9),0,Q34/'Newco IS'!T9) -> 0 | R35: =+IF(ISERROR(R34/'Newco IS'!U9),0,R34/'Newco IS'!U9) -> 0
B36: Depreciation | D36: ='Acquirer Assumptions'!D35 -> 739.7 | F36: ='Acquirer Assumptions'!F35 -> 895.6 | H36: ='Acquirer Assumptions'!H35 -> 983.7 | J36: ='Target Assumptions'!J34+'Acquirer Assumptions'!J35 -> 1120.67007 | L36: ='Target Assumptions'!L34+'Acquirer Assumptions'!L35 -> 1179.345831 | N36: ='Target Assumptions'!N34+'Acquirer Assumptions'!N35 -> 1241.094781 | P36: ='Target Assumptions'!P34+'Acquirer Assumptions'!P35 -> 1306.07794 | R36: ='Target Assumptions'!R34+'Acquirer Assumptions'!R35 -> 1374.464766
B37: Depreciation as a % of Sales | D37: ='Acquirer Assumptions'!D36 -> 0.07117222003 | F37: ='Acquirer Assumptions'!F36 -> 0.07748209157 | H37: ='Acquirer Assumptions'!H36 -> 0.07863372209 | J37: =+IF(ISERROR(J36/'Newco IS'!M9),0,J36/'Newco IS'!M9) -> 0.06454865825 | K37: =+IF(ISERROR(K36/'Newco IS'!N9),0,K36/'Newco IS'!N9) -> 0 | L37: =+IF(ISERROR(L36/'Newco IS'!O9),0,L36/'Newco IS'!O9) -> 0 | M37: =+IF(ISERROR(M36/'Newco IS'!P9),0,M36/'Newco IS'!P9) -> 0 | N37: =+IF(ISERROR(N36/'Newco IS'!Q9),0,N36/'Newco IS'!Q9) -> 0 | O37: =+IF(ISERROR(O36/'Newco IS'!R9),0,O36/'Newco IS'!R9) -> 0 | P37: =+IF(ISERROR(P36/'Newco IS'!S9),0,P36/'Newco IS'!S9) -> 0 | Q37: =+IF(ISERROR(Q36/'Newco IS'!T9),0,Q36/'Newco IS'!T9) -> 0 | R37: =+IF(ISERROR(R36/'Newco IS'!U9),0,R36/'Newco IS'!U9) -> 0
B38: Goodwill Amortization (Pre-6/2001) | D38: ='Acquirer Assumptions'!D37 -> 0 | F38: ='Acquirer Assumptions'!F37 -> 0 | H38: ='Acquirer Assumptions'!H37 -> 0 | J38: ='Acquirer Assumptions'!J37+Summary!E31 -> 0 | L38: ='Acquirer Assumptions'!L37+Summary!E31 -> 0 | N38: ='Acquirer Assumptions'!N37+Summary!E31 -> 0 | P38: ='Acquirer Assumptions'!P37+Summary!E31 -> 0 | R38: ='Acquirer Assumptions'!R37+Summary!E31 -> 0
B39: Amortization of Intangibles | D39: ='Acquirer Assumptions'!D38 -> 0 | F39: ='Acquirer Assumptions'!F38 -> 0 | H39: ='Acquirer Assumptions'!H38 -> 0 | J39: ='Target Assumptions'!J37+'Acquirer Assumptions'!J38 -> 300 | L39: ='Target Assumptions'!L37+'Acquirer Assumptions'!L38 -> 300 | N39: ='Target Assumptions'!N37+'Acquirer Assumptions'!N38 -> 300 | P39: ='Target Assumptions'!P37+'Acquirer Assumptions'!P38 -> 300 | R39: ='Target Assumptions'!R37+'Acquirer Assumptions'!R38 -> 300
B40: Amortization of Deferred Financing Exp | D40: 0 | F40: 0 | H40: 0 | J40: =Summary!$E$29 -> 19.05 | L40: =Summary!$E$29 -> 19.05 | N40: =Summary!$E$29 -> 19.05 | P40: =Summary!$E$29 -> 19.05 | R40: =Summary!$E$29 -> 19.05
B41: Chg in Deferred Taxes - Asset | D41: ='Acquirer Assumptions'!D41 -> NA | F41: ='Acquirer Assumptions'!F41 -> 0 | H41: ='Acquirer Assumptions'!H41 -> 0 | J41: ='Target Assumptions'!J40+'Acquirer Assumptions'!J41 -> 0 | L41: ='Target Assumptions'!L40+'Acquirer Assumptions'!L41 -> 0 | N41: ='Target Assumptions'!N40+'Acquirer Assumptions'!N41 -> 0 | P41: ='Target Assumptions'!P40+'Acquirer Assumptions'!P41 -> 0 | R41: ='Target Assumptions'!R40+'Acquirer Assumptions'!R41 -> 0
B42: Chg in Deferred Taxes - Liab | D42: ='Acquirer Assumptions'!D42 -> NA | F42: ='Acquirer Assumptions'!F42 -> 602.7 | H42: ='Acquirer Assumptions'!H42 -> -182.1 | J42: ='Target Assumptions'!J41+'Acquirer Assumptions'!J42 -> 210.3 | L42: ='Target Assumptions'!L41+'Acquirer Assumptions'!L42 -> 210.3 | N42: ='Target Assumptions'!N41+'Acquirer Assumptions'!N42 -> 210.3 | P42: ='Target Assumptions'!P41+'Acquirer Assumptions'!P42 -> 210.3 | R42: ='Target Assumptions'!R41+'Acquirer Assumptions'!R42 -> 210.3
B43: Dividend from Affiliates | D43: ='Acquirer Assumptions'!D43 -> 0 | F43: ='Acquirer Assumptions'!F43 -> 0 | H43: ='Acquirer Assumptions'!H43 -> 0 | J43: ='Target Assumptions'!J42+'Acquirer Assumptions'!J43 -> 0 | L43: ='Target Assumptions'!L42+'Acquirer Assumptions'!L43 -> 0 | N43: ='Target Assumptions'!N42+'Acquirer Assumptions'!N43 -> 0 | P43: ='Target Assumptions'!P42+'Acquirer Assumptions'!P43 -> 0 | R43: ='Target Assumptions'!R42+'Acquirer Assumptions'!R43 -> 0
B44: Payout Ratio of Affiliates | D44: ='Acquirer Assumptions'!D44 -> 0 | F44: ='Acquirer Assumptions'!F44 -> 0 | H44: ='Acquirer Assumptions'!H44 -> 0 | J44: =IF('Newco IS'!M24=0,0,J43/-'Newco IS'!M24) -> 0 | L44: =IF('Newco IS'!P24=0,0,L43/-'Newco IS'!P24) -> 0 | N44: =IF('Newco IS'!R24=0,0,N43/-'Newco IS'!R24) -> 0 | P44: =IF('Newco IS'!T24=0,0,P43/-'Newco IS'!T24) -> 0 | R44: =IF('Newco IS'!V24=0,0,R43/-'Newco IS'!V24) -> 0
B45: Dividends per Share | D45: ='Acquirer Assumptions'!D45 -> 0 | F45: ='Acquirer Assumptions'!F45 -> 0 | H45: ='Acquirer Assumptions'!H45 -> 0 | J45: ='Acquirer Assumptions'!J45 -> 0 | L45: ='Acquirer Assumptions'!L45 -> 0 | N45: ='Acquirer Assumptions'!N45 -> 0 | P45: ='Acquirer Assumptions'!P45 -> 0 | R45: ='Acquirer Assumptions'!R45 -> 0
B46: Dividend Payout Ratio | D46: ='Acquirer Assumptions'!D46 -> 0 | F46: ='Acquirer Assumptions'!F46 -> 0 | H46: ='Acquirer Assumptions'!H46 -> 0 | J46: ='Acquirer Assumptions'!J46 -> 0 | L46: ='Acquirer Assumptions'!L46 -> 0 | N46: ='Acquirer Assumptions'!N46 -> 0 | P46: ='Acquirer Assumptions'!P46 -> 0 | R46: ='Acquirer Assumptions'!R46 -> 0
B47: Dividends Paid | D47: ='Acquirer Assumptions'!D47 -> 0 | F47: ='Acquirer Assumptions'!F47 -> 0 | H47: ='Acquirer Assumptions'!H47 -> 0 | J47: =J45*J53 -> 0 | L47: =L45*L53 -> 0 | N47: =N45*N53 -> 0 | P47: =P45*P53 -> 0 | R47: =R45*R53 -> 0
B48: Effective Tax Rate | D48: ='Acquirer Assumptions'!D48 -> 0.3685165034 | F48: ='Acquirer Assumptions'!F48 -> 3.116809117 | H48: ='Acquirer Assumptions'!H48 -> 0.7382550336 | J48: ='Acquirer Assumptions'!J48 -> 0.26 | L48: ='Acquirer Assumptions'!L48 -> 0.26 | N48: ='Acquirer Assumptions'!N48 -> 0.26 | P48: ='Acquirer Assumptions'!P48 -> 0.26 | R48: ='Acquirer Assumptions'!R48 -> 0.26
B49: Marginal Tax Rate | D49: ='Acquirer Assumptions'!D50 -> 0 | F49: ='Acquirer Assumptions'!F50 -> 0 | H49: ='Acquirer Assumptions'!H50 -> 0 | J49: 0.4 | K49: 0.4 | L49: 0.4 | M49: 0.4 | N49: 0.4 | O49: 0.4 | P49: 0.4 | Q49: 0.4 | R49: 0.4
B51: Other
B53: Shares Outstanding - Basic | D53: ='Acquirer Assumptions'!D53 -> 0 | F53: ='Acquirer Assumptions'!F53 -> 0 | H53: ='Acquirer Assumptions'!H53 -> 358.1 | J53: ='Acquirer Assumptions'!H53+Summary!I14+Summary!I15+Summary!I16+Summary!I17 -> 503.9426148 | L53: =J53 -> 503.9426148 | N53: =J53 -> 503.9426148 | P53: =J53 -> 503.9426148 | R53: =J53 -> 503.9426148
B54: Shares Outstanding - Diluted | D54: ='Acquirer Assumptions'!D54 -> 0 | F54: ='Acquirer Assumptions'!F54 -> 0 | H54: ='Acquirer Assumptions'!H54 -> 361.7 | J54: ='Acquirer Assumptions'!H54+Summary!$I$14+Summary!$I$15+Summary!$I$16+Summary!$I$16 -> 507.5426148 | L54: ='Acquirer Assumptions'!H54+Summary!$I$15+Summary!$I$16+Summary!$I$17 -> 413.5672199 | N54: ='Acquirer Assumptions'!H54+Summary!$I$15+Summary!$I$16+Summary!$I$17 -> 413.5672199 | P54: ='Acquirer Assumptions'!H54+Summary!$I$15+Summary!$I$16+Summary!$I$17 -> 413.5672199 | R54: ='Acquirer Assumptions'!H54+Summary!$I$15+Summary!$I$16+Summary!$I$17 -> 413.5672199
B55: Revolving Credit Facility Rate | D55: ='Acquirer Assumptions'!D55 -> 0 | F55: ='Acquirer Assumptions'!F55 -> 0 | H55: ='Acquirer Assumptions'!H55 -> 0 | J55: ='Acquirer Assumptions'!J55 -> 0.044 | L55: =J55 -> 0.044 | N55: =L55 -> 0.044 | P55: =N55 -> 0.044 | R55: =P55 -> 0.044
B56: Senior Debt Rate | D56: ='Acquirer Assumptions'!D56 -> 0 | F56: ='Acquirer Assumptions'!F56 -> 0 | H56: ='Acquirer Assumptions'!H56 -> 0 | J56: 0.055 | L56: =J56 -> 0.055 | N56: =L56 -> 0.055 | P56: =N56 -> 0.055 | R56: =P56 -> 0.055
B57: Subordinated Debt | D57: ='Acquirer Assumptions'!D57 -> 0 | F57: ='Acquirer Assumptions'!F57 -> 0 | H57: ='Acquirer Assumptions'!H57 -> 0 | J57: 0.08 | L57: =J57 -> 0.08 | N57: =L57 -> 0.08 | P57: =N57 -> 0.08 | R57: =P57 -> 0.08
B58: Average Interest Rate | D58: ='Acquirer Assumptions'!D58 -> NA | F58: ='Acquirer Assumptions'!F58 -> 0.04502491396 | H58: ='Acquirer Assumptions'!H58 -> 0.03779015204 | J58: =+IF(ISERROR('Newco IS'!M27/AVERAGE('Newco BS'!M39:P39)),0,'Newco IS'!M27/AVERAGE('Newco BS'!M39:P39)) -> 0.04976043952 | K58: =+IF(ISERROR('Newco IS'!N27/AVERAGE('Newco BS'!N39:Q39)),0,'Newco IS'!N27/AVERAGE('Newco BS'!N39:Q39)) -> 0 | L58: =+IF(ISERROR('Newco IS'!P27/AVERAGE('Newco BS'!P39:R39)),0,'Newco IS'!P27/AVERAGE('Newco BS'!P39:R39)) -> 0.04976310235 | M58: =+IF(ISERROR('Newco IS'!P27/AVERAGE('Newco BS'!P39:S39)),0,'Newco IS'!P27/AVERAGE('Newco BS'!P39:S39)) -> 0.04976310235 | N58: =+IF(ISERROR('Newco IS'!R27/AVERAGE('Newco BS'!R39:T39)),0,'Newco IS'!R27/AVERAGE('Newco BS'!R39:T39)) -> 0.04976639148 | O58: =+IF(ISERROR('Newco IS'!R27/AVERAGE('Newco BS'!R39:U39)),0,'Newco IS'!R27/AVERAGE('Newco BS'!R39:U39)) -> 0.04976639148 | P58: =+IF(ISERROR('Newco IS'!T27/AVERAGE('Newco BS'!T39:V39)),0,'Newco IS'!T27/AVERAGE('Newco BS'!T39:V39)) -> 0.04977055728 | Q58: =+IF(ISERROR('Newco IS'!T27/AVERAGE('Newco BS'!T39:W39)),0,'Newco IS'!T27/AVERAGE('Newco BS'!T39:W39)) -> 0.04977055728 | R58: =+IF(ISERROR('Newco IS'!V27/AVERAGE('Newco BS'!V39:X39)),0,'Newco IS'!V27/AVERAGE('Newco BS'!V39:X39)) -> 0.04977600418
B59: Marketable Securities Rate | D59: ='Acquirer Assumptions'!D59 -> 0 | F59: ='Acquirer Assumptions'!F59 -> 0 | H59: ='Acquirer Assumptions'!H59 -> 0 | J59: ='Acquirer Assumptions'!J59 -> 0 | L59: ='Acquirer Assumptions'!L59 -> 0 | N59: ='Acquirer Assumptions'!N59 -> 0 | P59: ='Acquirer Assumptions'!P59 -> 0 | R59: ='Acquirer Assumptions'!R59 -> 0

Sheet Newco IS
A1: ='Newco Assumptions'!A1 -> Newco | W1: Pro Forma Income Statement
A2: ($Millions, except per share data)
D6: Actual | G6: ="Projected "&('Newco Assumptions'!J7)&"" -> Projected 2016 | K6: Trans | M6: Pro Forma | P6: ='Newco Assumptions'!J6 -> Projections | Y6: 1 | Z6: 0 = circ off
D7: ='Acquirer Assumptions'!H7 -> 2015 | G7: ='Acquirer Assumptions'!A1 -> Acquirer | I7: Target | K7: Adj | M7: ='Newco Assumptions'!J7 -> 2016 | P7: ='Acquirer Assumptions'!L7 -> 2017 | R7: ='Acquirer Assumptions'!N7 -> 2018 | T7: ='Acquirer Assumptions'!P7 -> 2019 | V7: ='Acquirer Assumptions'!R7 -> 2020 | Z7: 1 = circ on
B9: Sales | D9: ='Acquirer IS'!H9 -> 12509.9 | G9: ='Acquirer IS'!J9 -> 13160.4148 | I9: ='Target IS'!J9 -> 4176.2175 | K9: =Summary!Q39 -> 25 | M9: =G9+I9+K9 -> 17361.6323 | P9: ='Target IS'!L9+'Acquirer IS'!L9+Summary!Q40 -> 18325.66583 | R9: ='Target IS'!N9+'Acquirer IS'!N9+Summary!Q41 -> 19362.91818 | T9: ='Target IS'!P9+'Acquirer IS'!P9+Summary!Q42 -> 20375.93463 | V9: ='Target IS'!R9+'Acquirer IS'!R9+Summary!Q43 -> 21442.3949
B11: Integration Expenses | K11: ='Newco Assumptions'!J13 -> 100 | M11: =SUM(G11:K11) -> 100 | P11: ='Newco Assumptions'!L13 -> 50 | R11: ='Newco Assumptions'!N13 -> 0 | S11: ='Newco Assumptions'!O13 -> 0 | T11: ='Newco Assumptions'!P13 -> 0 | V11: ='Newco Assumptions'!R13 -> 0
B12: Cost of Goods Sold | D12: ='Acquirer IS'!H11 -> 7214.4 | G12: ='Acquirer IS'!J11 -> 7501.436436 | I12: ='Target IS'!J11 -> 1795.773525 | K12: =IF($Y$6=0,0,Summary!Q39*(1-Summary!O39)-Summary!K39) -> 8.543878936 | M12: =IF($Y$6=0,0,G12+I12+K12+M11) -> 9405.75384 | P12: =IF($Y$6=0,0,'Target IS'!L11+'Acquirer IS'!L11+Summary!Q40*(1-Summary!O40)-Summary!K40)+P11 -> 9866.431763 | R12: =IF($Y$6=0,0,'Target IS'!N11+'Acquirer IS'!N11+Summary!Q41*(1-Summary!O41)-Summary!K41) -> 10365.91284 | T12: =IF($Y$6=0,0,'Target IS'!P11+'Acquirer IS'!P11+Summary!Q42*(1-Summary!O42)-Summary!K42) -> 10907.5357 | V12: =IF($Y$6=0,0,'Target IS'!R11+'Acquirer IS'!R11+Summary!Q43*(1-Summary!O43)-Summary!K43) -> 11477.6527
B14: Gross Profit | D14: =D9-D12 -> 5295.5 | G14: =G9-G12 -> 5658.978364 | I14: =I9-I12 -> 2380.443975 | M14: =M9-SUM(M11:M12) -> 7855.87846 | P14: =P9-SUM(P11:P12) -> 8409.234069 | R14: =R9-SUM(R11:R12) -> 8997.005343 | T14: 9468.398932 | V14: 9964.742198
B16: SG&A | D16: ='Acquirer IS'!H15 -> 3354.9 | G16: ='Acquirer IS'!J15 -> 3619.9371 | I16: ='Target IS'!J15 -> 1096.784 | K16: =-Summary!E39+Summary!Q39*Summary!E63 -> -0.5 | M16: =G16+I16+K16 -> 4716.2211 | P16: ='Target IS'!L15+'Acquirer IS'!L15-Summary!E40+Summary!Q40*Summary!E63 -> 5049.067491 | R16: ='Target IS'!N15+'Acquirer IS'!N15-Summary!E41+Summary!Q41*Summary!E63 -> 5407.760764 | T16: ='Target IS'!P15+'Acquirer IS'!P15-Summary!E42+Summary!Q42*Summary!E63 -> 5788.155883 | V16: ='Target IS'!R15+'Acquirer IS'!R15-Summary!E43+Summary!Q43*Summary!E63 -> 6196.751617
B17: Other Operating Expense | D17: ='Acquirer IS'!H16 -> 458.5 | G17: ='Acquirer IS'!J16 -> 460.614518 | I17: ='Target IS'!J16 -> 459.383925 | M17: =G17+I17+K17 -> 919.998443 | P17: ='Target IS'!L16+'Acquirer IS'!L16 -> 969.2165138 | R17: ='Target IS'!N16+'Acquirer IS'!N16 -> 1021.069723 | T17: ='Target IS'!P16+'Acquirer IS'!P16 -> 1075.699266 | V17: ='Target IS'!R16+'Acquirer IS'!R16 -> 1133.25391
B18: Depreciation | D18: ='Acquirer IS'!H17 -> 983.7 | G18: ='Acquirer IS'!J17 -> 987.03111 | I18: ='Target IS'!J17 -> 133.63896 | M18: =G18+I18+K18 -> 1120.67007 | P18: ='Target IS'!L17+'Acquirer IS'!L17 -> 1179.345831 | R18: ='Target IS'!N17+'Acquirer IS'!N17 -> 1241.094781 | T18: ='Target IS'!P17+'Acquirer IS'!P17 -> 1306.07794 | V18: ='Target IS'!R17+'Acquirer IS'!R17 -> 1374.464766
B19: Amortization | D19: ='Acquirer IS'!H18 -> 0 | G19: 0 | I19: ='Target IS'!J18 -> 300 | K19: =Summary!E29 -> 19.05 | M19: =G19+I19+K19 -> 319.05 | P19: ='Newco Assumptions'!L38+'Newco Assumptions'!L39+'Newco Assumptions'!L40 -> 319.05 | R19: ='Newco Assumptions'!N38+'Newco Assumptions'!N39+'Newco Assumptions'!N40 -> 319.05 | T19: ='Newco Assumptions'!P38+'Newco Assumptions'!P39+'Newco Assumptions'!P40 -> 319.05 | V19: ='Newco Assumptions'!R38+'Newco Assumptions'!R39+'Newco Assumptions'!R40 -> 319.05
B21: EBIT | D21: =D14-SUM(D16:D19) -> 498.4 | G21: =G14-SUM(G16:G19) -> 591.395636 | I21: =I14-SUM(I16:I19) -> 390.63709 | M21: =M14-SUM(M16:M19) -> 779.9388471 | P21: =P14-SUM(P16:P19) -> 892.5542341 | R21: =R14-SUM(R16:R19) -> 1008.030076 | T21: =T14-SUM(T16:T19) -> 979.4158439 | V21: =V14-SUM(V16:V19) -> 941.221905
B23: Unusual (Gain) Loss | D23: ='Acquirer IS'!H22 -> 0 | G23: ='Acquirer IS'!J22 -> 0 | I23: ='Target IS'!J22 -> 0 | K23: =Summary!Q17*(1-Summary!E30) -> 444.5 | M23: =G23+I23+K23 -> 444.5 | P23: ='Target IS'!L22+'Acquirer IS'!L22 -> 0 | R23: ='Target IS'!N22+'Acquirer IS'!N22 -> 0 | T23: ='Target IS'!P22+'Acquirer IS'!P22 -> 0 | V23: ='Target IS'!R22+'Acquirer IS'!R22 -> 0
B24: (Income) from Affiliates | D24: ='Acquirer IS'!H23 -> 0 | G24: ='Acquirer IS'!J23 -> 0 | I24: ='Target IS'!J23 -> 0 | M24: =G24+I24+K24 -> 0 | P24: ='Target IS'!L23+'Acquirer IS'!L23 -> 0 | R24: ='Target IS'!N23+'Acquirer IS'!N23 -> 0 | T24: ='Target IS'!P23+'Acquirer IS'!P23 -> 0 | V24: ='Target IS'!R23+'Acquirer IS'!R23 -> 0
B25: Other Expense (Income) | D25: ='Acquirer IS'!H24 -> 212.7 | G25: ='Acquirer IS'!J24 -> 0 | I25: ='Target IS'!J24 -> 0 | M25: =G25+I25+K25 -> 0 | P25: ='Target IS'!L24+'Acquirer IS'!L24 -> 0 | R25: ='Target IS'!N24+'Acquirer IS'!N24 -> 0 | T25: ='Target IS'!P24+'Acquirer IS'!P24 -> 0 | V25: ='Target IS'!R24+'Acquirer IS'!R24 -> 0
B26: Interest (Income) | D26: ='Acquirer IS'!H25 -> 29.2 | G26: ='Acquirer IS'!J25 -> 0 | I26: ='Target IS'!J25 -> 0 | K26: =+IF(ISERROR(M26-G26-I26),0,M26-G26-I26) -> 0 | M26: =IF($Y$6=0,0,-'Newco Assumptions'!J59*AVERAGE('Newco BS'!M9:P9)) -> 0 | P26: =IF($Y$6=0,0,-'Newco Assumptions'!J59*AVERAGE('Newco BS'!P9:R9)) -> 0 | R26: =IF($Y$6=0,0,-'Newco Assumptions'!L59*AVERAGE('Newco BS'!R9:T9)) -> 0 | T26: =IF($Y$6=0,0,-'Newco Assumptions'!N59*AVERAGE('Newco BS'!T9:V9)) -> 0 | V26: =IF($Y$6=0,0,-'Newco Assumptions'!P59*AVERAGE('Newco BS'!V9:X9)) -> 0
B27: Interest Expense | D27: ='Acquirer IS'!H26 -> 241.6 | G27: ='Acquirer IS'!J26 -> 339.06 | I27: ='Target IS'!J26 -> 95.545 | K27: =+IF(ISERROR(M27-G27-I27),0,M27-G27-I27) -> 134.174903 | M27: =+IF(ISERROR(IF($Y$6=0,0,'Debt Repayment'!H52)),0,IF($Y$6=0,0,'Debt Repayment'!H52)) -> 568.779903 | N27: =+IF(ISERROR(IF($Y$6=0,0,'Debt Repayment'!I52)),0,IF($Y$6=0,0,'Debt Repayment'!I52)) -> 0 | O27: =+IF(ISERROR(IF($Y$6=0,0,'Debt Repayment'!J52)),0,IF($Y$6=0,0,'Debt Repayment'!J52)) -> 514.656229 | P27: =+IF(ISERROR(IF($Y$6=0,0,'Debt Repayment'!J52)),0,IF($Y$6=0,0,'Debt Repayment'!J52)) -> 514.656229 | Q27: =+IF(ISERROR(IF($Y$6=0,0,'Debt Repayment'!L52)),0,IF($Y$6=0,0,'Debt Repayment'!L52)) -> 460.532555 | R27: =+IF(ISERROR(IF($Y$6=0,0,'Debt Repayment'!L52)),0,IF($Y$6=0,0,'Debt Repayment'!L52)) -> 460.532555 | S27: =+IF(ISERROR(IF($Y$6=0,0,'Debt Repayment'!N52)),0,IF($Y$6=0,0,'Debt Repayment'!N52)) -> 406.408881 | T27: =+IF(ISERROR(IF($Y$6=0,0,'Debt Repayment'!N52)),0,IF($Y$6=0,0,'Debt Repayment'!N52)) -> 406.408881 | U27: =+IF(ISERROR(IF($Y$6=0,0,'Debt Repayment'!P52)),0,IF($Y$6=0,0,'Debt Repayment'!P52)) -> 352.285207 | V27: =+IF(ISERROR(IF($Y$6=0,0,'Debt Repayment'!P52)),0,IF($Y$6=0,0,'Debt Repayment'!P52)) -> 352.285207
B29: Earnings before Taxes | D29: =D21-SUM(D23:D27) -> 14.9 | G29: =G21-SUM(G23:G27) -> 252.335636 | I29: =I21-SUM(I23:I27) -> 295.09209 | M29: =M21-SUM(M23:M27) -> -233.341056 | P29: =P21-SUM(P23:P27) -> 377.898005 | R29: =R21-SUM(R23:R27) -> 547.4975211 | T29: =T21-SUM(T23:T27) -> 573.0069629 | V29: =V21-SUM(V23:V27) -> 588.936698
B31: Noncontrolling Interest | D31: ='Acquirer IS'!H30 -> 0 | G31: ='Acquirer IS'!J30 -> 0 | I31: ='Target IS'!J30 -> 0 | M31: =G31+I31+K31 -> 0 | P31: ='Target IS'!L30+'Acquirer IS'!L30 -> 0 | R31: ='Target IS'!N30+'Acquirer IS'!N30 -> 0 | T31: ='Target IS'!P30+'Acquirer IS'!P30 -> 0 | V31: ='Target IS'!R30+'Acquirer IS'!R30 -> 0
B32: Taxes | D32: ='Acquirer IS'!H31 -> 11 | G32: ='Acquirer IS'!J31 -> 65.60726536 | I32: ='Target IS'!J31 -> 118.036836 | K32: =(K9-K11-K12-K16-K19-K23+K26-K27)*'Newco Assumptions'!J48 -> -176.9998833 | M32: =G32+I32+K32 -> 6.644218044 | P32: =P29*'Newco Assumptions'!L48 -> 98.25348131 | R32: =R29*'Newco Assumptions'!N48 -> 142.3493555 | T32: =T29*'Newco Assumptions'!P48 -> 148.9818104 | V32: =V29*'Newco Assumptions'!R48 -> 153.1235415
B34: Net Income before Extra Items | D34: =D29-D31-D32 -> 3.9 | G34: =G29-G31-G32 -> 186.7283706 | I34: =I29-I31-I32 -> 177.055254 | M34: =M29-M31-M32 -> -239.985274 | P34: =P29-P31-P32 -> 279.6445237 | R34: =R29-R31-R32 -> 405.1481656 | T34: =T29-T31-T32 -> 424.0251525 | V34: =V29-V31-V32 -> 435.8131565
B36: Extraordinary Items | D36: ='Acquirer IS'!H35 -> -19.2 | G36: ='Acquirer IS'!J35 -> 0 | I36: ='Target IS'!J35 -> 0 | M36: =G36+I36+K36 -> 0 | P36: ='Target IS'!L35+'Acquirer IS'!L35 -> 0 | R36: ='Target IS'!N35+'Acquirer IS'!N35 -> 0 | T36: ='Target IS'!P35+'Acquirer IS'!P35 -> 0 | V36: ='Target IS'!R35+'Acquirer IS'!R35 -> 0
B37: Discontinued Operations | D37: ='Acquirer IS'!H36 -> -61.3 | G37: ='Acquirer IS'!J36 -> 0 | I37: ='Target IS'!J36 -> 0 | M37: =G37+I37+K37 -> 0 | P37: ='Target IS'!L36+'Acquirer IS'!L36 -> 0 | R37: ='Target IS'!N36+'Acquirer IS'!N36 -> 0 | T37: ='Target IS'!P36+'Acquirer IS'!P36 -> 0 | V37: ='Target IS'!R36+'Acquirer IS'!R36 -> 0
B39: Net Income after Extra Items | D39: =D34+D36+D37 -> -76.6 | G39: =G34+G36+G37 -> 186.7283706 | I39: =I34+I36+I37 -> 177.055254 | M39: =M34+M36+M37 -> -239.985274 | P39: =P34+P36+P37 -> 279.6445237 | R39: =R34+R36+R37 -> 405.1481656 | T39: =T34+T36+T37 -> 424.0251525 | V39: =V34+V36+V37 -> 435.8131565
B41: EPS - Basic | D41: ='Acquirer IS'!H40 -> 0.01089081262 | G41: =+IF(ISERROR(G34/'Acquirer Assumptions'!J53),0,G34/'Acquirer Assumptions'!J53) -> 0.5214419733 | I41: =+IF(ISERROR(I34/'Target Assumptions'!J52),0,I34/'Target Assumptions'!J52) -> 1.036623267 | M41: =+IF(ISERROR(M34/'Newco Assumptions'!J53),0,M34/'Newco Assumptions'!J53) -> -0.4762154797 | N41: =+IF(ISERROR(N34/'Newco Assumptions'!K53),0,N34/'Newco Assumptions'!K53) -> 0 | P41: =P34/'Newco Assumptions'!L53 -> 0.5549134277 | Q41: =+IF(ISERROR(Q34/'Newco Assumptions'!N53),0,Q34/'Newco Assumptions'!N53) -> 0 | R41: =R34/'Newco Assumptions'!N53 -> 0.8039569462 | S41: =+IF(ISERROR(S34/'Newco Assumptions'!P53),0,S34/'Newco Assumptions'!P53) -> 0 | T41: =T34/'Newco Assumptions'!P53 -> 0.8414155504 | U41: =+IF(ISERROR(U34/'Newco Assumptions'!R53),0,U34/'Newco Assumptions'!R53) -> 0 | V41: =V34/'Newco Assumptions'!R53 -> 0.8648071104
B43: EPS - Diluted | D43: ='Acquirer IS'!H42 -> 0.01078241637 | G43: =+IF(ISERROR(G39/'Acquirer Assumptions'!J54),0,G39/'Acquirer Assumptions'!J54) -> 0.5162520615 | H43: =+IF(ISERROR(H39/'Acquirer Assumptions'!K54),0,H39/'Acquirer Assumptions'!K54) -> 0 | I43: =+IF(ISERROR(I39/'Acquirer Assumptions'!L54),0,I39/'Acquirer Assumptions'!L54) -> 0.4895085817 | M43: =+IF(ISERROR(M39/'Newco Assumptions'!J54),0,M39/'Newco Assumptions'!J54) -> -0.4728376831 | N43: =+IF(ISERROR(N39/'Newco Assumptions'!K54),0,N39/'Newco Assumptions'!K54) -> 0 | P43: =P34/'Newco Assumptions'!L54 -> 0.6761767139 | Q43: =+IF(ISERROR(Q39/'Newco Assumptions'!N54),0,Q39/'Newco Assumptions'!N54) -> 0 | R43: =R34/'Newco Assumptions'!N54 -> 0.9796428395 | S43: =+IF(ISERROR(S39/'Newco Assumptions'!P54),0,S39/'Newco Assumptions'!P54) -> 0 | T43: =T34/'Newco Assumptions'!P54 -> 1.025287141 | U43: =+IF(ISERROR(U39/'Newco Assumptions'!R54),0,U39/'Newco Assumptions'!R54) -> 0 | V43: =V39/'Newco Assumptions'!R54 -> 1.053790377
B45: Other Financial Data
B47: Depreciation & Amortization | D47: ='Acquirer IS'!H46 -> 983.7 | G47: ='Acquirer IS'!J46 -> 987.03111 | I47: ='Target IS'!J46 -> 433.63896 | K47: =K19 -> 19.05 | M47: =G47+I47+K47 -> 1439.72007 | P47: ='Newco Assumptions'!L36+'Newco Assumptions'!L38+'Newco Assumptions'!L39+'Newco Assumptions'!L40 -> 1498.395831 | R47: ='Newco Assumptions'!N36+'Newco Assumptions'!N38+'Newco Assumptions'!N39+'Newco Assumptions'!N40 -> 1560.144781 | T47: ='Newco Assumptions'!P36+'Newco Assumptions'!P38+'Newco Assumptions'!P39+'Newco Assumptions'!P40 -> 1625.12794 | V47: ='Newco Assumptions'!R36+'Newco Assumptions'!R38+'Newco Assumptions'!R39+'Newco Assumptions'!R40 -> 1693.514766
B48: Capital Expenditures | D48: ='Acquirer IS'!H47 -> 1083.4 | G48: ='Acquirer IS'!J47 -> 855.426962 | I48: ='Target IS'!J47 -> 16.70487 | M48: =G48+I48+K48 -> 872.131832 | P48: ='Newco Assumptions'!L34 -> 917.5328019 | R48: ='Newco Assumptions'!N34 -> 965.2973785 | T48: ='Newco Assumptions'!P34 -> 1015.548621 | V48: ='Newco Assumptions'!R34 -> 1068.415996
B50: EBITDA | D50: =D21+D47 -> 1482.1 | G50: =G21+G47 -> 1578.426746 | I50: =I21+I47 -> 824.27605 | M50: =M21+M47 -> 2219.658917 | P50: =P21+P47 -> 2390.950065 | R50: =R21+R47 -> 2568.174857 | T50: =T21+T47 -> 2604.543784 | V50: =V21+V47 -> 2634.736671
B52: EPS (Excluding Unusual Items) | D52: ='Acquirer IS'!H51 -> 0.01078241637 | G52: =+IF(ISERROR((G34+G23*(1-'Acquirer Assumptions'!J48))/'Acquirer Assumptions'!J54),0,(G34+G23*(1-'Acquirer Assumptions'!J48))/'Acquirer Assumptions'!J54) -> 0.5162520615 | I52: =+IF(ISERROR((I34+I23*(1-'Target Assumptions'!J48))/'Target Assumptions'!J53),0,(I34+I23*(1-'Target Assumptions'!J48))/'Target Assumptions'!J53) -> 1.014643289 | M52: =+IF(ISERROR((M34+M23*(1-'Newco Assumptions'!J48))/'Newco Assumptions'!J54),0,(M34+M23*(1-'Newco Assumptions'!J48))/'Newco Assumptions'!J54) -> 0.1752458284 | N52: =+IF(ISERROR((N34+N23*(1-'Newco Assumptions'!K48))/'Newco Assumptions'!K54),0,(N34+N23*(1-'Newco Assumptions'!K48))/'Newco Assumptions'!K54) -> 0 | O52: =+IF(ISERROR((O34+O23*(1-'Newco Assumptions'!L48))/'Newco Assumptions'!L54),0,(O34+O23*(1-'Newco Assumptions'!L48))/'Newco Assumptions'!L54) -> 0 | P52: =(P34+P23*(1-'Newco Assumptions'!L48))/'Newco Assumptions'!L54 -> 0.6761767139 | R52: =(R34+R23*(1-'Newco Assumptions'!N48))/'Newco Assumptions'!N54 -> 0.9796428395 | T52: =(T34+T23*(1-'Newco Assumptions'!P48))/'Newco Assumptions'!P54 -> 1.025287141 | V52: =(V34+V23*(1-'Newco Assumptions'!R48))/'Newco Assumptions'!R54 -> 1.053790377
B54: Cash EPS | D54: ='Acquirer IS'!H53 -> -0.9839646116 | G54: =+IF(ISERROR('Acquirer CF'!J25/'Acquirer Assumptions'!J54),0,'Acquirer CF'!J25/'Acquirer Assumptions'!J54) -> 4.261530603 | I54: =+IF(ISERROR('Target CF'!J27/'Target Assumptions'!J53),0,'Target CF'!J27/'Target Assumptions'!J53) -> 4.969006447 | M54: =+IF(ISERROR('Newco CF'!J27/'Newco Assumptions'!J54),0,'Newco CF'!J27/'Newco Assumptions'!J54) -> 7.076539646 | N54: =+IF(ISERROR('Newco CF'!K27/'Newco Assumptions'!K54),0,'Newco CF'!K27/'Newco Assumptions'!K54) -> 0 | O54: =+IF(ISERROR('Newco CF'!L27/'Newco Assumptions'!L54),0,'Newco CF'!L27/'Newco Assumptions'!L54) -> 4.774391107 | P54: ='Newco CF'!L27/'Newco Assumptions'!L54 -> 4.774391107 | Q54: =+IF(ISERROR('Newco CF'!N27/'Newco Assumptions'!N54),0,'Newco CF'!N27/'Newco Assumptions'!N54) -> 5.228311261 | R54: ='Newco CF'!N27/'Newco Assumptions'!N54 -> 5.228311261 | S54: =+IF(ISERROR('Newco CF'!P27/'Newco Assumptions'!P54),0,'Newco CF'!P27/'Newco Assumptions'!P54) -> 5.481967235 | T54: ='Newco CF'!P27/'Newco Assumptions'!P54 -> 5.481967235 | U54: =+IF(ISERROR('Newco CF'!R27/'Newco Assumptions'!R54),0,'Newco CF'!R27/'Newco Assumptions'!R54) -> 5.67701479 | V54: ='Newco CF'!R27/'Newco Assumptions'!R54 -> 5.67701479
B56: Dividends per share | D56: ='Acquirer Assumptions'!H45 -> 0 | G56: ='Acquirer Assumptions'!J45 -> 0 | I56: ='Target Assumptions'!J44 -> 0 | M56: ='Newco Assumptions'!J45 -> 0 | P56: ='Newco Assumptions'!L45 -> 0 | R56: ='Newco Assumptions'!N45 -> 0 | T56: ='Newco Assumptions'!P45 -> 0 | V56: ='Newco Assumptions'!R45 -> 0
B58: Dividend-adjusted Cash EPS | D58: =D54-D56 -> -0.9839646116 | G58: =+IF(ISERROR(G54-G56),0,G54-G56) -> 4.261530603 | I58: =+IF(ISERROR(I54-I56),0,I54-I56) -> 4.969006447 | M58: =M54-M56 -> 7.076539646 | P58: =P54-P56 -> 4.774391107 | R58: =R54-R56 -> 5.228311261 | T58: =T54-T56 -> 5.481967235 | V58: =V54-V56 -> 5.67701479

Sheet Newco BS
A1: ='Newco IS'!A1 -> Newco | Y1: Pro Forma Balance Sheet
A2: ($Millions, except per share data)
E6: ="Actual "&('Newco Assumptions'!H7)&"" -> Actual 2015 | I6: Pre-Trans | K6: Trans | M6: Pro Forma | P6: ='Newco IS'!P6 -> Projections
E7: ='Acquirer IS'!A1 -> Acquirer | G7: Target | I7: Adj | K7: Adj | M7: ='Newco Assumptions'!H7 -> 2015 | P7: ='Acquirer IS'!J7 -> 2016 | R7: ='Acquirer IS'!L7 -> 2017 | T7: ='Acquirer IS'!N7 -> 2018 | V7: ='Acquirer IS'!P7 -> 2019 | X7: ='Acquirer IS'!R7 -> 2020
B9: Cash | E9: ='Acquirer BS'!H9 -> 855.3 | G9: ='Target BS'!H9 -> 276.3 | K9: =-Summary!Q7 -> -1000 | M9: =E9+G9+I9+K9 -> 131.6 | P9: =+IF(ISERROR('Newco CF'!J52),0,'Newco CF'!J52) -> 1762.875358 | R9: ='Newco CF'!L52 -> 1731.635968 | T9: ='Newco CF'!N52 -> 1840.358498 | V9: ='Newco CF'!P52 -> 2003.733581 | X9: ='Newco CF'!R52 -> 2194.906564
B10: Accounts Receivable | E10: ='Acquirer BS'!H10 -> 1804.9 | G10: ='Target BS'!H10 -> 697.3 | M10: =E10+G10+I10+K10 -> 2502.2 | P10: =('Newco Assumptions'!J23*'Newco IS'!M9)/365 -> 2517.537439 | R10: =('Newco Assumptions'!L23*'Newco IS'!P9)/365 -> 2657.537205 | T10: =('Newco Assumptions'!N23*'Newco IS'!R9)/365 -> 2808.178144 | V10: =('Newco Assumptions'!P23*'Newco IS'!T9)/365 -> 2955.327978 | X10: =('Newco Assumptions'!R23*'Newco IS'!V9)/365 -> 3110.25349
B11: Inventory | E11: ='Acquirer BS'!H11 -> 1443.3 | G11: ='Target BS'!H11 -> 403.5 | I11: 0 | M11: =E11+G11+I11+K11 -> 1846.8 | P11: =+IF(ISERROR(('Newco IS'!M12+'Newco IS'!M18)/'Newco Assumptions'!J24),0,('Newco IS'!M12+'Newco IS'!M18)/'Newco Assumptions'!J24) -> 142.5007425 | Q11: =+IF(ISERROR(('Newco IS'!N12+'Newco IS'!N18)/'Newco Assumptions'!K24),0,('Newco IS'!N12+'Newco IS'!N18)/'Newco Assumptions'!K24) -> 0 | R11: =+('Newco IS'!P12+'Newco IS'!P18)/'Newco Assumptions'!L24 -> 149.5185592 | S11: =+IF(ISERROR(('Newco IS'!P12+'Newco IS'!P18)/'Newco Assumptions'!M24),0,('Newco IS'!P12+'Newco IS'!P18)/'Newco Assumptions'!M24) -> 0 | T11: =+('Newco IS'!R12+'Newco IS'!R18)/'Newco Assumptions'!N24 -> 157.1019441 | U11: =+IF(ISERROR(('Newco IS'!R12+'Newco IS'!R18)/'Newco Assumptions'!O24),0,('Newco IS'!R12+'Newco IS'!R18)/'Newco Assumptions'!O24) -> 0 | V11: =('Newco IS'!T12+'Newco IS'!T18)/'Newco Assumptions'!P24 -> 165.2981115 | W11: =+IF(ISERROR(('Newco IS'!T12+'Newco IS'!T18)/'Newco Assumptions'!Q24),0,('Newco IS'!T12+'Newco IS'!T18)/'Newco Assumptions'!Q24) -> 0 | X11: =+('Newco IS'!V12+'Newco IS'!V18)/'Newco Assumptions'!R24 -> 173.9245021
B12: Other | E12: ='Acquirer BS'!H12 -> 731.3 | G12: ='Target BS'!H12 -> 248.1 | M12: =E12+G12+I12+K12 -> 979.4 | P12: ='Newco Assumptions'!J25*'Newco IS'!M9 -> 915.3515988 | R12: ='Newco Assumptions'!L25*'Newco IS'!P9 -> 966.2066691 | T12: ='Newco Assumptions'!N25*'Newco IS'!R9 -> 1020.925319 | V12: ='Newco Assumptions'!P25*'Newco IS'!T9 -> 1074.369368 | X12: ='Newco Assumptions'!R25*'Newco IS'!V9 -> 1130.634679
B14: Current Assets | E14: =SUM(E9:E12) -> 4834.8 | G14: =SUM(G9:G12) -> 1625.2 | M14: =SUM(M9:M12) -> 5460 | P14: =SUM(P9:P12) -> 5338.265139 | R14: =SUM(R9:R12) -> 5504.898401 | T14: =SUM(T9:T12) -> 5826.563905 | V14: =SUM(V9:V12) -> 6198.729038 | X14: =SUM(X9:X12) -> 6609.719235
B16: Property, Plant, & Equipment | E16: ='Acquirer BS'!H16 -> 1726.4 | G16: ='Target BS'!H16 -> 871.4 | I16: 0 | M16: =E16+G16+I16+K16 -> 2597.8 | P16: =M16+'Newco Assumptions'!J34 -> 3469.931832 | R16: =P16+'Newco Assumptions'!L34 -> 4387.464634 | T16: =R16+'Newco Assumptions'!N34 -> 5352.762012 | V16: =T16+'Newco Assumptions'!P34 -> 6368.310633 | X16: =V16+'Newco Assumptions'!R34 -> 7436.726629
B17: Accumulated Depreciation | E17: ='Acquirer BS'!H17 -> 0 | G17: ='Target BS'!H17 -> 0 | I17: 0 | M17: =E17+G17+I17+K17 -> 0 | P17: =M17-'Newco Assumptions'!J36 -> -1120.67007 | R17: =P17-'Newco Assumptions'!L36 -> -2300.015901 | T17: =R17-'Newco Assumptions'!N36 -> -3541.110682 | V17: =T17-'Newco Assumptions'!P36 -> -4847.188622 | X17: =V17-'Newco Assumptions'!R36 -> -6221.653388
B19: Net Property, Plant, & Equipment | E19: =SUM(E16:E17) -> 1726.4 | G19: =SUM(G16:G17) -> 871.4 | M19: =SUM(M16:M17) -> 2597.8 | P19: =SUM(P16:P17) -> 2349.261762 | R19: =SUM(R16:R17) -> 2087.448733 | T19: =SUM(T16:T17) -> 1811.651331 | V19: =SUM(V16:V17) -> 1521.122012 | X19: =SUM(X16:X17) -> 1215.073241
B21: Goodwill | E21: ='Acquirer BS'!H21 -> 12474.5 | G21: ='Target BS'!H21 -> 4503.4 | I21: 0 | K21: =Summary!E27 -> 9841.3649 | M21: =E21+G21+I21+K21 -> 26819.2649 | P21: =M21-'Newco Assumptions'!J38 -> 26819.2649 | R21: =P21-'Newco Assumptions'!L38 -> 26819.2649 | T21: =R21-'Newco Assumptions'!N38 -> 26819.2649 | V21: =T21-'Newco Assumptions'!P38 -> 26819.2649 | X21: =V21-'Newco Assumptions'!R38 -> 26819.2649
B22: Intangible Assets | E22: ='Acquirer BS'!H22 -> 7804.5 | G22: ='Target BS'!H22 -> 1525.8 | M22: 9330.3 | P22: =M22-'Newco Assumptions'!J39 -> 9030.3 | R22: =P22-'Newco Assumptions'!L39 -> 8730.3 | T22: =R22-'Newco Assumptions'!N39 -> 8430.3 | V22: =T22-'Newco Assumptions'!P39 -> 8130.3 | X22: =V22-'Newco Assumptions'!R39 -> 7830.3
B23: Deferred Financing Expenses | E23: 0 | G23: 0 | K23: =Summary!Q17*Summary!E30 -> 190.5 | M23: 190.5 | P23: =M23-'Newco Assumptions'!J40 -> 171.45 | R23: =P23-'Newco Assumptions'!L40 -> 152.4 | T23: =R23-'Newco Assumptions'!N40 -> 133.35 | V23: =T23-'Newco Assumptions'!P40 -> 114.3 | X23: =V23-'Newco Assumptions'!R40 -> 95.25
B24: Deferred Taxes | E24: ='Acquirer BS'!H23 -> 0 | G24: ='Target BS'!H23 -> 23 | M24: 23 | P24: =M24+'Newco Assumptions'!J41 -> 23 | R24: =P24+'Newco Assumptions'!L41 -> 23 | T24: =R24+'Newco Assumptions'!N41 -> 23 | V24: =T24+'Newco Assumptions'!P41 -> 23 | X24: =V24+'Newco Assumptions'!R41 -> 23
B25: Equity in Affiliates | E25: ='Acquirer BS'!H24 -> 0 | G25: ='Target BS'!H24 -> 0 | M25: 0 | P25: =M25-'Newco IS'!M24-'Newco Assumptions'!J43 -> 0 | R25: =P25-'Newco IS'!P24-'Newco Assumptions'!L43 -> 0 | T25: =R25-'Newco IS'!R24-'Newco Assumptions'!N43 -> 0 | V25: =T25-'Newco IS'!T24-'Newco Assumptions'!P43 -> 0 | X25: =V25-'Newco IS'!V24-'Newco Assumptions'!R43 -> 0
B26: Other | E26: ='Acquirer BS'!H25 -> 604.4 | G26: ='Target BS'!H25 -> 89.2 | M26: 693.6 | P26: =M26+'Newco Assumptions'!J28 -> 693.6 | R26: =P26+'Newco Assumptions'!L28 -> 693.6 | T26: =R26+'Newco Assumptions'!N28 -> 693.6 | V26: =T26+'Newco Assumptions'!P28 -> 693.6 | X26: =V26+'Newco Assumptions'!R28 -> 693.6
B28: Total Assets | E28: =E14+E19+SUM(E21:E26) -> 27444.6 | G28: =G14+G19+SUM(G21:G26) -> 8638 | M28: =M14+M19+SUM(M21:M26) -> 45114.4649 | P28: =P14+P19+SUM(P21:P26) -> 44425.1418 | R28: =R14+R19+SUM(R21:R26) -> 44010.91203 | T28: =T14+T19+SUM(T21:T26) -> 43737.73014 | V28: =V14+V19+SUM(V21:V26) -> 43500.31595 | X28: =X14+X19+SUM(X21:X26) -> 43286.20738
B30: Accounts Payable | E30: ='Acquirer BS'!H29 -> 641.4 | G30: ='Target BS'!H29 -> 186.6 | M30: =E30+G30+I30+K30 -> 828 | P30: =('Newco Assumptions'!J26*'Newco IS'!M12)/365 -> 885.2247933 | R30: =('Newco Assumptions'!L26*'Newco IS'!P12)/365 -> 928.6656543 | T30: =('Newco Assumptions'!N26*'Newco IS'!R12)/365 -> 975.7671474 | V30: =('Newco Assumptions'!P26*'Newco IS'!T12)/365 -> 1026.84459 | X30: =('Newco Assumptions'!R26*'Newco IS'!V12)/365 -> 1080.614168
B31: Other | E31: ='Acquirer BS'!H30 -> 1451.9 | G31: ='Target BS'!H30 -> 1005.8 | M31: =E31+G31+I31+K31 -> 2457.7 | P31: ='Newco Assumptions'!J27*'Newco IS'!M12 -> 2829.075626 | R31: ='Newco Assumptions'!L27*'Newco IS'!P12 -> 2969.698721 | T31: ='Newco Assumptions'!N27*'Newco IS'!R12 -> 3122.205408 | V31: ='Newco Assumptions'!P27*'Newco IS'!T12 -> 3287.626872 | X31: ='Newco Assumptions'!R27*'Newco IS'!V12 -> 3461.873808
B33: Current Liabilities | E33: =SUM(E30:E31) -> 2093.3 | G33: =SUM(G30:G31) -> 1192.4 | M33: =SUM(M30:M31) -> 3285.7 | P33: =SUM(P30:P31) -> 3714.30042 | R33: =SUM(R30:R31) -> 3898.364375 | T33: =SUM(T30:T31) -> 4097.972555 | V33: =SUM(V30:V31) -> 4314.471462 | X33: =SUM(X30:X31) -> 4542.487977
B35: Revolving Credit Facility | E35: ='Acquirer BS'!H34 -> 0 | G35: ='Target BS'!H34 -> 0 | K35: =Summary!Q11 -> 0 | M35: =E35+G35+I35+K35 -> 0 | P35: =+IF(ISERROR('Newco CF'!J51),0,'Newco CF'!J51) -> 0 | Q35: =+IF(ISERROR('Newco CF'!K51),0,'Newco CF'!K51) -> 0 | R35: =+IF(ISERROR('Newco CF'!L51),0,'Newco CF'!L51) -> 0 | S35: =+IF(ISERROR('Newco CF'!M51),0,'Newco CF'!M51) -> 0 | T35: =+IF(ISERROR('Newco CF'!N51),0,'Newco CF'!N51) -> 0 | U35: =+IF(ISERROR('Newco CF'!O51),0,'Newco CF'!O51) -> 0 | V35: =+IF(ISERROR('Newco CF'!P51),0,'Newco CF'!P51) -> 0 | W35: =+IF(ISERROR('Newco CF'!Q51),0,'Newco CF'!Q51) -> 0 | X35: =+IF(ISERROR('Newco CF'!R51),0,'Newco CF'!R51) -> 0
B36: Senior Debt | E36: ='Acquirer BS'!H35 -> 7031.2 | G36: ='Target BS'!H35 -> 2060.9 | K36: =Summary!Q12 -> 2882.38245 | M36: =E36+G36+I36+K36 -> 11974.48245 | P36: =+M36-'Debt Repayment'!H10-'Debt Repayment'!H16-'Debt Repayment'!H22 -> 10886.2442 | Q36: =+IF(ISERROR(N36-'Debt Repayment'!I10-'Debt Repayment'!I16-'Debt Repayment'!I22),0,N36-'Debt Repayment'!I10-'Debt Repayment'!I16-'Debt Repayment'!I22) -> 0 | R36: =+P36-'Debt Repayment'!J10-'Debt Repayment'!J16-'Debt Repayment'!J22 -> 9798.00596 | S36: =+Q36-'Debt Repayment'!K10-'Debt Repayment'!K16-'Debt Repayment'!K22 -> 0 | T36: =+R36-'Debt Repayment'!L10-'Debt Repayment'!L16-'Debt Repayment'!L22 -> 8709.767715 | U36: =+S36-'Debt Repayment'!M10-'Debt Repayment'!M16-'Debt Repayment'!M22 -> 0 | V36: =+T36-'Debt Repayment'!N10-'Debt Repayment'!N16-'Debt Repayment'!N22 -> 7621.52947 | W36: =+U36-'Debt Repayment'!O10-'Debt Repayment'!O16-'Debt Repayment'!O22 -> 0 | X36: =+V36-'Debt Repayment'!P10-'Debt Repayment'!P16-'Debt Repayment'!P22 -> 6533.291225
B37: Subordinated Debt | E37: ='Acquirer BS'!H36 -> 0 | G37: ='Target BS'!H36 -> 0 | K37: =Summary!Q13 -> 0 | M37: =E37+G37+I37+K37 -> 0 | P37: =+M37-'Debt Repayment'!H11-'Debt Repayment'!H17-'Debt Repayment'!H23 -> 0 | Q37: =+IF(ISERROR(N37-'Debt Repayment'!I11-'Debt Repayment'!I17-'Debt Repayment'!I23),0,N37-'Debt Repayment'!I11-'Debt Repayment'!I17-'Debt Repayment'!I23) -> 0 | R37: =+P37-'Debt Repayment'!J11-'Debt Repayment'!J17-'Debt Repayment'!J23 -> 0 | S37: =+Q37-'Debt Repayment'!K11-'Debt Repayment'!K17-'Debt Repayment'!K23 -> 0 | T37: =+R37-'Debt Repayment'!L11-'Debt Repayment'!L17-'Debt Repayment'!L23 -> 0 | U37: =+S37-'Debt Repayment'!M11-'Debt Repayment'!M17-'Debt Repayment'!M23 -> 0 | V37: =+T37-'Debt Repayment'!N11-'Debt Repayment'!N17-'Debt Repayment'!N23 -> 0 | W37: =+U37-'Debt Repayment'!O11-'Debt Repayment'!O17-'Debt Repayment'!O23 -> 0 | X37: =+V37-'Debt Repayment'!P11-'Debt Repayment'!P17-'Debt Repayment'!P23 -> 0
B39: Total | E39: =SUM(E35:E37) -> 7031.2 | G39: =SUM(G35:G37) -> 2060.9 | M39: =SUM(M35:M37) -> 11974.48245 | P39: =SUM(P35:P37) -> 10886.2442 | R39: =SUM(R35:R37) -> 9798.00596 | T39: =SUM(T35:T37) -> 8709.767715 | V39: =SUM(V35:V37) -> 7621.52947 | X39: =SUM(X35:X37) -> 6533.291225
B41: Deferred Taxes | E41: ='Acquirer BS'!H40 -> 2047.2 | G41: ='Target BS'!H40 -> 287.4 | M41: =E41+G41+I41+K41 -> 2334.6 | P41: =M41+'Newco Assumptions'!J42 -> 2544.9 | R41: =P41+'Newco Assumptions'!L42 -> 2755.2 | T41: =R41+'Newco Assumptions'!N42 -> 2965.5 | V41: =T41+'Newco Assumptions'!P42 -> 3175.8 | X41: =V41+'Newco Assumptions'!R42 -> 3386.1
B42: Other | E42: ='Acquirer BS'!H41 -> 808.2 | G42: ='Target BS'!H41 -> 443.9 | M42: =E42+G42+I42+K42 -> 1252.1 | P42: =M42+'Newco Assumptions'!J29 -> 1252.1 | R42: =P42+'Newco Assumptions'!L29 -> 1252.1 | T42: =R42+'Newco Assumptions'!N29 -> 1252.1 | V42: =T42+'Newco Assumptions'!P29 -> 1252.1 | X42: =V42+'Newco Assumptions'!R29 -> 1252.1
B44: Total Liabilities | E44: =E33+E39+SUM(E41:E42) -> 11979.9 | G44: =G33+G39+SUM(G41:G42) -> 3984.6 | M44: =M33+M39+SUM(M41:M42) -> 18846.88245 | P44: =P33+P39+SUM(P41:P42) -> 18397.54462 | R44: =R33+R39+SUM(R41:R42) -> 17703.67033 | T44: =T33+T39+SUM(T41:T42) -> 17025.34027 | V44: =V33+V39+SUM(V41:V42) -> 16363.90093 | X44: =X33+X39+SUM(X41:X42) -> 15713.9792
B46: Common Stock | E46: ='Acquirer BS'!H45 -> 413.5 | G46: ='Target BS'!H45 -> 5733.7 | K46: =Summary!Q8+Summary!Q9-G46 -> 5513.68245 | M46: =E46+G46+I46+K46 -> 11660.88245 | P46: =M46 -> 11660.88245 | R46: =P46 -> 11660.88245 | T46: =R46 -> 11660.88245 | V46: =T46 -> 11660.88245 | X46: =V46 -> 11660.88245
B47: Preferred Equity | E47: ='Acquirer BS'!H46 -> 0 | G47: ='Target BS'!H46 -> 0 | K47: =-G47+Summary!Q10 -> 0 | M47: 0 | P47: =M47 -> 0 | R47: =P47 -> 0 | T47: =R47 -> 0 | V47: =T47 -> 0 | X47: =V47 -> 0
B48: Retained Earnings | E48: ='Acquirer BS'!H47 -> 7697.3 | G48: ='Target BS'!H47 -> 1341.8 | K48: =-G48 -> -1341.8 | M48: 7697.3 | P48: =M48+'Newco IS'!M39+'Newco CF'!J37 -> 7457.314726 | R48: =P48+'Newco IS'!P39+'Newco CF'!L37 -> 7736.95925 | T48: =R48+'Newco IS'!R39+'Newco CF'!N37 -> 8142.107415 | V48: =T48+'Newco IS'!T39+'Newco CF'!P37 -> 8566.132568 | X48: =V48+'Newco IS'!V39+'Newco CF'!R37 -> 9001.945724
B49: Treasury Stock | E49: ='Acquirer BS'!H48 -> -2996.8 | G49: ='Target BS'!H48 -> -2482 | K49: =-G49 -> 2482 | M49: -2996.8 | P49: =M49 -> -2996.8 | R49: =P49 -> -2996.8 | T49: =R49 -> -2996.8 | V49: =T49 -> -2996.8 | X49: =V49 -> -2996.8
B50: Other Adjustments | E50: ='Acquirer BS'!H49 -> 10350.7 | G50: ='Target BS'!H49 -> 59.1 | K50: =-G50-Summary!Q17*(1-Summary!E30) -> -503.6 | M50: 9906.2 | P50: =M50 -> 9906.2 | R50: =P50 -> 9906.2 | T50: =R50 -> 9906.2 | V50: =T50 -> 9906.2 | X50: =V50 -> 9906.2
B51: Noncontrolling Interest | E51: ='Acquirer BS'!H50 -> 0 | G51: ='Target BS'!H50 -> 0.8 | K51: =-G51 -> -0.8 | M51: 0 | N51: =F51+H51+J51+L51 -> 0 | O51: =G51+I51+K51+M51 -> 0 | P51: =M51 -> 0 | Q51: =N51 -> 0 | R51: 0 | S51: 0 | T51: 0 | U51: 0 | V51: 0 | W51: 0 | X51: 0
B52: Total Stockholders Equity | E52: =SUM(E46:E51) -> 15464.7 | F52: =SUM(F46:F51) -> 0 | G52: 4653.4 | M52: =SUM(M46:M51) -> 26267.58245 | N52: =SUM(N46:N51) -> 0 | O52: 0 | P52: 26027.59718 | Q52: 0 | R52: 26307.2417 | S52: 0 | T52: 26712.38987 | U52: 0 | V52: 27136.41502 | W52: 0 | X52: 27572.22817
B54: Total Liabilities and Equity | E54: =E44+E52 -> 27444.6 | G54: =G44+G52 -> 8638 | M54: =M44+M52 -> 45114.4649 | P54: =+IF(ISERROR(P44+P52),0,P44+P52) -> 44425.1418 | Q54: =+IF(ISERROR(Q44+Q52),0,Q44+Q52) -> 0 | R54: 44010.91203 | S54: 0 | T54: 43737.73014 | U54: 0 | V54: 43500.31595 | W54: 0 | X54: 43286.20738
B59: Reconciliation | E59: =E54-E28 -> 0 | G59: =G54-G28 -> 0 | M59: =M28-M54 -> 0 | P59: =P28-P54 -> 0 | Q59: =Q54-Q28+12 -> 12 | R59: =R28-R54 -> 0 | S59: =S28-S54 -> 0 | T59: 0 | U59: 0 | V59: 0 | W59: 0 | X59: -1.527951099e-10

Sheet Newco CF
A1: ='Newco IS'!A1 -> Newco | S1: Pro Forma Statement of Cash Flow
A2: ($Millions, except per share data)
F6: ='Newco Assumptions'!D6 -> Actual | J6: ='Newco BS'!P6 -> Projections
F7: ='Acquirer BS'!F7 -> 2014 | H7: ='Acquirer BS'!H7 -> 2015 | J7: ='Acquirer BS'!J7 -> 2016 | L7: ='Acquirer BS'!L7 -> 2017 | N7: ='Acquirer BS'!N7 -> 2018 | P7: ='Acquirer BS'!P7 -> 2019 | R7: ='Acquirer BS'!R7 -> 2020
B9: Net Income | F9: ='Acquirer CF'!F7 -> 232.2 | H9: ='Acquirer CF'!H7 -> -76.6 | J9: ='Newco IS'!M39 -> -239.985274 | L9: ='Newco IS'!P39 -> 279.6445237 | N9: ='Newco IS'!R39 -> 405.1481656 | P9: ='Newco IS'!T39 -> 424.0251525 | R9: ='Newco IS'!V39 -> 435.8131565
B11: Depreciation & Amortization | F11: ='Acquirer CF'!F9 -> 895.6 | H11: ='Acquirer CF'!H9 -> 983.7 | J11: ='Newco IS'!M47 -> 1439.72007 | L11: ='Newco IS'!P47 -> 1498.395831 | N11: ='Newco IS'!R47 -> 1560.144781 | P11: ='Newco IS'!T47 -> 1625.12794 | R11: ='Newco IS'!V47 -> 1693.514766
B13: Income from Affiliates, Net of Dividends | F13: ='Acquirer CF'!F11 -> 0 | H13: ='Acquirer CF'!H11 -> 0 | J13: ='Newco IS'!M24+'Newco Assumptions'!J43 -> 0 | L13: ='Newco IS'!P24+'Newco Assumptions'!L43 -> 0 | N13: ='Newco IS'!R24+'Newco Assumptions'!N43 -> 0 | P13: ='Newco IS'!T24+'Newco Assumptions'!P43 -> 0 | R13: ='Newco IS'!V24+'Newco Assumptions'!R43 -> 0
A15: Change in
B17: Accounts Receivable | F17: ='Acquirer CF'!F15 -> -289.8 | H17: ='Acquirer CF'!H15 -> -41.2 | J17: ='Newco BS'!M10-'Newco BS'!P10 -> -15.33743906 | L17: ='Newco BS'!P10-'Newco BS'!R10 -> -139.9997655 | N17: ='Newco BS'!R10-'Newco BS'!T10 -> -150.6409394 | P17: ='Newco BS'!T10-'Newco BS'!V10 -> -147.1498336 | R17: ='Newco BS'!V10-'Newco BS'!X10 -> -154.9255122
B18: Inventory | F18: ='Acquirer CF'!F16 -> -157.6 | H18: ='Acquirer CF'!H16 -> -113.2 | J18: ='Newco BS'!M11-'Newco BS'!P11 -> 1704.299257 | L18: ='Newco BS'!P11-'Newco BS'!R11 -> -7.017816652 | N18: ='Newco BS'!R11-'Newco BS'!T11 -> -7.583384897 | P18: ='Newco BS'!T11-'Newco BS'!V11 -> -8.196167418 | R18: ='Newco BS'!V11-'Newco BS'!X11 -> -8.626390588
B19: Other Current Assets | F19: ='Acquirer CF'!F17 -> -144.4 | H19: ='Acquirer CF'!H17 -> -23.8 | J19: ='Newco BS'!M12-'Newco BS'!P12 -> 64.04840117 | L19: ='Newco BS'!P12-'Newco BS'!R12 -> -50.85507027 | N19: ='Newco BS'!R12-'Newco BS'!T12 -> -54.71864964 | P19: ='Newco BS'!T12-'Newco BS'!V12 -> -53.44404923 | R19: ='Newco BS'!V12-'Newco BS'!X12 -> -56.26531063
B20: Accounts Payable | F20: ='Acquirer CF'!F18 -> 65.9 | H20: ='Acquirer CF'!H18 -> 29.1 | J20: ='Newco BS'!P30-'Newco BS'!M30 -> 57.22479334 | L20: ='Newco BS'!R30-'Newco BS'!P30 -> 43.44086095 | N20: ='Newco BS'!T30-'Newco BS'!R30 -> 47.10149309 | P20: ='Newco BS'!V30-'Newco BS'!T30 -> 51.07744219 | R20: ='Newco BS'!X30-'Newco BS'!V30 -> 53.76957851
B21: Other Current Liabilities | F21: ='Acquirer CF'!F19 -> 1337.9 | H21: ='Acquirer CF'!H19 -> -1048.9 | J21: ='Newco BS'!P31-'Newco BS'!M31 -> 371.3756263 | L21: ='Newco BS'!R31-'Newco BS'!P31 -> 140.6230943 | N21: ='Newco BS'!T31-'Newco BS'!R31 -> 152.5066874 | P21: ='Newco BS'!V31-'Newco BS'!T31 -> 165.4214643 | R21: ='Newco BS'!X31-'Newco BS'!V31 -> 174.2469361
B22: Other Assets | F22: ='Acquirer CF'!F20 -> 332.7 | H22: ='Acquirer CF'!H20 -> 6.9 | J22: ='Newco BS'!M26-'Newco BS'!P26 -> 0 | L22: ='Newco BS'!P26-'Newco BS'!R26 -> 0 | N22: ='Newco BS'!R26-'Newco BS'!T26 -> 0 | P22: ='Newco BS'!T26-'Newco BS'!V26 -> 0 | R22: ='Newco BS'!V26-'Newco BS'!X26 -> 0
B23: Deferred Taxes | F23: ='Acquirer CF'!F21 -> 602.7 | H23: ='Acquirer CF'!H21 -> -182.1 | J23: ='Newco BS'!P41-'Newco BS'!M41+'Newco BS'!M24-'Newco BS'!P24 -> 210.3 | L23: ='Newco BS'!R41-'Newco BS'!P41+'Newco BS'!P24-'Newco BS'!R24 -> 210.3 | N23: ='Newco BS'!T41-'Newco BS'!R41+'Newco BS'!R24-'Newco BS'!T24 -> 210.3 | P23: ='Newco BS'!V41-'Newco BS'!T41+'Newco BS'!T24-'Newco BS'!V24 -> 210.3 | R23: ='Newco BS'!X41-'Newco BS'!V41+'Newco BS'!V24-'Newco BS'!X24 -> 210.3
B24: Minority Interest | F24: ='Acquirer CF'!F22 -> 0 | H24: ='Acquirer CF'!H22 -> 0 | J24: ='Newco BS'!P51-'Newco BS'!M51 -> 0 | L24: ='Newco BS'!R51-'Newco BS'!P51 -> 0 | N24: ='Newco BS'!T51-'Newco BS'!R51 -> 0 | P24: ='Newco BS'!V51-'Newco BS'!T51 -> 0 | R24: ='Newco BS'!X51-'Newco BS'!V51 -> 0
B25: Other Liabilities | F25: ='Acquirer CF'!F23 -> 77 | H25: ='Acquirer CF'!H23 -> 110.2 | J25: ='Newco BS'!P42-'Newco BS'!M42 -> 0 | L25: ='Newco BS'!R42-'Newco BS'!P42 -> 0 | N25: ='Newco BS'!T42-'Newco BS'!R42 -> 0 | P25: ='Newco BS'!V42-'Newco BS'!T42 -> 0 | R25: ='Newco BS'!X42-'Newco BS'!V42 -> 0
A27: Cash Flow from Operating Activities | F27: =SUM(F9:F25) -> 2952.2 | H27: =SUM(H9:H25) -> -355.9 | J27: =SUM(J9:J25) -> 3591.645435 | L27: =SUM(L9:L25) -> 1974.531657 | N27: =SUM(N9:N25) -> 2162.258153 | P27: =SUM(P9:P25) -> 2267.161949 | R27: =SUM(R9:R25) -> 2347.827224
B29: Capital Expenditures | F29: ='Acquirer CF'!F27 -> -260.9 | H29: ='Acquirer CF'!H27 -> -1083.4 | J29: =-'Newco IS'!M48 -> -872.131832 | L29: =-'Newco Assumptions'!L34 -> -917.5328019 | N29: =-'Newco Assumptions'!N34 -> -965.2973785 | P29: =-'Newco Assumptions'!P34 -> -1015.548621 | R29: =-'Newco Assumptions'!R34 -> -1068.415996
B30: Acquisitions | F30: ='Acquirer CF'!F28 -> 0 | H30: ='Acquirer CF'!H28 -> 0 | J30: 0 | L30: 0 | N30: 0 | P30: 0 | R30: 0
B31: Sale of Assets | F31: ='Acquirer CF'!F29 -> 0 | H31: ='Acquirer CF'!H29 -> 0 | J31: 0 | L31: 0 | N31: 0 | P31: 0 | R31: 0
A33: Cash Flow from Investing Activities | F33: =SUM(F29:F31) -> -260.9 | H33: =SUM(H29:H31) -> -1083.4 | J33: =SUM(J29:J31) -> -872.131832 | L33: =SUM(L29:L31) -> -917.5328019 | N33: =SUM(N29:N31) -> -965.2973785 | P33: =SUM(P29:P31) -> -1015.548621 | R33: =SUM(R29:R31) -> -1068.415996
B35: Net Change in Equity | F35: ='Acquirer CF'!F33 -> -1652 | H35: ='Acquirer CF'!H33 -> -554.4 | J35: ='Newco BS'!P46-'Newco BS'!M46+'Newco BS'!P47-'Newco BS'!M47+'Newco BS'!P49-'Newco BS'!M49+'Newco BS'!P50-'Newco BS'!M50 -> 0 | L35: ='Newco BS'!R46-'Newco BS'!P46+'Newco BS'!R47-'Newco BS'!P47+'Newco BS'!R49-'Newco BS'!P49+'Newco BS'!R50-'Newco BS'!P50 -> 0 | N35: ='Newco BS'!T46-'Newco BS'!R46+'Newco BS'!T47-'Newco BS'!R47+'Newco BS'!T49-'Newco BS'!R49+'Newco BS'!T50-'Newco BS'!R50 -> 0 | P35: ='Newco BS'!V46-'Newco BS'!T46+'Newco BS'!V47-'Newco BS'!T47+'Newco BS'!V49-'Newco BS'!T49+'Newco BS'!V50-'Newco BS'!T50 -> 0 | R35: ='Newco BS'!X46-'Newco BS'!V46+'Newco BS'!X47-'Newco BS'!V47+'Newco BS'!X49-'Newco BS'!V49+'Newco BS'!X50-'Newco BS'!V50 -> 0
B36: Net Change in Debt | F36: ='Acquirer CF'!F34 -> 3723.6 | H36: ='Acquirer CF'!H34 -> 1276 | J36: ='Newco BS'!P36-'Newco BS'!M36+'Newco BS'!P37-'Newco BS'!M37 -> -1088.238245 | L36: ='Newco BS'!R36-'Newco BS'!P36+'Newco BS'!R37-'Newco BS'!P37 -> -1088.238245 | N36: ='Newco BS'!T36-'Newco BS'!R36+'Newco BS'!T37-'Newco BS'!R37 -> -1088.238245 | P36: ='Newco BS'!V36-'Newco BS'!T36+'Newco BS'!V37-'Newco BS'!T37 -> -1088.238245 | R36: ='Newco BS'!X36-'Newco BS'!V36+'Newco BS'!X37-'Newco BS'!V37 -> -1088.238245
B37: Dividends Paid | F37: ='Acquirer CF'!F35 -> 0 | H37: ='Acquirer CF'!H35 -> 0 | J37: =-'Newco Assumptions'!J47 -> 0 | L37: =-'Newco Assumptions'!L47 -> 0 | N37: =-'Newco Assumptions'!N47 -> 0 | P37: =-'Newco Assumptions'!P47 -> 0 | R37: =-'Newco Assumptions'!R47 -> 0
A39: Cash Flow from Financing Activities | F39: =SUM(F35:F37) -> 2071.6 | H39: =SUM(H35:H37) -> 721.6 | J39: =SUM(J35:J37) -> -1088.238245 | L39: =SUM(L35:L37) -> -1088.238245 | N39: =SUM(N35:N37) -> -1088.238245 | P39: =SUM(P35:P37) -> -1088.238245 | R39: =SUM(R35:R37) -> -1088.238245
B41: Net Change in Cash | F41: =F27+F33+F39 -> 4762.9 | H41: =H27+H33+H39 -> -717.7 | J41: =J27+J33+J39 -> 1631.275358 | L41: =L27+L33+L39 -> -31.23938982 | N41: =N27+N33+N39 -> 108.7225297 | P41: =P27+P33+P39 -> 163.375083 | R41: =R27+R33+R39 -> 191.172983
B43: Beginning Cash Balance | F43: ='Acquirer CF'!F41 -> 926.5 | H43: ='Acquirer CF'!H41 -> 1020.6 | J43: ='Newco BS'!M9 -> 131.6 | L43: ='Newco BS'!P9 -> 1762.875358 | N43: ='Newco BS'!R9 -> 1731.635968 | P43: ='Newco BS'!T9 -> 1840.358498 | R43: ='Newco BS'!V9 -> 2003.733581
B45: Cash Available for Revolving Credit | F45: =F41+F43 -> 5689.4 | H45: =H41+H43 -> 302.9 | J45: =J41+J43 -> 1762.875358 | L45: =L41+L43 -> 1731.635968 | N45: =N41+N43 -> 1840.358498 | P45: =P41+P43 -> 2003.733581 | R45: =R41+R43 -> 2194.906564
B49: Beginning Revolver | J49: ='Newco BS'!M35 -> 0 | L49: ='Newco BS'!P35 -> 0 | N49: ='Newco BS'!R35 -> 0 | P49: ='Newco BS'!T35 -> 0 | R49: ='Newco BS'!V35 -> 0
B50: Total Repayment | J50: =IF(J45-J49<$F$54,J45-$F$54,J49) -> 0 | L50: =IF(L45-L49<$F$54,L45-$F$54,L49) -> 0 | N50: =IF(N45-N49<$F$54,N45-$F$54,N49) -> 0 | P50: =IF(P45-P49<$F$54,P45-$F$54,P49) -> 0 | R50: =IF(R45-R49<$F$54,R45-$F$54,R49) -> 0
B51: Ending Revolving Credit Facility | J51: =J49-J50 -> 0 | L51: =L49-L50 -> 0 | N51: =N49-N50 -> 0 | P51: =P49-P50 -> 0 | R51: =R49-R50 -> 0
B52: Ending Cash | J52: =+IF(J45-J49<0,$F$54,J45-J50) -> 1762.875358 | K52: =+IF(K45-K49<0,$F$54,K45-K50) -> 0 | L52: 1731.635968 | M52: 0 | N52: 1840.358498 | O52: 0 | P52: 2003.733581 | Q52: 0 | R52: 2194.906564
B54: Minimum Cash Balance | F54: 0

Sheet Debt Repayment
A1: ='Newco Assumptions'!A1 -> Newco | Q1: Debt Repayment Schedule
A2: ($ in millions except per share figures)
F4: Actual | H4: ='Newco BS'!P6 -> Projections
B5: Principal Payments | F5: ='Newco BS'!M7 -> 2015 | H5: =F5+1 -> 2016 | J5: =H5+1 -> 2017 | L5: =J5+1 -> 2018 | N5: =L5+1 -> 2019 | P5: =N5+1 -> 2020
B7: ='Acquirer Assumptions'!A1 -> Acquirer
B9: Revolving Credit Facility | F9: 0 | H9: 0 | J9: 0 | L9: 0 | N9: 0 | P9: 0
B10: Senior Debt | F10: ='Acquirer Assumptions'!H39 -> 354.5 | H10: ='Acquirer Assumptions'!J39 -> 500 | J10: ='Acquirer Assumptions'!L39 -> 500 | L10: ='Acquirer Assumptions'!N39 -> 500 | N10: ='Acquirer Assumptions'!P39 -> 500 | P10: ='Acquirer Assumptions'!R39 -> 500
B11: Subordinated Debt | F11: ='Acquirer Assumptions'!H40 -> 0 | H11: ='Acquirer Assumptions'!J40 -> 0 | J11: ='Acquirer Assumptions'!L40 -> 0 | L11: ='Acquirer Assumptions'!N40 -> 0 | N11: ='Acquirer Assumptions'!P40 -> 0 | P11: ='Acquirer Assumptions'!R40 -> 0
B13: ='Target Assumptions'!A1 -> Target
B15: Revolving Credit Facility | F15: 0 | H15: 0 | J15: 0 | L15: 0 | N15: 0 | P15: 0
B16: Senior Debt | F16: ='Target Assumptions'!H38 -> 450 | H16: ='Target Assumptions'!J38 -> 300 | J16: ='Target Assumptions'!L38 -> 300 | L16: ='Target Assumptions'!N38 -> 300 | N16: ='Target Assumptions'!P38 -> 300 | P16: ='Target Assumptions'!R38 -> 300
B17: Subordinated Debt | F17: ='Target Assumptions'!H39 -> 0 | H17: ='Target Assumptions'!J39 -> 0 | J17: ='Target Assumptions'!L39 -> 0 | L17: ='Target Assumptions'!N39 -> 0 | N17: ='Target Assumptions'!P39 -> 0 | P17: ='Target Assumptions'!R39 -> 0
B19: Acquisition
B21: Revolving Credit Facility | F21: 0 | H21: 0 | J21: 0 | L21: 0 | N21: 0 | P21: 0
B22: Senior Debt | F22: 0 | H22: =Summary!$Q$12/Summary!$K$31 -> 288.238245 | J22: =Summary!$Q$12/Summary!$K$31 -> 288.238245 | L22: =Summary!$Q$12/Summary!$K$31 -> 288.238245 | N22: =Summary!$Q$12/Summary!$K$31 -> 288.238245 | P22: =Summary!$Q$12/Summary!$K$31 -> 288.238245
B23: Subordinated Debt | F23: 0 | H23: =Summary!$Q$13/Summary!$K$33 -> 0 | J23: =Summary!$Q$13/Summary!$K$33 -> 0 | L23: =Summary!$Q$13/Summary!$K$33 -> 0 | N23: =Summary!$Q$13/Summary!$K$33 -> 0 | P23: =Summary!$Q$13/Summary!$K$33 -> 0
F25: Actual | H25: Projections
B26: Debt Balance | F26: =F5 -> 2015 | H26: =F26+1 -> 2016 | J26: =H26+1 -> 2017 | L26: =J26+1 -> 2018 | N26: =L26+1 -> 2019 | P26: =N26+1 -> 2020
B28: =B7 -> Acquirer | D28: Rate
B30: Revolving Credit Facility | D30: ='Acquirer Assumptions'!J55 -> 0.044 | F30: ='Acquirer BS'!H34 -> 0 | H30: 0 | J30: 0 | L30: 0 | N30: 0 | P30: 0
B31: Senior Debt | D31: ='Acquirer Assumptions'!J56 -> 0.05 | F31: ='Acquirer BS'!H35 -> 7031.2 | H31: ='Acquirer BS'!J35 -> 6531.2 | J31: ='Acquirer BS'!L35 -> 6031.2 | L31: ='Acquirer BS'!N35 -> 5531.2 | N31: ='Acquirer BS'!P35 -> 5031.2 | P31: ='Acquirer BS'!R35 -> 4531.2
B32: Subordinated Debt | D32: ='Acquirer Assumptions'!J57 -> 0.08 | F32: ='Acquirer BS'!H36 -> 0 | H32: ='Acquirer BS'!J36 -> 0 | J32: ='Acquirer BS'!L36 -> 0 | L32: ='Acquirer BS'!N36 -> 0 | N32: ='Acquirer BS'!P36 -> 0 | P32: ='Acquirer BS'!R36 -> 0
B34: Interest Expense | F34: =$D$31*AVERAGE(D31:F31)+$D$32*AVERAGE(D32:F32) -> 175.78445 | G34: 351.56 | H34: =$D$31*AVERAGE(F31:H31)+$D$32*AVERAGE(F32:H32) -> 339.06 | J34: =$D$31*AVERAGE(H31:J31)+$D$32*AVERAGE(H32:J32) -> 314.06 | L34: =$D$31*AVERAGE(J31:L31)+$D$32*AVERAGE(J32:L32) -> 289.06 | N34: =$D$31*AVERAGE(L31:N31)+$D$32*AVERAGE(L32:N32) -> 264.06 | P34: =$D$31*AVERAGE(N31:P31)+$D$32*AVERAGE(N32:P32) -> 239.06
B36: =B13 -> Target
B38: Revolving Credit Facility | D38: ='Target Assumptions'!J54 -> 0.02 | F38: ='Target BS'!H34 -> 0 | H38: 0 | J38: 0 | L38: 0 | N38: 0 | P38: 0
B39: Senior Debt | D39: ='Target Assumptions'!J55 -> 0.05 | F39: ='Target BS'!H35 -> 2060.9 | H39: ='Target BS'!J35 -> 1760.9 | J39: ='Target BS'!L35 -> 1460.9 | L39: ='Target BS'!N35 -> 1160.9 | N39: ='Target BS'!P35 -> 860.9 | P39: ='Target BS'!R35 -> 560.9
B40: Subordinated Debt | D40: ='Target Assumptions'!J56 -> 0.08 | F40: ='Target BS'!H36 -> 0 | H40: ='Target BS'!J36 -> 0 | J40: ='Target BS'!L36 -> 0 | L40: ='Target BS'!N36 -> 0 | N40: ='Target BS'!P36 -> 0 | P40: ='Target BS'!R36 -> 0
B42: Interest Expense | F42: ='Target IS'!H26 -> 123.9 | H42: =$D$39*AVERAGE(F39:H39)+$D$40*AVERAGE(F40:H40) -> 95.545 | J42: =$D$39*AVERAGE(H39:J39)+$D$40*AVERAGE(H40:J40) -> 80.545 | L42: =$D$39*AVERAGE(J39:L39)+$D$40*AVERAGE(J40:L40) -> 65.545 | N42: =$D$39*AVERAGE(L39:N39)+$D$40*AVERAGE(L40:N40) -> 50.545 | P42: =$D$39*AVERAGE(N39:P39)+$D$40*AVERAGE(N40:P40) -> 35.545
B44: Combined Firms
B46: Revolving Credit Facility | D46: =IF(F46=0,D30,Summary!O11) -> 0.044 | F46: =Summary!Q11 -> 0 | H46: =IF($S$46=0,0,'Newco BS'!P35-H30-H38) -> 0 | J46: =IF($S$46=0,0,'Newco BS'!R35-J30-J38) -> 0 | L46: =IF($S$46=0,0,'Newco BS'!T35-L30-L38) -> 0 | N46: =IF($S$46=0,0,'Newco BS'!V35-N30-N38) -> 0 | P46: =IF($S$46=0,0,'Newco BS'!X35-P30-P38) -> 0 | S46: 1 | T46: 0 = circ off
B47: Senior Debt | D47: =Summary!O12 -> 0.049 | F47: =Summary!Q12 -> 2882.38245 | H47: =F47-H22 -> 2594.144205 | J47: =H47-J22 -> 2305.90596 | L47: =J47-L22 -> 2017.667715 | N47: =L47-N22 -> 1729.42947 | P47: =N47-P22 -> 1441.191225 | T47: 1 = circ on
B48: Subordinated Debt | D48: =Summary!O13 -> 0.08 | F48: =Summary!Q13 -> 0 | H48: =F48-H23 -> 0 | J48: =H48-J23 -> 0 | L48: =J48-L23 -> 0 | N48: =L48-N23 -> 0 | P48: =N48-P23 -> 0
B50: Interest Expense | F50: =AVERAGE((D30+D38),F46)*$D46+AVERAGE(D47:F47)*$D47+AVERAGE(D48:F48)*$D48 -> 70.62417853 | G50: 141.2367401 | H50: =AVERAGE((F30+F38),H46)*$D46+AVERAGE(F47:H47)*$D47+AVERAGE(F48:H48)*$D48 -> 134.174903 | J50: =AVERAGE(H46:J46)*$D46+AVERAGE(H47:J47)*$D47+AVERAGE(H48:J48)*$D48 -> 120.051229 | L50: =AVERAGE(J46:L46)*$D46+AVERAGE(J47:L47)*$D47+AVERAGE(J48:L48)*$D48 -> 105.927555 | N50: =AVERAGE(L46:N46)*$D46+AVERAGE(L47:N47)*$D47+AVERAGE(L48:N48)*$D48 -> 91.80388103 | P50: =AVERAGE(N46:P46)*$D46+AVERAGE(N47:P47)*$D47+AVERAGE(N48:P48)*$D48 -> 77.68020703
B52: Total Interest Expense | F52: =F34+F42+F50 -> 370.3086285 | H52: =H34+H42+H50 -> 568.779903 | J52: =J34+J42+J50 -> 514.656229 | L52: =L34+L42+L50 -> 460.532555 | N52: =N34+N42+N50 -> 406.408881 | P52: =P34+P42+P50 -> 352.285207

Sheet Options-Convertibles
B1: Target | C1: Options-Convertible Securities Analysis
B4: Target Options Schedule | I4: Target Convertible Preferred Schedule
B5: Potential Options: | D5: Strike | E5: In the $ | F5: Include | G5: Proceeds | I5: Balance | J5: Par Value | K5: CV Ratio | L5: CV Price | M5: Convert | N5: Shares
C6: 4.045 | D6: 37.46 | E6: =IF(D6<Summary!$E$7,"Yes","No") -> Yes | F6: =IF(E6="Yes",C6,"No") -> 4.045 | G6: =D6*F6 -> 151.5257 | I6: 3.4 | J6: 100 | K6: 1.75 | L6: =J6/K6 -> 57.14285714 | M6: =IF(L6<Summary!$E$7,"Yes","No") -> Yes | N6: =I6/J6*K6 -> 0.0595
C7: 0 | D7: 0 | E7: =IF(D7<Summary!$E$7,"Yes","No") -> Yes | F7: =IF(E7="Yes",C7,"No") -> 0 | G7: =D7*F7 -> 0 | I7: 0 | J7: 100 | K7: 0 | L7: 0 | M7: =IF(L7<Summary!$E$7,"Yes","No") -> Yes | N7: =I7/J7*K7 -> 0
C8: 0 | D8: 0 | E8: =IF(D8<Summary!$E$7,"Yes","No") -> Yes | F8: 0 | G8: 0 | I8: 0 | J8: 100 | K8: 0 | L8: 0 | M8: =IF(L8<Summary!$E$7,"Yes","No") -> Yes | N8: 0
C9: 0 | D9: 0 | E9: =IF(D9<Summary!$E$7,"Yes","No") -> Yes | F9: 0 | G9: 0 | I9: 0 | J9: 100 | K9: 0 | L9: 0 | M9: =IF(L9<Summary!$E$7,"Yes","No") -> Yes | N9: 0
C10: 0 | D10: 0 | E10: =IF(D10<Summary!$E$7,"Yes","No") -> Yes | F10: 0 | G10: 0 | I10: 0 | J10: 100 | K10: 0 | L10: 0 | M10: =IF(L10<Summary!$E$7,"Yes","No") -> Yes | N10: 0
C11: 0 | D11: 0 | E11: =IF(D11<Summary!$E$7,"Yes","No") -> Yes | F11: 0 | G11: 0 | I11: 0 | J11: 100 | K11: 0 | L11: 0 | M11: =IF(L11<Summary!$E$7,"Yes","No") -> Yes | N11: 0
C12: =SUM(C6:C11) -> 4.045 | F12: =SUM(F6:F11) -> 4.045 | G12: =SUM(G6:G11) -> 151.5257 | I12: =SUM(I6:I11) -> 3.4 | N12: =SUM(N6:N11) -> 0.0595
C14: Weighted Average Exercise Price | G14: =IF(ISERROR(G12/F12),0,G12/F12) -> 37.46
C15: Value of Options (Treasury Method) | G15: =(Summary!E7-G14)*F12 -> 180.1643
C16: Treasury Option Shares | G16: =IF(G15=0,0,G15/Summary!E7) -> 2.19712561
B18: Target Convertible Debt Schedule
B19: Principal | C19: Par Value | D19: CV Ratio | E19: CV Price | F19: Convert | G19: Shares
B20: 0.44 | C20: 1000 | D20: 20 | E20: =C20/D20 -> 50 | F20: =IF(E20<Summary!$E$7,"Yes","No") -> Yes | G20: =B20/C20*D20 -> 0.0088
B21: 0 | C21: 1000 | D21: 0 | E21: 0 | F21: =IF(E21<Summary!$E$7,"Yes","No") -> Yes | G21: 0
B22: 0 | C22: 1000 | D22: 0 | E22: 0 | F22: =IF(E22<Summary!$E$7,"Yes","No") -> Yes | G22: 0
B23: 0 | C23: 1000 | D23: 0 | E23: 0 | F23: =IF(E23<Summary!$E$7,"Yes","No") -> Yes | G23: 0
B24: 0 | C24: 1000 | D24: 0 | E24: 0 | F24: =IF(E24<Summary!$E$7,"Yes","No") -> Yes | G24: 0
B25: 0 | C25: 1000 | D25: 0 | E25: 0 | F25: =IF(E25<Summary!$E$7,"Yes","No") -> Yes | G25: 0
B26: =SUM(B20:B25) -> 0.44 | G26: =SUM(G20:G25) -> 0.0088

Sheet Valuation
B1: Valuation
B3: Target | D3: 2016 | E3: =D3+1 -> 2017 | F3: =E3+1 -> 2018 | G3: 2019 | H3: 2020 | J3: Acquirer | L3: 2016 | M3: =L3+1 -> 2017 | N3: =M3+1 -> 2018 | O3: 2019 | P3: 2020
B4: Free Cash Flow | J4: Free Cash Flow
B5: EBIT | D5: ='Target IS'!J20 -> 390.63709 | E5: ='Target IS'!L20 -> 445.07389 | F5: ='Target IS'!N20 -> 503.1627843 | G5: ='Target IS'!P20 -> 565.130961 | H5: ='Target IS'!R20 -> 631.2191565 | J5: EBIT | L5: ='Acquirer IS'!J20 -> 591.395636 | M5: ='Acquirer IS'!L20 -> 524.4099074 | N5: ='Acquirer IS'!N20 -> 446.219595 | O5: ='Acquirer IS'!P20 -> 355.6320759 | P5: ='Acquirer IS'!R20 -> 251.3445216
B6: Less: Taxes | D6: =D5*'Target Assumptions'!J47 -> 156.254836 | E6: =E5*'Target Assumptions'!L47 -> 178.029556 | F6: =F5*'Target Assumptions'!N47 -> 201.2651137 | G6: =G5*'Target Assumptions'!P47 -> 226.0523844 | H6: =H5*'Target Assumptions'!R47 -> 252.4876626 | J6: Less: Taxes | L6: =L5*'Acquirer Assumptions'!J49 -> 236.5582544 | M6: =M5*'Acquirer Assumptions'!L49 -> 209.7639629 | N6: =N5*'Acquirer Assumptions'!N49 -> 178.487838 | O6: =O5*'Acquirer Assumptions'!P49 -> 142.2528303 | P6: =P5*'Acquirer Assumptions'!R49 -> 100.5378086
B7: Plus: Deprec. & Amort.. | D7: ='Target IS'!J17+'Target IS'!J18 -> 433.63896 | E7: ='Target IS'!L17+'Target IS'!L18 -> 440.9891028 | F7: ='Target IS'!N17+'Target IS'!N18 -> 448.7435035 | G7: ='Target IS'!P17+'Target IS'!P18 -> 456.9243961 | H7: ='Target IS'!R17+'Target IS'!R18 -> 465.5552379 | J7: Plus: Deprec. & Amort. | L7: ='Acquirer IS'!J17+'Acquirer IS'!J18 -> 987.03111 | M7: ='Acquirer IS'!L17+'Acquirer IS'!L18 -> 1038.356728 | N7: ='Acquirer IS'!N17+'Acquirer IS'!N18 -> 1092.351278 | O7: ='Acquirer IS'!P17+'Acquirer IS'!P18 -> 1149.153544 | P7: ='Acquirer IS'!R17+'Acquirer IS'!R18 -> 1208.909528
B8: Less: Gross Capex | D8: =-'Target CF'!J29 -> 16.70487 | E8: =-'Target CF'!L29 -> 17.62363785 | F8: =-'Target CF'!N29 -> 18.59293793 | G8: =-'Target CF'!P29 -> 19.61554952 | H8: =-'Target CF'!R29 -> 20.69440474 | J8: Less: Gross Capex | L8: =-'Acquirer CF'!J31 -> 855.426962 | M8: =-'Acquirer CF'!L27 -> 899.909164 | N8: =-'Acquirer CF'!N31 -> 946.7044406 | O8: =-'Acquirer CF'!P27 -> 995.9330715 | P8: =-'Acquirer CF'!R31 -> 1047.721591
B9: Less: ∆ NWC | D9: ='Target CF'!J17+'Target CF'!J18+'Target CF'!J20+'Target CF'!J23+'Target CF'!J25 -> 22.66337644 | E9: ='Target CF'!L17+'Target CF'!L18+'Target CF'!L20+'Target CF'!L23+'Target CF'!L25 -> -49.0345143 | F9: ='Target CF'!N17+'Target CF'!N18+'Target CF'!N20+'Target CF'!N23+'Target CF'!N25 -> -51.73141258 | G9: ='Target CF'!P17+'Target CF'!P18+'Target CF'!P20+'Target CF'!P23+'Target CF'!P25 -> -54.57664027 | H9: ='Target CF'!R17+'Target CF'!R18+'Target CF'!R20+'Target CF'!R23+'Target CF'!R25 -> -57.57835549 | J9: Less: ∆ NWC | L9: ='Acquirer CF'!J15+'Acquirer CF'!J16+'Acquirer CF'!J18+'Acquirer CF'!J21+'Acquirer CF'!J22+'Acquirer CF'!J23 -> 197.2760565 | M9: ='Acquirer CF'!L15+'Acquirer CF'!L16+'Acquirer CF'!L18+'Acquirer CF'!L21+'Acquirer CF'!L22+'Acquirer CF'!L23 -> 74.06915494 | N9: ='Acquirer CF'!N15+'Acquirer CF'!N16+'Acquirer CF'!N18+'Acquirer CF'!N21+'Acquirer CF'!N22+'Acquirer CF'!N2 -> 66.985151 | O9: ='Acquirer CF'!P15+'Acquirer CF'!P16+'Acquirer CF'!P18+'Acquirer CF'!P21+'Acquirer CF'!P22+'Acquirer CF'!P23 -> 59.53277885 | P9: ='Acquirer CF'!R15+'Acquirer CF'!R16+'Acquirer CF'!R18+'Acquirer CF'!R21+'Acquirer CF'!R22+'Acquirer CF'!R23 -> 51.69288335
B10: Equals: Free Cash Flow | D10: =SUM(D5:D9) -> 1019.899132 | E10: =SUM(E5:E9) -> 1032.681672 | F10: 1120.032927 | G10: 1213.146651 | H10: 1312.378106 | J10: Equals: Free Cash Flow | L10: =SUM(L5:L9) -> 2867.688019 | M10: =SUM(M5:M9) -> 2746.508917 | N10: 2730.748302 | O10: 2702.5043 | P10: 2660.206333
B11: Period | D11: 1 | E11: 1 | F11: 1 | G11: 1 | H11: 1 | J11: Period | L11: 1 | M11: 1 | N11: 1 | O11: 1 | P11: 1
B12: Mid-Year Convention | D12: =D11/2 -> 0.5 | E12: =D11+E11/2 -> 1.5 | F12: =F11/2+SUM(D11:E11) -> 2.5 | G12: =G11/2+SUM(D11:F11) -> 3.5 | H12: =H11/2+SUM(D11:G11) -> 4.5 | J12: Mid-Year Convention | L12: =L11/2 -> 0.5 | M12: =L11+M11/2 -> 1.5 | N12: =N11/2+SUM(L11:M11) -> 2.5 | O12: =O11/2+SUM(L11:N11) -> 3.5 | P12: =P11/2+SUM(L11:O11) -> 4.5
B13: Discount Factor | D13: =1/(1+D24)^D12 -> 0.95429713 | E13: =1/(1+D24)^E12 -> 0.8690621849 | F13: =1/(1+D24)^F12 -> 0.7914401684 | G13: =1/(1+D24)^G12 -> 0.7207511166 | H13: =1/(1+D24)^H12 -> 0.6563757979 | J13: Discount Factor | L13: =1/(1+L24)^L11 -> 0.9143553795 | M13: =1/(1+L24)^M12 -> 0.8743242751 | N13: =1/(1+L24)^N12 -> 0.7994431044 | O13: =1/(1+L24)^O12 -> 0.730975103 | P13: =1/(1+L24)^P12 -> 0.6683710177
B14: PV FCFF | D14: =D10*D13 -> 973.2868149 | E14: =E10*E13 -> 897.4645904 | F14: 886.4390482 | G14: 874.3768032 | H14: 861.4132267 | J14: PV FCFF | L14: =L10*L13 -> 2622.085967 | M14: =M10*M13 -> 2401.339418 | N14: =N10*N13 -> 2183.0779 | O14: =O10*O13 -> 1975.46336 | P14: =P10*P13 -> 1778.004814
B16: PV (Years 1- 5) | D16: =SUM(D14:H14) -> 4492.980483 | J16: PV (Years 1- 5) | L16: =SUM(L14:P14) -> 10959.97146
B17: PV (Terminal Value) | D17: =+IF(ISERROR(D33*(1+D34)/(D35-D34)*H13),0,D33*(1+D34)/(D35-D34)*H13) -> 13863.36912 | J17: PV (Terminal Value) | L17: =+IF(ISERROR(L33*(1+L34)/(L35-L34)*P13),0,L33*(1+L34)/(L35-L34)*P13) -> 22447.31078
B18: Enterprise Value | D18: =SUM(D16:D17) -> 18356.3496 | J18: Enterprise Value | L18: =SUM(L16:L17) -> 33407.28224
B19: Plus Cash | D19: ='Target BS'!H9 -> 276.3 | J19: Plus Cash | L19: ='Acquirer BS'!H9 -> 855.3
B20: Less Debt & Min. Int. | D20: ='Target BS'!H38+'Target BS'!H50 -> 2061.7 | J20: Less Debt & Min. Int. | L20: ='Acquirer BS'!H50+'Acquirer BS'!H41 -> 808.2
B21: Equity Value | D21: =D18+D19-D20 -> 16570.9496 | J21: Equity Value | L21: =L18+L19-L20 -> 33454.38224
B22: Equity Value Per Share | D22: =+IF(ISERROR(D21/Summary!E8),0,D21/Summary!E8) -> 94.96246189 | J22: Equity Value Per Share | L22: =+IF(ISERROR(L21/Summary!O25),0,L21/Summary!O25) -> 93.42189957
B23: Assumptions: | J23: Assumptions:
B24: WACC | D24: ='Target Assumptions'!J57*(1-0.4)*D26+D28*(1-D26) -> 0.09807692308 | J24: WACC | L24: ='Acquirer Assumptions'!J58*(1-0.4)*L26+L28*(1-L26) -> 0.09366666667
B25: Target D/E* | D25: 0.3 | J25: Target D/E* | L25: 0.2
B26: Target D/TC* | D26: =D25/(1+D25) -> 0.2307692308 | J26: Target D/TC* | L26: =L25/(1+L25) -> 0.1666666667
B27: Marginal Tax Rate | D27: 0.4 | J27: Marginal Tax Rate | L27: 0.4
B28: ke | D28: =D29+D31*D30 -> 0.1185 | J28: ke | L28: =L29+L31*L30 -> 0.1064
B29: Rf | D29: 0.025 | J29: Rf | L29: 0.025
B30: Rf - Rm | D30: 0.055 | J30: Rf - Rm | L30: 0.055
B31: Beta | D31: 1.7 | J31: Beta | L31: 1.48
B32: Terminal Value | J32: Terminal Value
B33: FCF 2020 | D33: =H10 -> 1312.378106 | J33: FCF 2020 | L33: =P10 -> 2660.206333
B34: Terminal Growth Rate | D34: 0.03 | J34: Terminal Growth Rate | L34: 0.01
B35: Terminal Period WACC | D35: 0.094 | J35: Terminal Period WACC | L35: 0.09
B37: Newco | D37: 2016 | E37: =D37+1 -> 2017 | F37: =E37+1 -> 2018 | G37: 2019 | H37: 2020 | J37: Definitions
B38: Free Cash Flow | J38: WACC = (D/(D+E))*[(1-T)*[Cost of Debt]]+(E/(D+E))*ke
B39: EBIT | D39: ='Newco IS'!M21 -> 779.9388471 | E39: ='Newco IS'!P21 -> 892.5542341 | F39: ='Newco IS'!R21 -> 1008.030076 | G39: ='Newco IS'!T21 -> 979.4158439 | H39: ='Newco IS'!V21 -> 941.221905 | J39: D = Debt
B40: Less: Taxes | D40: =D39*'Newco Assumptions'!J49 -> 311.9755388 | E40: =E39*'Newco Assumptions'!L49 -> 357.0216936 | F40: =F39*'Newco Assumptions'!N49 -> 403.2120305 | G40: =G39*'Newco Assumptions'!P49 -> 391.7663376 | H40: =H39*'Newco Assumptions'!R49 -> 376.488762 | J40: E = Equity
B41: Plus: Deprec. & Amort. | D41: ='Newco IS'!M18+'Newco IS'!M19 -> 1439.72007 | E41: ='Newco IS'!P18+'Newco IS'!R19 -> 1498.395831 | F41: ='Newco IS'!R18+'Newco IS'!R19 -> 1560.144781 | G41: ='Newco IS'!T18+'Newco IS'!T19 -> 1625.12794 | H41: ='Newco IS'!V18+'Newco IS'!V19 -> 1693.514766 | J41: T = Corporate marginal tax rate | L41: (i.e., 40%)
B42: Less: Gross Capex | D42: =-'Newco CF'!J29 -> 872.131832 | E42: =-'Newco CF'!L29 -> 917.5328019 | F42: =-'Newco CF'!N29 -> 965.2973785 | G42: =-'Newco CF'!P29 -> 1015.548621 | H42: =-'Newco CF'!R29 -> 1068.415996 | J42: ke = Cost of Equity (Estimated using the Capital Asset Pricing Model)
B43: Less: ∆ NWC | D43: ='Newco CF'!J17+'Newco CF'!J18+'Newco CF'!J19+'Newco CF'!J20+'Newco CF'!J21+'Newco CF'!J22+'Newco CF'!J23+'Newco CF'!J24+'Newco CF'!J25 -> 2391.910639 | E43: ='Newco CF'!L17+'Newco CF'!L18+'Newco CF'!L19+'Newco CF'!L20+'Newco CF'!L21+'Newco CF'!L22+'Newco CF'!L23+'Newco CF'!L24+'Newco CF'!L25 -> 196.4913028 | F43: ='Newco CF'!N17+'Newco CF'!N18+'Newco CF'!N19+'Newco CF'!N20+'Newco CF'!N21+'Newco CF'!N22+'Newco CF'!N23+'Newco CF'!N24+'Newco CF'!N25 -> 196.9652065 | G43: ='Newco CF'!P17+'Newco CF'!P18+'Newco CF'!P19+'Newco CF'!P20+'Newco CF'!P21+'Newco CF'!P22+'Newco CF'!P23+'Newco CF'!P24+'Newco CF'!P25 -> 218.0088563 | H43: ='Newco CF'!R17+'Newco CF'!R18+'Newco CF'!R19+'Newco CF'!R20+'Newco CF'!R21+'Newco CF'!R22+'Newco CF'!R23+'Newco CF'!R24+'Newco CF'!R25 -> 218.4993012 | J43: NWC = Net working capital excluding cash & marketable securities
B44: Equals: Free Cash Flow | D44: =SUM(D39:D43) -> 5795.676927 | E44: =SUM(E39:E43) -> 3861.995863 | F44: 4133.649473 | G44: 4229.867599 | H44: 4298.14073 | J44: Discount factor uses mid-year convention in which cash flows occur evenly
B45: Period | D45: 1 | E45: 1 | F45: 1 | G45: 1 | H45: 1 | J45: throughout the year.
B46: Mid-Year Convention | D46: =D45/2 -> 0.5 | E46: =D45+E45/2 -> 1.5 | F46: =SUM(D45:E45)+F45/2 -> 2.5 | G46: =SUM(D45:F45)+G45/2 -> 3.5 | H46: =SUM(D45:G45)+H45/2 -> 4.5 | J46: Rf = Risk free rate approximated by the 10-year U.S. treasury bond rate.
B47: Discount Factor | D47: =1/(1+D57)^D46 -> 0.9602626091 | E47: =1/(1+D57)^E46 -> 0.8854622603 | F47: =1/(1+D57)^F46 -> 0.8164885386 | G47: =1/(1+D57)^G46 -> 0.7528875748 | H47: =1/(1+D57)^H46 -> 0.6942408539 | J47: Rm = Return on a broad based stock index
B48: PV FCFF | D48: =D44*D47 -> 5565.371848 | E48: =E44*E47 -> 3419.651586 | F48: 3375.077417 | G48: 3184.614758 | H48: 2983.944891 | J48: Rm - Rf = Average historical equity risk premium since 1963
J49: Period reflects months of actual data available for first forecast year, i.e.,
B50: PV (Years 1- 5) | D50: =SUM(D48:H48) -> 18528.6605 | J50: if have 9 months actual data, period 1 equals .25, if have one half
B51: PV (Terminal Value) | D51: =+IF(ISERROR(D66*(1+D67)/(D68-D67)*H47),0,D66*(1+D67)/(D68-D67)*H47) -> 50727.06314 | J51: year of data, period 1 is .5; if 3 months available, period 1 equals.75
B52: Enterprise Value | D52: =SUM(D50:D51) -> 69255.72364 | J52: FCF2020 is recalculated to reflect the maximum marginal tax rate rather than the
B53: Plus Cash | D53: ='Newco BS'!M9 -> 131.6 | J53: effective tax rate.
B54: Less Debt & Minority Interest | C54: & Min. Int. | D54: ='Newco BS'!M39+'Newco BS'!M51 -> 11974.48245 | J54: Target D/E* represents the future debt to equity ratio desired by the firm.
B55: Equity Value | D55: =D52+D53-D54 -> 57412.84119 | J55: Target D/TC* represents the implied future debt to total capital ratio desired
B56: Equity Value Per Share | D56: =+IF(ISERROR(D55/Summary!I18),0,D55/Summary!I18) -> 113.9273392 | J56: by the firm.
B57: WACC = | D57: ='Newco Assumptions'!J58*(1-0.4)*D59+D61*(1-D59) -> 0.08447604395
B58: Target D/E* | D58: 0.2
B59: Target D/TC* | D59: =D58/(1+D58) -> 0.1666666667
B60: Marginal Tax Rate | D60: 0.4
B61: ke | D61: =D62+D64*D63 -> 0.0954
B62: Rf | D62: 0.025
B63: Rf - Rm | D63: 0.055
B64: Beta | D64: 1.28
B65: Terminal Value
B66: FCF 2020 | D66: =H44 -> 4298.14073
B67: Terminal Growth Rate | D67: 0.02
B68: Terminal Period WACC | D68: 0.08
B70: Newco Internal Rate of Return on Acquisition
B72: Purchase Price (including Trasaction Expenses) | F72: 2015 | G72: =-Summary!Q18 -> -15129.7649
B73: Free Cash Flows | F73: =F72+1 -> 2016 | G73: =D44 -> 5795.676927
F74: =F73+1 -> 2017 | G74: =E44 -> 3861.995863
F75: 2018 | G75: =F44 -> 4133.649473
F76: 2019 | G76: =G44 -> 4229.867599
F77: 2020 | G77: =H44 -> 4298.14073
B78: Terminal Value | G78: =D51 -> 50727.06314
B79: IRR | G79: =IRR(G72:G78) -> 0.4271208608
